Workbook

Sheet TURINYS
A1: 1. EISMO ĮVYKIŲ DALYVIAI | B1: SUTRUMPINIMAI
A2: 1.1 Eismo įvykiai ir nukentėjusieji juose 2001-2020 m. | B2: EĮ | C2: – įskaitinis eismo įvykis;
A3: 1.2 Eismo įvykiuose nukentėjusių pasiskirstymas pagal pasekmes, 2017–2020 m. | B3: ED | C3: – eismo dalyvis;
A4: 1.3 Eismo įvykiuose žuvusių ir sužeistų eismo dalyvių pasiskirstymas, 2017–2020 m. | B4: TP | C4: – transporto priemonė;
A5: 1.4 Eismo įvykių skaičius su pažeidžiamais eismo dalyviais ir nukentėjusiųjų juose pasiskirstymas pagal eismo įvykio schemą ir pasekmes, 2017–2020 m. laikotarpiu | B5: LAKD | C5: – Valstybės įmonė Lietuvos automobilių kelių direkcija prie Susiekimo ministerijos;
A6: 1.5 Eismo įvykiuose nukentėjusiųjų skaičius pagal amžiaus grupes, 2017–2020 m. | B6: ES | C6: – Europos Sąjunga;
A7: 1.6 Eismo įvykiuose dalyvavę eismo dalyviai pagal amžiaus grupes, jų pasiskirstymas pagal pasekmes, 2017-2020 m. laikotarpiu | B7: JD | C7: – "Juodoji dėmė", tai kelio ruožas, kuriame yra padidėjęs avaringumas, ir rodikliai yra pasiekę arba viršiję ribines reikšmes.
A8: 1.7 Eismo įvykiuose žuvusių ir sužeistų eismo dalyvių pasiskirstymas pagal lytį, 2017–2020 m.
A9: 1.8 Eismo įvykiuose žuvusių ir sužeistų eismo dalyvių pasiskirstymas pagal eismo dalyvio tipą ir lytį, 2017–2020 m.
A10: 1.9 2017-2020 m. laikotarpiu eismo įvykiuose dalyvavusių eismo dalyvių pasiskirstymas pagal lytį ir eismo įvykių pasekmes | B10: TURINYS
A11: 1.10 Įskaitinių eismo įvykių kaltininkų grupės pagal eismo dalyvių tipus, 2017–2020 m.
A12: 1.11 Eismo įvykių pasiskirstymas pagal neblaivių kaltininkų eismo dalyvio tipą ir tuose eismo įvykiuose nukentėję eismo dalyviai, 2017-2020 m. | C12: Pasirikti temą:
A13: 1.12 2020 m. eismo įvykių pasiskirstymas pagal eismo įvykio rūšį, kaltininkų grupes ir jų blaivumą | B13: 1. EISMO ĮVYKIŲ DALYVIAI
A14: 1.13 Eismo įvykiuose dalyvavusių motorinių transporto priemonių vairuotojų kaltininkų vairavimo stažas, 2017–2020 m.
B15: 2. EISMO ĮVYKIAI IR INFRASTRUKTŪRA
A16: 2. EISMO ĮVYKIAI IR INFRASTRUKTŪRA
A17: 2.1 2017–2020 m. įvykusių eismo įvykių ir nukentėjusių pasiskirstymas automagistralėse ir greitkeliuose, gyvenamojoje ir užmiesčio teritorijose | B17: 3. EISMO ĮVYKIŲ YPATYBĖS/APLINKYBĖS/EISMO SĄLYGOS
A18: 2.2 Eismo įvykių ir nukentėjusiųjų pasiskirstymas valstybinės ir vietinės reikšmės keliuose, 2017–2020 m.
A19: 2.3 Valstybinė ir vietinės reikšmės kelių avaringumo rodikliai 2020 m. | B19: 4. KELIŲ TRANSPORTO PRIEMONIŲ PARKAS
A20: 2.4 Eismo įvykiai ir nukentėjusieji savivaldybėse 2017–2020 m.
A21: 2.5 E kategorijos kelių sudėtis, įskaitinių eismo įvykių ir nukentėjusiųjų pasiskirstymas juose, 2017–2020 m. | B21: 5. EISMO ĮVYKIŲ SUKELTI NUOSTOLIAI LIETUVOS EKONOMIKAI
A22: 2.6 Eismo įvykių ir nukentėjusiųjų pasiskirstymas valstybinės ir vietinės reikšmės keliuose pagal kelio dangos tipą, 2017–2020 m.
A23: 2.7 Įskaitinių eismo įvykių ir nukentėjusiųjų pasiskirstymas pagal eismo įvykio vietą ir pobūdį, 2017–2020 m. | B23: 6. JUODOSIOS DĖMĖS VALSTYBINĖS REIKŠMĖS KELIUOSE IR GATVĖSE
A25: 3. EISMO ĮVYKIŲ YPATYBĖS/APLINKYBĖS/EISMO SĄLYGOS | B25: 7. AVARINGUMAS EUROPOS SĄJUNGOS IR KITOSE ŠALYSE
A26: 3.1 Eismo įvykių pasiskirstymas pagal rūšis užmiestyje ir gyvenvietėje, 2017–2020 m.
A27: 3.2 Eismo įvykių ir nukentėjusių pasiskirstymas šviesiu ir tamsiu paros metu, 2017–2020 m.
A28: 3.3 Eismo įvykių ir nukentėjusiųjų juose pasiskirstymas pagal valandas 2020 m. | C28: Nuoroda į 2017–2020 m. įskaitinių eismo įvykių žemėlapį: https://ktti.maps.arcgis.com/apps/instant/minimalist/index.html?appid=d0994fc74c4346158c0916dc3b37314d .
A29: 3.4 Eismo įvykių ir nukentėjusiųjų juose pasiskirstymas pagal oro sąlygas ir kelio dangos būklę, 2017–2020 m.
A30: 3.5 Eismo įvykių ir nukentėjusiųjų juose pasiskirstymas pagal metų laikus, 2017-2020 m. | C30: Pastaba: žemėlapyje dalis 2017–2021 m. įskaitinių eismo įvykių, 0,4% visų EĮ (t. y. 43 EĮ iš 11 992 EĮ), nepavaizduoti, kadangi pateiktuose eismo įvykių duomenyse buvo nurodytos klaidingos eismo įvykio koordinatės, t. y. pagal nurodytas koordinates dalis eismo įvykių nepatenko į Lietuvos teritoriją, arba koordinatės nenurodytos.
A31: 3.6 Eismo įvykių ir juose nukentėjusiųjų pasiskirstymas pagal mėnesius ir ketvirčius, 2017-2020 m.
A32: 3.7 Eismo įvykių ir juose nukentėjusiųjų pasiskirstymas pagal savaitės dienas, 2017-2020 m.
C33: Nuoroda į interaktyvų 2021 m. „juodųjų dėmių“ žemėlapį https://bit.ly/3zpvCoy. TKA kartu su LAKD parengė virtualų 2021 m. „juodųjų dėmių“ žemėlapį, kuriame pateikiamos ekspertų rekomendacijos, kaip eismo dalyviams elgtis patekus į „juodąją dėmę“, šios saugumo rekomendacijos parengtos atsižvelgus į kiekvienos „juodosios dėmės“ ypatumus.
A34: 4. KELIŲ TRANSPORTO PRIEMONIŲ PARKAS
A35: 4.1 Motorinių transporto priemonių ir gyventojų skaičius 2001–2020 m.
A36: 4.2 Registruotų lengvųjų automobilių (M1 kategorijos) skaičius pagal amžių 2017-2020 m.
A37: 4.3 Transporto priemonių, eismo įvykių ir nukentėjusių juose pasiskirstymas 2001–2020 m.
A38: 4.4 Transporto priemonių tipai, sukėlę ir dalyvavę eismo įvykiuose, 2017-2020 m.
B39: SUTRUMPINIMAI
A40: 5. EISMO ĮVYKIŲ SUKELTI NUOSTOLIAI LIETUVOS EKONOMIKAI | B40: EĮ | C40: – įskaitinis eismo įvykis;
A41: 5.1 Žala Lietuvos ekonomikai dėl eismo įvykiuose nukentėjusių žmonių, 2017–2020 m. | B41: ED | C41: – eismo dalyvis;
A42: 5.2 Žala Lietuvos ekonomikai dėl įskaitinių eismo įvykių, įvykusių valstybinės ir vietinės reikšmės keliuose, 2017–2020 m. | B42: TP | C42: – transporto priemonė;
A43: 5.3 Žala Lietuvos ekonomikai dėl įskaitinių eismo įvykių kitimas gyvenvietėse ir užmiesčio keliuose, 2017–2020 m. | B43: LAKD | C43: – Valstybės įmonė Lietuvos automobilių kelių direkcija;
B44: TKA | C44: – Viešoji įstaiga Transporto kompetencijų agentūra;
A45: 6. JUODOSIOS DĖMĖS VALSTYBINĖS REIKŠMĖS KELIUOSE IR GATVĖSE | B45: ES | C45: – Europos Sąjunga;
A46: 6.1 2020 m. ir 2021 m. nustatytų „juodųjų dėmių“ palyginimas | B46: JD | C46: – "Juodoji dėmė", tai kelio ruožas, kuriame yra padidėjęs avaringumas, ir rodikliai yra pasiekę arba viršiję ribines reikšmes.
A47: 6.2 Žala šalies ekonomikai dėl valstybinės reikšmės keliuose nustatytų „juodųjų dėmių“, 2020 m. ir 2021 m.
A49: 7. AVARINGUMAS EUROPOS SĄJUNGOS IR KITOSE ŠALYSE
A50: 7.1 Žuvusiųjų skaičius Lietuvoje ir kitose Europos Sąjungos šalyse, 2010-2019 m.
A51: 7.2 Žuvusiųjų skaičius, tenkantis 1 mln. gyventojų Lietuvoje ir kitose Europos Sąjungos šalyse
A52: 7.3 Žuvusiųjų skaičius, tenkantis 1 mln. gyventojų Europos Sąjungos ir kitose šalyse, 2010-2019 m.

Sheet EĮ ir nukentėję kitimas
A6: 1.1 Eismo įvykiai ir nukentėjusieji juose 2001-2020 m.
A7: Metai | B7: EĮ | E7: Žuvo | H7: Sužeista
B8: Iš viso | C8: 1 mln. gyv. | D8: 1000 TP | E8: Iš viso | F8: 1 mln. gyv. | G8: 1000 TP | H8: Iš viso | I8: 1 mln. gyv. | J8: 1000 TP
A9: 2001 m. | B9: 5972 | C9: 1715 | D9: 4.3 | E9: 706 | F9: 202 | G9: 0.51 | H9: 7103 | I9: 2048 | J9: 5.1
A10: 2002 m. | B10: 6090 | C10: 1759 | D10: 4.1 | E10: 697 | F10: 201 | G10: 0.47 | H10: 7427 | I10: 2145 | J10: 5
A11: 2003 m. | B11: 5963 | C11: 1730 | D11: 3.8 | E11: 709 | F11: 206 | G11: 0.45 | H11: 7263 | I11: 2107 | J11: 4.6
A12: 2004 m. | B12: 6372 | C12: 1860.437956 | D12: 3.898788145 | E12: 751 | F12: 219.270073 | G12: 0.4595087723 | H12: 7877 | I12: 2299.854015 | J12: 4.819641277
A13: 2005 m. | B13: 6771 | C13: 1986 | D13: 3.8 | E13: 773 | F13: 227 | G13: 0.43 | H13: 8466 | I13: 2483 | J13: 4.8
A14: 2006 m. | B14: 6658 | C14: 1967 | D14: 3.4 | E14: 760 | F14: 225 | G14: 0.39 | H14: 8334 | I14: 2432 | J14: 4.3
A15: 2007 m. | B15: 6448 | C15: 1905 | D15: 3.3 | E15: 740 | F15: 219 | G15: 0.37 | H15: 8042 | I15: 2376 | J15: 4.1
A16: 2008 m. | B16: 4795 | C16: 1424.388441 | D16: 2.275911694 | E16: 499 | F16: 148.2314561 | G16: 0.2368467018 | H16: 5818 | I16: 1728.277779 | J16: 2.761471165
A17: 2009 m. | B17: 3805 | C17: 1142.983822 | D17: 1.783270532 | E17: 370 | F17: 111.1442875 | G17: 0.1734060701 | H17: 4426 | I17: 1329.525991 | J17: 2.074311531
A18: 2010 m. | B18: 3530 | C18: 1087.851229 | D18: 1.646034502 | E18: 299 | F18: 92.14377264 | G18: 0.139423319 | H18: 4230 | I18: 1303.572436 | J18: 1.97244361
A19: 2011 m. | B19: 3266 | C19: 1020.840653 | D19: 1.502283323 | E19: 296 | F19: 92.51954475 | G19: 0.1361530507 | H19: 3919 | I19: 1224.94627 | J19: 1.802647993
A20: 2012 m. | B20: 3173 | C20: 1065.011697 | D20: 1.417858493 | E20: 301 | F20: 101.0301043 | G20: 0.1345021766 | H20: 3712 | I20: 1245.92607 | J20: 1.658711228
A21: 2013 m. | B21: 3391 | C21: 1151.654684 | D21: 1.489909608 | E21: 256 | F21: 86.94296643 | G21: 0.1124791683 | H21: 4007 | I21: 1360.861197 | J21: 1.760562607
A22: 2014 m. | B22: 3255 | C22: 1138 | D22: 2.2 | E22: 267 | F22: 91 | G22: 0.17 | H22: 3785 | I22: 1331 | J22: 2.611997187
A23: 2015 m. | B23: 3033 | C23: 1050 | D23: 1.9 | E23: 242 | F23: 84 | G23: 0.16 | H23: 3594 | I23: 1244 | J23: 2.32
A24: 2016 m. | B24: 3201 | C24: 1124 | D24: 1.2 | E24: 192 | F24: 67 | G24: 0.11 | H24: 3750 | I24: 1317 | J24: 2.32
A25: 2017 m. | B25: 3051 | C25: 1086.189937 | D25: 2.046406682 | E25: 191 | F25: 67.99812453 | G25: 0.1281100217 | H25: 3557 | I25: 1266.331565 | J25: 2.385797629
A26: 2018 m. | B26: 2925 | C26: 1046.817246 | D26: 1.859435571 | E26: 173 | F26: 61.91431917 | G26: 0.1099768731 | H26: 3390 | I26: 1213.234347 | J26: 2.155038149
A27: 2019 m. | B27: 3190 | C27: 1141.695507 | D27: 1.927548352 | E27: 186 | F27: 66.56907974 | G27: 0.1123899666 | H27: 3771 | I27: 1349.634407 | J27: 2.278615936
A28: 2020 m. | B28: 2826 | C28: 1010.845304 | D28: 1.57614961 | E28: 175 | F28: 62.59657758 | G28: 0.09760303674 | H28: 3203 | I28: 1145.696217 | J28: 1.786414438
A30: Eismo įvykių skaičiaus kitimas
A53: Žuvusiųjų skaičiaus kitimas
A75: Sužeistųjų skaičiaus kitimas

Sheet Eismo dalyviai
A6: 1.2 Eismo įvykiuose nukentėjusių pasiskirstymas pagal pasekmes, 2017–2020 m.
A7: Metai | B7: EĮ skaičius | C7: Visi eismo įvykiuose dalyvavę ED | D7: EĮ dalyvavę bet nenukentėję ED | E7: Žuvo | F7: Sužeista | I7: nežinoma
F8: visi sužeistieji | G8: iš jų sunkiai sužeisti* | H8: iš jų lengvai sužeisti
A9: 2017 | B9: 3051 | C9: 7267 | D9: 3362 | E9: 191 | F9: 3557 | G9: 368 | H9: 3189 | I9: 157
A10: 2018 | B10: 2925 | C10: 6950 | D10: 3255 | E10: 173 | F10: 3390 | G10: 165 | H10: 3225 | I10: 132
A11: 2019 | B11: 3190 | C11: 7569 | D11: 3486 | E11: 186 | F11: 3771 | G11: 308 | H11: 3463 | I11: 126
A12: 2020 | B12: 2826 | C12: 6472 | D12: 2926 | E12: 175 | F12: 3203 | G12: 376 | H12: 2827 | I12: 168
A13: Viso 2017-2020 m. | B13: =SUM(B9:B12) -> 11992 | C13: 28258 | D13: 13029 | E13: 725 | F13: 13921 | G13: 1217 | H13: 12704 | I13: 583
A14: * - eismo įvykyje dalyvavęs eismo dalyvis buvo gydomas ligoninėje
A16: 1.3 Eismo įvykiuose žuvusių ir sužeistų eismo dalyvių pasiskirstymas, 2017–2020 m.
A17: Eismo dalyviai | B17: 2017 m. | D17: 2018 m. | F17: 2019 m. | H17: 2020 m.
B18: Žuvo | C18: Sužeista | D18: Žuvo | E18: Sužeista | F18: Žuvo | G18: Sužeista | H18: Žuvo | I18: Sužeista
A19: Automobilių vairuotojai | B19: 58 | C19: 1021 | D19: 46 | E19: 948 | F19: 53 | G19: 1127 | H19: 52 | I19: 945
A20: Motociklų vairuotojai | B20: 12 | C20: 139 | D20: 14 | E20: 197 | F20: 23 | G20: 254 | H20: 17 | I20: 212
A21: Mopedų vairuotojai | B21: 3 | C21: 55 | D21: 1 | E21: 52 | G21: 66 | H21: 1 | I21: 59
A22: Keleiviai | B22: 34 | C22: 1101 | D22: 31 | E22: 1021 | F22: 37 | G22: 1142 | H22: 35 | I22: 865
A23: Pėstieji | B23: 69 | C23: 934 | D23: 71 | E23: 838 | F23: 59 | G23: 817 | H23: 52 | I23: 671
A24: Dviratininkai | B24: 13 | C24: 283 | D24: 9 | E24: 289 | F24: 10 | G24: 297 | H24: 14 | I24: 329
A25: Paspirtukininkai | B25: 0 | C25: 4 | D25: 0 | E25: 8 | F25: 0 | G25: 13 | H25: 0 | I25: 29
A26: El. paspirtukų naudotojai | B26: 0 | C26: 0 | D26: 0 | E26: 3 | F26: 0 | G26: 20 | H26: 2 | I26: 53
A27: El. dviračių naudotojai | B27: 0 | C27: 1 | D27: 0 | E27: 1 | F27: 1 | G27: 2 | H27: 0 | I27: 9
A28: Kiti (vairavimo instruktoriai, raiteliai, asmenys varantys gyvulius, nežinomi) | B28: 2 | C28: 19 | D28: 1 | E28: 33 | F28: 3 | G28: 33 | H28: 2 | I28: 31
A29: Viso : | B29: =SUM(B19:B28) -> 191 | C29: 3557 | D29: 173 | E29: 3390 | F29: 186 | G29: 3771 | H29: 175 | I29: 3203

Sheet Nukentėję pažeidžiamiausi E
A6: 1.4 Eismo įvykiai su pažeidžiamais eismo dalyviais ir nukentėjusiųjų juose pasiskirstymas pagal eismo įvykio schemą ir pasekmes, 2017–2020 m. laikotarpiu
A8: 2017-2020 EĮ su pėsčiaisiais ir dviratininkais EĮ schema | B8: Žuvę ED | D8: Sužeisti ED
D9: Visi sužeistieji | F9: iš jų sunkiai sužeisti | H9: iš jų lengvai sužeisti
B10: sk. | C10: % | D10: sk. | E10: % | F10: sk. | G10: % | H10: sk. | I10: %
A11: PĖSTIEJI:
A12: Užvažiavimas ant pėsčiojo sankryžoje ir jos prieigoje | B12: 45 | C12: 17.92828685 | D12: 809 | E12: 24.81595092 | F12: 68 | G12: 21.25 | H12: 741 | I12: 25.20408163
A13: Užvažiavimas ant pėsčiojo pėsčiųjų perėjoje ne sankryžoje | B13: 40 | C13: 15.93625498 | D13: 969 | E13: 29.72392638 | F13: 99 | G13: 30.9375 | H13: 870 | I13: 29.59183673
A14: Užvažiavimas ant pėsčiojo ne sankryžoje, kai nėra pėsčiųjų perėjos | B14: 161 | C14: 64.14342629 | D14: 1385 | E14: 42.48466258 | F14: 142 | G14: 44.375 | H14: 1243 | I14: 42.27891156
A15: Kitos EĮ schemos su pėsčiaisiais | B15: 5 | C15: 1.992031873 | D15: 97 | E15: 2.975460123 | F15: 11 | G15: 3.4375 | H15: 86 | I15: 2.925170068
A16: Viso: | B16: 251 | C16: 100 | D16: 3260 | E16: 100 | F16: 320 | G16: 100 | H16: 2940 | I16: 100
A17: DVIRATININKAI:
A18: Susidūrimas su dviratininku sankryžoje ir jos prieigoje | B18: 11 | C18: 23.40425532 | D18: 534 | E18: 43.95061728 | F18: 29 | G18: 33.33333333 | H18: 505 | I18: 44.76950355
A19: Susidūrimas su dviratininku, ta pačia kryptimi važiuojančio keliu/gatve | B19: 16 | C19: 34.04255319 | D19: 167 | E19: 13.74485597 | F19: 22 | G19: 25.28735632 | H19: 145 | I19: 12.85460993
A20: Užvažiavimas ant dviratininko, kertančio važiuojamąją dalį dviračių pervažoje/pėsčiųjų perėjoje ne sankryžoje | B20: 0 | C20: 0 | D20: 16 | E20: 1.316872428 | F20: 1 | G20: 1.149425287 | H20: 15 | I20: 1.329787234
A21: Užvažiavimas ant dviratininko, kertančio važiuojamąją dalį ne sankryžoje, kai nėra dviračių pervažos/pėsčiųjų perėjos | B21: 1 | C21: 2.127659574 | D21: 16 | E21: 1.316872428 | F21: 0 | G21: 0 | H21: 16 | I21: 1.418439716
A22: Priešpriešiniai susidūrimai su dviratininku | B22: 9 | C22: 19.14893617 | D22: 66 | E22: 5.432098765 | F22: 5 | G22: 5.747126437 | H22: 61 | I22: 5.407801418
A23: Kitos EĮ schemos su dviratininkais | B23: 10 | C23: 21.27659574 | D23: 416 | E23: 34.23868313 | F23: 30 | G23: 34.48275862 | H23: 386 | I23: 34.21985816
A24: Viso: | B24: 47 | C24: 100 | D24: 1215 | E24: 100 | F24: 87 | G24: 100 | H24: 1128 | I24: 100
A25: PASPIRTUKININKAI:
A26: Užvažiavimas ant paspirtukininko sankryžoje ir jos prieigoje | B26: 2 | C26: 100 | D26: 48 | E26: 36.92307692 | F26: 4 | G26: 44.44444444 | H26: 44 | I26: 36.36363636
A27: Užvažiavimas ant paspirtukininko, kertančio važiuojamąją dalį pėsčiųjų perėjoje ne sankryžoje | B27: 0 | C27: 0 | D27: 4 | E27: 3.076923077 | F27: 1 | G27: 11.11111111 | H27: 3 | I27: 2.479338843
A28: Užvažiavimas ant paspirtukininko, kertančio važiuojamąją dalį ne sankryžoje, kai nėra pėsčiųjų perėjos | B28: 0 | C28: 0 | D28: 9 | E28: 6.923076923 | F28: 1 | G28: 11.11111111 | H28: 8 | I28: 6.611570248
A29: Priešpriešiniai susidūrimai su paspirtukininku | B29: 0 | C29: 0 | D29: 11 | E29: 8.461538462 | F29: 1 | G29: 11.11111111 | H29: 10 | I29: 8.26446281
A30: Užvažiavimas ant paspirtukininko ta pačia kryptimi važiuojančio keliu | B30: 0 | C30: 0 | D30: 4 | E30: 3.076923077 | F30: 0 | G30: 0 | H30: 4 | I30: 3.305785124
A31: Kitos EĮ schemos su paspirtukininkais | B31: 0 | C31: 0 | D31: 54 | E31: 41.53846154 | F31: 2 | G31: 22.22222222 | H31: 52 | I31: 42.97520661
A32: Viso: | B32: 2 | C32: 100 | D32: 130 | E32: 100 | F32: 9 | G32: 100 | H32: 121 | I32: 100
A33: MOTOCIKLŲ VAIRUOTOJAI:
A34: Susidūrimas su motociklu sankryžoje ir jos prieigoje | B34: 23 | C34: 34.84848485 | D34: 313 | E34: 39.02743142 | F34: 48 | G34: 44.85981308 | H34: 265 | I34: 38.1294964
A35: Nuvažiavimas nuo kelio | B35: 14 | C35: 21.21212121 | D35: 150 | E35: 18.7032419 | F35: 21 | G35: 19.62616822 | H35: 129 | I35: 18.56115108
A36: Susidūrimas su motociklu, važiuojančiu ta pačia kryptimi | B36: 7 | C36: 10.60606061 | D36: 85 | E36: 10.59850374 | F36: 5 | G36: 4.672897196 | H36: 80 | I36: 11.51079137
A37: Priešpriešinis susidūrimas su motociklu | B37: 8 | C37: 12.12121212 | D37: 40 | E37: 4.987531172 | F37: 11 | G37: 10.28037383 | H37: 29 | I37: 4.172661871
A38: Kitos EĮ schemos su motociklais | B38: 14 | C38: 21.21212121 | D38: 214 | E38: 26.68329177 | F38: 22 | G38: 20.56074766 | H38: 192 | I38: 27.62589928
A39: Viso: | B39: 66 | C39: 100 | D39: 802 | E39: 100 | F39: 107 | G39: 100 | H39: 695 | I39: 100
A40: MOPEDŲ VAIRUOTOJAI:
A41: Susidūrimas su mopedu sankryžoje ir jos prieigoje | B41: 1 | C41: 20 | D41: 101 | E41: 43.53448276 | F41: 9 | G41: 47.36842105 | H41: 92 | I41: 43.19248826
A42: Nuvažiavimas nuo kelio | B42: 1 | C42: 20 | D42: 22 | E42: 9.482758621 | F42: 2 | G42: 10.52631579 | H42: 20 | I42: 9.389671362
A43: Susidūrimas su mopedu, važiuojančiu ta pačia kryptimi | B43: 1 | C43: 20 | D43: 30 | E43: 12.93103448 | F43: 0 | G43: 0 | H43: 30 | I43: 14.08450704
A44: Priešpriešinis susidūrimas su mopedu | B44: 1 | C44: 20 | D44: 8 | E44: 3.448275862 | F44: 0 | G44: 0 | H44: 8 | I44: 3.755868545
A45: Kitos EĮ schemos su mopedais | B45: 1 | C45: 20 | D45: 71 | E45: 30.60344828 | F45: 8 | G45: 42.10526316 | H45: 63 | I45: 29.57746479
A46: Viso: | B46: 5 | C46: 100 | D46: 232 | E46: 100 | F46: 19 | G46: 100 | H46: 213 | I46: 100

Sheet Eismo dalyviai pagal amžių
A6: 1.5 Eismo įvykiuose nukentėjusiųjų skaičius pagal amžiaus grupes, 2017–2020 m.
A7: Amžiaus grupė | C7: 2017 m. | E7: 2018m. | G7: 2019 m. | I7: 2020 m.
C8: Žuvo | D8: Sužeista | E8: Žuvo | F8: Sužeista | G8: Žuvo | H8: Sužeista | I8: Žuvo | J8: Sužeista
A9: Mažamečiai, kurie be suaugusiųjų eisme paprastai nedalyvauja | B9: ≤ 6 m. | C9: 1 | D9: 74 | E9: 0 | F9: 94 | G9: 0 | H9: 73 | I9: 0 | J9: 88
A10: 1-6 klasė (pirmosios savarankiškos kelionės) | B10: 7–12 m. | C10: 4 | D10: 198 | E10: 4 | F10: 192 | G10: 5 | H10: 200 | I10: 1 | J10: 162
A11: 7-12 klasė (paaugliai) | B11: 13-18 m. | C11: 2 | D11: 293 | E11: 8 | F11: 341 | G11: 3 | H11: 287 | I11: 8 | J11: 276
A12: Subrendę jaunuoliai, pradedantys vairuotojai | B12: 19–24 m. | C12: 15 | D12: 498 | E12: 22 | F12: 408 | G12: 24 | H12: 494 | I12: 15 | J12: 402
A13: Suaugę, darbingo amžiaus | B13: 25–34 m. | C13: 28 | D13: 649 | E13: 24 | F13: 569 | G13: 24 | H13: 657 | I13: 17 | J13: 563
B14: 35–44 m. | C14: 27 | D14: 450 | E14: 19 | F14: 458 | G14: 21 | H14: 501 | I14: 24 | J14: 433
B15: 45–54 m. | C15: 30 | D15: 447 | E15: 27 | F15: 419 | G15: 28 | H15: 481 | I15: 33 | J15: 391
B16: 55-64 | C16: 26 | D16: 431 | E16: 27 | F16: 402 | G16: 34 | H16: 462 | I16: 30 | J16: 414
A17: Suaugę, vyresnio amžiaus | B17: 65-74 | C17: 24 | D17: 237 | E17: 21 | F17: 250 | G17: 20 | H17: 288 | I17: 23 | J17: 234
B18: ≥75 m. | C18: 31 | D18: 273 | E18: 20 | F18: 250 | G18: 27 | H18: 322 | I18: 22 | J18: 233
B19: nenustatyta | C19: 3 | D19: 7 | E19: 1 | F19: 7 | G19: 0 | H19: 6 | I19: 2 | J19: 7
A20: Viso: | C20: 191 | D20: 3557 | E20: 173 | F20: 3390 | G20: 186 | H20: 3771 | I20: 175 | J20: 3203
A23: 1.6 Eismo įvykiuose dalyvavę eismo dalyviai pagal amžiaus grupes, jų pasiskirstymas pagal pasekmes, 2017-2020 m. laikotarpiu
A24: Amžiaus grupė | B24: Visi eismo įvykiuose dalyvavę eismo dalyviai | D24: EĮ kaltininkai | F24: Žuvę eismo dalyviai | H24: Sužeisti eismo dalyviai | N24: Eismo įvykiuose dalyvavę bet nenukentėję arba nežinomi eismo dalyviai
H25: visi sužeistieji | J25: iš jų sunkiai sužeisti** | L25: iš jų lengvai sužeisti
B26: sk. | C26: %* | D26: sk. | E26: %* | F26: sk. | G26: %*** | H26: sk. | I26: %*** | J26: sk. | K26: %*** | L26: sk. | M26: %*** | N26: sk. | O26: %***
A27: ≤ 6 m. | B27: 495 | C27: =B27*100/28258 -> 1.751716328 | D27: 33 | E27: =D27*100/B27 -> 6.666666667 | F27: 1 | G27: =F27*100/B27 -> 0.202020202 | H27: 329 | I27: =H27*100/B27 -> 66.46464646 | J27: 20 | K27: =J27*100/B27 -> 4.04040404 | L27: 309 | M27: =L27*100/B27 -> 62.42424242 | N27: 165 | O27: =N27*100/B27 -> 33.33333333
A28: 7–12 m. | B28: 875 | C28: 3.096468257 | D28: 212 | E28: 24.22857143 | F28: 14 | G28: 1.6 | H28: 752 | I28: 85.94285714 | J28: 48 | K28: 5.485714286 | L28: 704 | M28: 80.45714286 | N28: 109 | O28: 12.45714286
A29: 13-18 m. | B29: 1538 | C29: 5.44270649 | D29: 429 | E29: 27.89336801 | F29: 21 | G29: 1.365409623 | H29: 1197 | I29: 77.8283485 | J29: 88 | K29: 5.721716515 | L29: 1109 | M29: 72.10663199 | N29: 320 | O29: 20.80624187
A30: 19–24 m. | B30: 3774 | C30: 13.35550994 | D30: 1636 | E30: 43.34923158 | F30: 76 | G30: 2.013778484 | H30: 1802 | I30: 47.74774775 | J30: 144 | K30: 3.815580286 | L30: 1658 | M30: 43.93216746 | N30: 1896 | O30: 50.23847377
A31: 25–34 m. | B31: 5407 | C31: 19.13440442 | D31: 2267 | E31: 41.9271315 | F31: 93 | G31: 1.719992602 | H31: 2438 | I31: 45.08969854 | J31: 211 | K31: 3.902348807 | L31: 2227 | M31: 41.18734973 | N31: =2875+1 -> 2876 | O31: 53.19030886
A32: 35–44 m. | B32: 4311 | C32: 15.25585675 | D32: 1719 | E32: 39.87473904 | F32: 91 | G32: 2.110879146 | H32: 1842 | I32: 42.72790536 | J32: 165 | K32: 3.827418232 | L32: 1677 | M32: 38.90048713 | N32: =2377+1 -> 2378 | O32: 55.1612155
A33: 45–54 m. | B33: 3992 | C33: 14.12697289 | D33: 1598 | E33: 40.03006012 | F33: 118 | G33: 2.955911824 | H33: 1738 | I33: 43.53707415 | J33: 166 | K33: 4.158316633 | L33: 1572 | M33: 39.37875752 | N33: 2136 | O33: 53.50701403
A34: 55-64 | B34: 3790 | C34: 13.41213108 | D34: 1448 | E34: 38.20580475 | F34: 117 | G34: 3.08707124 | H34: 1709 | I34: 45.09234828 | J34: 176 | K34: 4.643799472 | L34: 1533 | M34: 40.44854881 | N34: =1963+1 -> 1964 | O34: 51.82058047
A35: 65-74 | B35: 1860 | C35: 6.582206809 | D35: 721 | E35: 38.76344086 | F35: 88 | G35: 4.731182796 | H35: 1009 | I35: 54.24731183 | J35: 103 | K35: 5.537634409 | L35: 906 | M35: 48.70967742 | N35: 763 | O35: 41.02150538
A36: ≥75 m. | B36: 1565 | C36: =B36*100/28258 -> 5.538254654 | D36: 487 | E36: =D36*100/B36 -> 31.11821086 | F36: 100 | G36: =F36*100/B36 -> 6.389776358 | H36: 1078 | I36: =H36*100/B36 -> 68.88178914 | J36: 94 | K36: =J36*100/B36 -> 6.006389776 | L36: 984 | M36: =L36*100/B36 -> 62.87539936 | N36: =386+1 -> 387 | O36: =N36*100/B36 -> 24.7284345
A37: Nenustatyta | B37: 651 | C37: =B37*100/28258 -> 2.303772383 | D37: 291 | E37: =D37*100/B37 -> 44.70046083 | F37: 6 | G37: =F37*100/B37 -> 0.9216589862 | H37: 27 | I37: =H37*100/B37 -> 4.147465438 | J37: 2 | K37: =J37*100/B37 -> 0.3072196621 | L37: 25 | M37: =L37*100/B37 -> 3.840245776 | N37: =39+579 -> 618 | O37: =N37*100/B37 -> 94.93087558
A38: Viso: | B38: =SUM(B27:B37) -> 28258 | C38: =SUM(C27:C37) -> 100 | D38: =SUM(D27:D37) -> 10841 | E38: =D38*100/B38 -> 38.364357 | F38: =SUM(F27:F37) -> 725 | G38: =F38*100/B38 -> 2.565645127 | H38: =SUM(H27:H37) -> 13921 | I38: =H38*100/B38 -> 49.26392526 | J38: =SUM(J27:J37) -> 1217 | K38: =J38*100/B38 -> 4.306744993 | L38: =SUM(L27:L37) -> 12704 | M38: =L38*100/B38 -> 44.95718027 | N38: =SUM(N27:N37) -> 13612 | O38: =N38*100/B38 -> 48.17042961
A39: * nurodomas, procentas nuo visų eismo įvykiuose žuvusių/sužeistų/nenukentėjusių/nežinomų eismo dalyvių
A40: ** eismo įvykyje dalyvavę eismo dalyviai buvo gydomi ligoninėje
A41: *** nurodomas, procentas nuo visų dalyvavusių šio eismo dalyvių tipo

Sheet Eismo dalyviai pagal lytis
A6: 1.7 Eismo įvykiuose žuvusių ir sužeistų eismo dalyvių pasiskirstymas pagal lytį, 2017–2020 m.
A7: Lytis | B7: 2017 m. | D7: 2018 m. | F7: 2019 m. | H7: 2020 m.
B8: Žuvo | C8: Sužeista | D8: Žuvo | E8: Sužeista | F8: Žuvo | G8: Sužeista | H8: Žuvo | I8: Sužeista
A9: moterys | B9: 53 | C9: 1738 | D9: 51 | E9: 1645 | F9: 48 | G9: 1745 | H9: 57 | I9: 1382
A10: vyrai | B10: 135 | C10: 1805 | D10: 121 | E10: 1736 | F10: 138 | G10: 2018 | H10: 117 | I10: 1805
A11: nežinoma | B11: 3 | C11: 14 | D11: 1 | E11: 9 | F11: 0 | G11: 8 | H11: 1 | I11: 16
A13: 1.8 Eismo įvykiuose žuvusių ir sužeistų eismo dalyvių pasiskirstymas pagal eismo dalyvio tipą ir lytį, 2017–2020 m.
A14: ED tipas/lytis | B14: 2017 m. | D14: 2018 m. | F14: 2019 m. | H14: 2020 m.
B15: Žuvo | C15: Sužeista | D15: Žuvo | E15: Sužeista | F15: Žuvo | G15: Sužeista | H15: Žuvo | I15: Sužeista
A16: TP/motociklų/ mopedų vairuotojai | B16: =B17+B18 -> 73 | C16: =C17+C18 -> 1213 | D16: 60 | E16: 1195 | F16: 76 | G16: 1444 | H16: 70 | I16: 1215
A17: moterys | B17: 11 | C17: 411 | D17: 6 | E17: 389 | F17: 10 | G17: 441 | H17: 15 | I17: 357
A18: vyrai | B18: 62 | C18: 802 | D18: 54 | E18: 806 | F18: 66 | G18: 1003 | H18: 55 | I18: 858
A19: Pėstieji | B19: =B20+B21 -> 66 | C19: =C20+C21 -> 930 | D19: 71 | E19: 836 | F19: 59 | G19: 815 | H19: 51 | I19: 665
A20: moterys | B20: 23 | C20: 571 | D20: 29 | E20: 502 | F20: 22 | G20: 486 | H20: 21 | I20: 363
A21: vyrai | B21: 43 | C21: 359 | D21: 42 | E21: 334 | F21: 37 | G21: 329 | H21: 30 | I21: 302
A22: Dviratininkai, paspirtukininkai | B22: =B23+B24 -> 13 | C22: =C23+C24 -> 288 | D22: 9 | E22: 300 | F22: 11 | G22: 332 | H22: 16 | I22: 415
A23: moterys | B23: 2 | C23: 73 | D23: 2 | E23: 100 | F23: 0 | G23: 91 | H23: 1 | I23: 122
A24: vyrai | B24: 11 | C24: 215 | D24: 7 | E24: 200 | F24: 11 | G24: 241 | H24: 15 | I24: 293
A25: Keleiviai | B25: =B26+B27 -> 34 | C25: =C26+C27 -> 1094 | D25: 31 | E25: 1017 | F25: 37 | G25: 1140 | H25: 35 | I25: =I26+I27 -> 862
A26: moterys | B26: 17 | C26: 682 | D26: 14 | E26: 648 | F26: 16 | G26: 722 | H26: 20 | I26: 535
A27: vyrai | B27: 17 | C27: 412 | D27: 17 | E27: 369 | F27: 21 | G27: 418 | H27: 15 | I27: 327
A28: Kiti | B28: =B29+B30 -> 2 | C28: =C29+C30 -> 18 | D28: 1 | E28: 33 | F28: 3 | G28: 32 | H28: 2 | I28: 30
A29: moterys | B29: 0 | C29: 1 | D29: 0 | E29: 6 | F29: 0 | G29: 5 | H29: 0 | I29: 5
A30: vyrai | B30: 2 | C30: 17 | D30: 1 | E30: 27 | F30: 3 | G30: 27 | H30: 2 | I30: 25
A31: Nežinomi | B31: 3 | C31: 14 | D31: 1 | E31: 9 | F31: 0 | G31: 8 | H31: 1 | I31: 16
A32: Viso: | B32: =B16+B19+B22+B25+B28+B31 -> 191 | C32: =C16+C19+C22+C25+C28+C31 -> 3557 | D32: =D16+D19+D22+D25+D28+D31 -> 173 | E32: 3390 | F32: 186 | G32: 3771 | H32: 175 | I32: 3203
A35: 1.9 2017-2020 m. laikotarpiu eismo įvykiuose dalyvavusių eismo dalyvių pasiskirstymas pagal lytį ir eismo įvykių pasekmes
A36: lytis | B36: Visi eismo įvykiuose dalyvavę eismo dalyviai | D36: EĮ kaltininkai | F36: Žuvę ED | H36: Sužeisti eismo dalyviai | N36: Eismo įvykiuose dalyvavę bet nenukentėję arba nežinomi eismo dalyviai
H37: visi sužeistieji | J37: iš jų sunkiai sužeisti** | L37: iš jų lengvai sužeisti
B38: sk. | C38: %* | D38: sk. | E38: %* | F38: sk. | G38: %*** | H38: sk. | I38: %*** | J38: sk. | K38: %*** | L38: sk. | M38: %*** | N38: sk. | O38: %***
A39: moterys | B39: 10252 | C39: =B39*100/28258 -> 36.27999151 | D39: 2809 | E39: =D39*100/10841 -> 25.91089383 | F39: 209 | G39: =F39*100/B39 -> 2.038626609 | H39: 6510 | I39: =H39*100/B39 -> 63.49980492 | J39: 439 | K39: =J39*100/B39 -> 4.282091299 | L39: 6071 | M39: =L39*100/B39 -> 59.21771362 | N39: 3533 | O39: =N39*100/B39 -> 34.46156847
A40: vyrai | B40: 17323 | C40: =B40*100/28258 -> 61.30299384 | D40: 7734 | E40: =D40*100/10841 -> 71.34028226 | F40: 511 | G40: =F40*100/B40 -> 2.949835479 | H40: 7364 | I40: =H40*100/B40 -> 42.50995786 | J40: 775 | K40: =J40*100/B40 -> 4.473820932 | L40: 6589 | M40: =L40*100/B40 -> 38.03613693 | N40: 9448 | O40: =N40*100/B40 -> 54.54020666
A41: nežinoma | B41: 683 | C41: =B41*100/28258 -> 2.417014651 | D41: 298 | E41: =D41*100/10841 -> 2.748823909 | F41: 5 | G41: 0.7320644217 | H41: 47 | I41: 6.881405564 | J41: 3 | K41: =J41*100/B41 -> 0.439238653 | L41: 44 | M41: =L41*100/B41 -> 6.442166911 | N41: 631 | O41: =N41*100/B41 -> 92.38653001
A42: Viso: | B42: =SUM(B39:B41) -> 28258 | C42: =SUM(C39:C41) -> 100 | D42: =SUM(D39:D41) -> 10841 | E42: =D42*100/10841 -> 100 | F42: =SUM(F39:F41) -> 725 | G42: 2.565645127 | H42: =SUM(H39:H41) -> 13921 | I42: 49.26392526 | J42: =SUM(J39:J41) -> 1217 | K42: =J42*100/B42 -> 4.306744993 | L42: =SUM(L39:L41) -> 12704 | M42: =L42*100/B42 -> 44.95718027 | N42: =SUM(N39:N41) -> 13612 | O42: =N42*100/B42 -> 48.17042961
A43: * nurodomas, procentas nuo visų eismo įvykiuose žuvusių/sužeistų/nenukentėjusių/nežinomų eismo dalyvių/kaltininkų
A44: ** eismo įvykyje dalyvavę eismo dalyviai buvo gydomi ligoninėje
A45: *** nurodomas, procentas nuo visų dalyvavusių šio eismo dalyvių tipo

Sheet Eismo įvykių kaltininkai
A6: 1.10 Įskaitinių eismo įvykių kaltininkų grupės pagal eismo dalyvių tipus, 2017–2020 m.
A7: Eismo įvykių kaltininkai | B7: Eismo įvykių kaltininkai
B8: 2017 m. | D8: 2018 m. | F8: 2019 m. | H8: 2020 m.
B9: sk. | C9: % | D9: sk. | E9: % | F9: sk. | G9: % | H9: sk. | I9: %
A10: TP vairuotojai | B10: 2170 | C10: 71.12422157 | D10: 2115 | E10: 72.30769231 | F10: 2236 | G10: 70.09404389 | H10: 1898 | I10: 67.16206653
A11: Motociklų vairuotojai | B11: 105 | C11: 3.441494592 | D11: 119 | E11: 4.068376068 | F11: 149 | G11: 4.670846395 | H11: 144 | I11: 5.095541401
A12: Mopedų vairuotojai | B12: 40 | C12: 1.311045559 | D12: 31 | E12: 1.05982906 | F12: 43 | G12: 1.347962382 | H12: 36 | I12: 1.27388535
A13: Pėstieji | B13: 227 | C13: 7.440183546 | D13: 229 | E13: 7.829059829 | F13: 211 | G13: 6.614420063 | H13: 149 | I13: 5.272469922
A14: Dviratininkai | B14: 151 | C14: 4.949196985 | D14: 156 | E14: 5.333333333 | F14: 151 | G14: 4.73354232 | H14: 153 | I14: 5.414012739
A15: Paspirtukininkai | B15: 1 | C15: 0.03277613897 | D15: 3 | E15: 0.1025641026 | F15: 7 | G15: 0.2194357367 | H15: 10 | I15: 0.3538570418
A16: El. paspirtukų naudotojai | B16: 0 | C16: 0 | D16: 0 | E16: 0 | F16: 14 | G16: 0.4388714734 | H16: 26 | I16: 0.9200283086
A17: El. dviračių naudotojai | B17: 0 | C17: 0 | D17: 2 | E17: 0.06837606838 | F17: 4 | G17: 0.1253918495 | H17: 7 | I17: 0.2476999292
A18: Kiti ED | B18: 61 | C18: 1.999344477 | D18: 53 | E18: 1.811965812 | F18: 79 | G18: 2.476489028 | H18: 61 | I18: 2.158527955
A19: Kaltininkai ne ED arba nenurodyta | B19: 296 | C19: 9.701737135 | D19: 217 | E19: 7.418803419 | F19: 296 | G19: 9.278996865 | H19: 342 | I19: 12.10191083
A20: Viso : | B20: 3051 | C20: 100 | D20: 2925 | E20: 100 | F20: 3190 | G20: 100 | H20: 2826 | I20: 100
A23: 1.11.1 Eismo įvykių kaltininkų pasiskirstymas pagal eismo dalyvio tipą ir blaivumą, 2017-2020 m.
A24: Eismo dalyviai | B24: 2017 m. EĮ kaltininkai | E24: 2018 m. EĮ kaltininkai | H24: 2019m. EĮ kaltininkai | K24: 2020 m. EĮ kaltininkai
B25: visi | C25: iš jų neblaivūs | E25: visi | F25: iš jų neblaivūs | H25: visi | I25: iš jų neblaivūs | K25: visi | L25: iš jų neblaivūs
B26: sk. | C26: sk. | D26: % | E26: sk. | F26: sk. | G26: % | H26: sk. | I26: sk. | J26: % | K26: sk. | L26: sk. | M26: %
A27: Automobilių vairuotojai | B27: 2170 | C27: 163 | D27: =C27*100/B27 -> 7.511520737 | E27: 2115 | F27: 173 | G27: =F27*100/E27 -> 8.179669031 | H27: 2236 | I27: 178 | J27: =I27*100/H27 -> 7.960644007 | K27: 1898 | L27: 214 | M27: =L27*100/K27 -> 11.27502634
A28: Motociklų vairuotojai | B28: 105 | C28: 17 | D28: =C28*100/B28 -> 16.19047619 | E28: 119 | F28: 13 | G28: =F28*100/E28 -> 10.92436975 | H28: 149 | I28: 9 | J28: =I28*100/H28 -> 6.040268456 | K28: 144 | L28: 18 | M28: =L28*100/K28 -> 12.5
A29: Mopedų vairuotojai | B29: 40 | C29: 7 | D29: 17.5 | E29: 31 | F29: 8 | G29: 25.80645161 | H29: 43 | I29: 10 | J29: 23.25581395 | K29: 36 | L29: 12 | M29: 33.33333333
A30: Keleiviai | B30: 19 | C30: 4 | D30: 21.05263158 | E30: 20 | F30: 3 | G30: 15 | H30: 37 | I30: 7 | J30: 18.91891892 | K30: 16 | L30: 1 | M30: 6.25
A31: Pėstieji | B31: 227 | C31: 42 | D31: 18.50220264 | E31: 229 | F31: 63 | G31: 27.51091703 | H31: 211 | I31: 50 | J31: 23.69668246 | K31: 149 | L31: 32 | M31: 21.47651007
A32: Dviratininkai | B32: 151 | C32: 23 | D32: 15.23178808 | E32: 156 | F32: 22 | G32: 14.1025641 | H32: 151 | I32: 29 | J32: 19.20529801 | K32: 153 | L32: 27 | M32: 17.64705882
A33: Paspirtukininkai | B33: 1 | C33: 0 | D33: 0 | E33: 3 | F33: 0 | G33: 0 | H33: 7 | I33: 0 | J33: 0 | K33: 10 | L33: 0 | M33: 0
A34: El. paspirtukų naudotojai | B34: 0 | C34: 0 | D34: 0 | E34: 0 | F34: 0 | G34: 0 | H34: 14 | I34: 0 | J34: 0 | K34: 26 | L34: 5 | M34: 19.23076923
A35: El. dviračių naudotojai | B35: 0 | C35: 0 | D35: 0 | E35: 2 | F35: 0 | G35: 0 | H35: 4 | I35: 1 | J35: 25 | K35: 7 | L35: 2 | M35: 28.57142857
A36: Kiti ED (vairavimo instruktoriai, raiteliai, asmenys varantys gyvulius, nežinomi) | B36: 42 | C36: 5 | D36: 11.9047619 | E36: 33 | F36: 4 | G36: 12.12121212 | H36: 42 | I36: 5 | J36: 11.9047619 | K36: 45 | L36: 1 | M36: 2.222222222
A37: Viso EĮ skaičius, kai kaltininkai ED: | B37: =SUM(B27:B36) -> 2755 | C37: =SUM(C27:C36) -> 261 | D37: =C37*100/B37 -> 9.473684211 | E37: 2708 | F37: 286 | G37: 10.56129985 | H37: 2894 | I37: 289 | J37: 9.9861783 | K37: 2484 | L37: 312 | M37: 12.56038647
A38: EĮ sk., kurių kaltininkai ne ED arba nenurodyta | B38: 296 | C38: - | D38: - | E38: 217 | F38: - | G38: - | H38: 296 | I38: - | J38: - | K38: 342 | L38: - | M38: -
A39: Viso : | B39: =B27+B28+B29+B30+B31+B32+B33+B34+B35+B36+B38 -> 3051 | C39: =C27+C28+C29+C30+C31+C32+C33+C34+C35+C36 -> 261 | D39: 10 | E39: =E27+E28+E29+E30+E31+E32+E33+E34+E35+E36+E38 -> 2925 | F39: =F27+F28+F29+F30+F31+F32+F33+F34+F35+F36 -> 286 | G39: 11 | H39: =H27+H28+H29+H30+H31+H32+H33+H34+H35+H36+H38 -> 3190 | I39: =I27+I28+I29+I30+I31+I32+I33+I34+I35+I36 -> 289 | J39: 10 | K39: =K27+K28+K29+K30+K31+K32+K33+K34+K35+K36+K38 -> 2826 | L39: =L27+L28+L29+L30+L31+L32+L33+L34+L35+L36 -> 312 | M39: 13
A41: 1.11.2 Eismo įvykių pasiskirstymas pagal neblaivių kaltininkų eismo dalyvio tipą ir tuose eismo įvykiuose nukentėję eismo dalyviai, 2017-2020 m.
A42: Eismo įvykių kaltininkai | B42: 2017 m. | E42: 2018 m. | H42: 2019 m. | K42: 2020 m.
B43: Eismo įvykiai | C43: Žuvo | D43: Sužeista | E43: Eismo įvykiai | F43: Žuvo | G43: Sužeista | H43: Eismo įvykiai | I43: Žuvo | J43: Sužeista | K43: Eismo įvykiai | L43: Žuvo | M43: Sužeista
A44: TP vairuotojai | B44: 163 | C44: 14 | D44: 228 | E44: 173 | F44: 21 | G44: 222 | H44: 178 | I44: 21 | J44: 264 | K44: 214 | L44: 19 | M44: 259
A45: Motociklų vairuotojai | B45: 17 | C45: 1 | D45: 19 | E45: 13 | F45: 1 | G45: 13 | H45: 9 | I45: 1 | J45: 9 | K45: 18 | L45: 1 | M45: 22
A46: Mopedų vairuotojai | B46: 7 | C46: 0 | D46: 7 | E46: 8 | F46: 0 | G46: 9 | H46: 10 | I46: 0 | J46: 13 | K46: 12 | L46: 0 | M46: 12
A47: Pėstieji | B47: 42 | C47: 5 | D47: 41 | E47: 63 | F47: 15 | G47: 50 | H47: 50 | I47: 4 | J47: 46 | K47: 32 | L47: 5 | M47: 29
A48: Dviratininkai | B48: 23 | C48: 4 | D48: 21 | E48: 22 | F48: 1 | G48: 21 | H48: 29 | I48: 3 | J48: 28 | K48: 27 | L48: 0 | M48: 28
A49: Paspirtukininkai | B49: 0 | C49: 0 | D49: 0 | E49: 0 | F49: 0 | G49: 0 | H49: 0 | I49: 0 | J49: 0 | K49: 0 | L49: 0 | M49: 0
A50: El. paspirtukų naudotojai | B50: 0 | C50: 0 | D50: 0 | E50: 0 | F50: 0 | G50: 0 | H50: 0 | I50: 0 | J50: 0 | K50: 5 | L50: 0 | M50: 5
A51: El. dviračių naudotojai | B51: 0 | C51: 0 | D51: 0 | E51: 0 | F51: 0 | G51: 0 | H51: 1 | I51: 0 | J51: 1 | K51: 2 | L51: 0 | M51: 2
A52: Kiti ED | B52: =5+4 -> 9 | C52: 1 | D52: 9 | E52: =4+3 -> 7 | F52: 2 | G52: 7 | H52: =5+7 -> 12 | I52: 2 | J52: 15 | K52: =1+1 -> 2 | L52: 0 | M52: 3
A53: Viso: | B53: 261 | C53: 25 | D53: 325 | E53: 286 | F53: 40 | G53: 322 | H53: 289 | I53: 31 | J53: 376 | K53: =SUM(K44:K52) -> 312 | L53: 25 | M53: 360
A58: 1.12 2020 m. eismo įvykių pasiskirstymas pagal eismo įvykio rūšį, kaltininkų grupes ir jų blaivumą
A59: Eismo įvykių kaltininkai | B59: Viso EĮ 2020 m. | C59: Viso EĮ kur kalti ED | E59: TP vairuotojai (TP, mopedų, motociklų) | H59: Pėstieji | K59: Mechaninių paspirtukų naudotojai | N59: Dviratininkai | Q59: Dviračių elektrinių priem. naudotojai (el.dviračių vairuotojai ir keleiviai, el.paspirtukų vairuotojai ir keleiviai, el. vienaračių vairuotojai) | T59: Kiti ED (vairavimo instruktoriai, raiteliai, asmenys varantys gyvulius, keleiviai, nežinomi) | W59: Kaltininkai ne ED arba nenurodyta
E60: 2020 m. viso EĮ /iš jų dėl neblaivių ED kaltės
A61: Eismo įvykio rūšis | C61: sk. | D61: % | E61: visi kaltininkai | F61: % kaltininkų | G61: iš jų neblaivūs kaltininkai | H61: visi kaltininkai | I61: % kaltininkų | J61: iš jų neblaivūs kaltininkai | K61: visi kaltininkai | L61: % kaltininkų | M61: iš jų neblaivūs kaltininkai | N61: visi kaltininkai | O61: % kaltininkų | P61: iš jų neblaivūs kaltininkai | Q61: visi kaltininkai | R61: % kaltininkų | S61: iš jų neblaivūs kaltininkai | T61: visi kaltininkai | U61: % kaltininkų | V61: iš jų neblaivūs kaltininkai | W61: viso | X61: % kaltininkų
A62: Susidūrimas | B62: 808 | C62: 777 | D62: 96.16336634 | E62: 760 | F62: 94.05940594 | G62: 72 | T62: 17 | U62: 2.103960396 | V62: 1 | W62: 31 | X62: 3.836633663
A63: Susidūrimas su motociklu | B63: 73 | C63: 63 | D63: 86.30136986 | E63: 60 | F63: 82.19178082 | G63: 3 | N63: 1 | O63: 1.369863014 | P63: 1 | T63: 2 | U63: 2.739726027 | W63: 10 | X63: 13.69863014
A64: Susidūrimas su mopedu | B64: 25 | C64: 24 | D64: 96 | E64: 22 | F64: 88 | G64: 1 | T64: 2 | U64: 8 | W64: 1 | X64: 4
A65: Susidūrimas su dviračiu | B65: 330 | C65: 289 | D65: 87.57575758 | E65: 159 | F65: 48.18181818 | G65: 5 | K65: 2 | L65: 0.6060606061 | N65: 113 | O65: 34.24242424 | P65: 19 | Q65: 11 | R65: 3.333333333 | T65: 4 | U65: 1.212121212 | W65: 41 | X65: 12.42424242
A66: Užvažiavimas ant pėsčiojo | B66: 691 | C66: 592 | D66: 85.67293777 | E66: 412 | F66: 59.62373372 | G66: 10 | H66: 146 | I66: 21.12879884 | J66: 31 | K66: 1 | L66: 0.1447178003 | N66: 17 | O66: 2.460202605 | P66: 3 | Q66: 6 | R66: 0.8683068017 | T66: 10 | U66: 1.447178003 | W66: 99 | X66: 14.32706223
A67: Užvažiavimas ant kliūties | B67: 75 | C67: 70 | D67: 93.33333333 | E67: 68 | F67: 90.66666667 | G67: 21 | N67: 1 | O67: 1.333333333 | T67: 1 | U67: 1.333333333 | W67: 5 | X67: 6.666666667
A68: Užvažiavimas ant gyvūno | B68: 17 | C68: 7 | D68: 41.17647059 | E68: 5 | F68: 29.41176471 | G68: 1 | T68: 2 | U68: 11.76470588 | W68: 10 | X68: 58.82352941
A69: Apvirtimas | B69: 267 | C69: 241 | D69: 90.26217228 | E69: 232 | F69: 86.89138577 | G69: 59 | H69: 1 | I69: 0.3745318352 | N69: 2 | O69: 0.7490636704 | P69: 1 | Q69: 3 | R69: 1.123595506 | S69: 3 | T69: 3 | U69: 1.123595506 | W69: 26 | X69: 9.737827715
A70: Susidūrimas su stovinčia TP | B70: 59 | C70: 50 | D70: 84.74576271 | E70: 42 | F70: 71.18644068 | G70: 6 | I70: 0 | K70: 1 | L70: 1.694915254 | N70: 4 | O70: 6.779661017 | P70: 1 | T70: 3 | U70: 5.084745763 | W70: 9 | X70: 15.25423729
A71: Susidūrimas su bėgine TP | B71: 1 | C71: 1 | D71: 100 | E71: 1 | F71: 100
A72: Kiti eismo įvykiai | B72: 435 | C72: 334 | D72: 76.7816092 | E72: 306 | F72: 70.34482759 | G72: 66 | H72: 2 | I72: 0.4597701149 | J72: 1 | N72: 8 | O72: 1.83908046 | P72: 1 | Q72: 1 | R72: 0.2298850575 | S72: 1 | T72: 17 | U72: 3.908045977 | V72: 1 | W72: 101 | X72: 23.2183908
A73: Susidūrimas dviračio ir paspirtuko | B73: 6 | C73: 3 | D73: 50 | K73: 2 | L73: 33.33333333 | Q73: 1 | R73: 16.66666667 | W73: 3 | X73: 50
A74: Susidūrimas su paspirtuku | B74: 30 | C74: 26 | D74: 86.66666667 | E74: 11 | F74: 36.66666667 | K74: 4 | L74: 13.33333333 | Q74: 11 | R74: 36.66666667 | S74: 3 | W74: 4 | X74: 13.33333333
A75: Susidūrimas tarp dviračių | B75: 9 | C75: 7 | D75: 77.77777778 | N75: 7 | O75: 77.77777778 | P75: 1 | W75: 2 | X75: 22.22222222
A76: Viso: | B76: 2826 | C76: 2484 | D76: 87.89808917 | E76: 2078 | F76: 73.53149328 | G76: 244 | H76: 149 | I76: 5.272469922 | J76: 32 | K76: 10 | L76: 0.3538570418 | M76: 0 | N76: 153 | O76: 5.414012739 | P76: 27 | Q76: 33 | R76: 1.167728238 | S76: 7 | T76: 61 | U76: 2.158527955 | V76: 2 | W76: 342 | X76: 12.10191083

Sheet Eismo įvykių kaltininkų stažas
A6: 1.13 Eismo įvykiuose dalyvavusių motorinių transporto priemonių vairuotojų kaltininkų vairavimo stažas, 2017–2020 m.
A7: Stažas, m. | B7: EĮ skaičius
B8: 2017 m. | C8: 2018 m. | D8: 2019 m. | E8: 2020 m.
A9: iki 1 | B9: 141 | C9: 148 | D9: 127 | E9: 85
A10: 1 | B10: 143 | C10: 132 | D10: 172 | E10: 148
A11: 2 | B11: 89 | C11: 102 | D11: 96 | E11: 90
A12: 3 | B12: 86 | C12: 80 | D12: 84 | E12: 86
A13: 4 | B13: 77 | C13: 52 | D13: 69 | E13: 58
A14: 5 | B14: 80 | C14: 88 | D14: 86 | E14: 78
A15: 6 | B15: 64 | C15: 48 | D15: 54 | E15: 42
A16: 7 | B16: 47 | C16: 52 | D16: 53 | E16: 49
A17: 8 | B17: 42 | C17: 59 | D17: 58 | E17: 45
A18: 9 | B18: 57 | C18: 46 | D18: 43 | E18: 35
A19: 10 | B19: 117 | C19: 116 | D19: 126 | E19: 84
A20: 11 | B20: 44 | C20: 42 | D20: 50 | E20: 33
A21: 12 | B21: 56 | C21: 61 | D21: 55 | E21: 51
A22: 13 | B22: 37 | C22: 35 | D22: 41 | E22: 23
A23: 14 | B23: 29 | C23: 27 | D23: 33 | E23: 34
A24: 15 | B24: 61 | C24: 56 | D24: 84 | E24: 66
A25: 16 | B25: 42 | C25: 42 | D25: 41 | E25: 29
A26: 17 | B26: 59 | C26: 32 | D26: 34 | E26: 28
A27: 18 | B27: 59 | C27: 54 | D27: 39 | E27: 24
A28: 19 | B28: 49 | C28: 51 | D28: 36 | E28: 23
A29: 20 | B29: 109 | C29: 81 | D29: 123 | E29: 98
A30: 21 | B30: 57 | C30: 52 | D30: 42 | E30: 27
A31: 22 | B31: 53 | C31: 50 | D31: 55 | E31: 56
A32: 23 | B32: 47 | C32: 53 | D32: 50 | E32: 41
A33: 24 | B33: 45 | C33: 52 | D33: 69 | E33: 65
A34: 25 | B34: 25 | C34: 49 | D34: 92 | E34: 65
A35: 26 | B35: 23 | C35: 25 | D35: 18 | E35: 44
A36: 27 | B36: 21 | C36: 29 | D36: 18 | E36: 30
A37: 28 | B37: 17 | C37: 28 | D37: 22 | E37: 18
A38: 29 | B38: 24 | C38: 19 | D38: 19 | E38: 12
A39: 30 | B39: 52 | C39: 53 | D39: 55 | E39: 77
A40: 31 | B40: 20 | C40: 11 | D40: 17 | E40: 15
A41: 32 | B41: 28 | C41: 12 | D41: 20 | E41: 12
A42: 33 | B42: 22 | C42: 20 | D42: 12 | E42: 14
A43: 34 | B43: 26 | C43: 21 | D43: 20 | E43: 13
A44: 35 | B44: 22 | C44: 22 | D44: 27 | E44: 21
A45: 36 | B45: 18 | C45: 20 | D45: 18 | E45: 10
A46: 37 | B46: 11 | C46: 11 | D46: 12 | E46: 7
A47: 38 | B47: 17 | C47: 19 | D47: 7 | E47: 6
A48: 39 | B48: 12 | C48: 16 | D48: 14 | E48: 7
A49: 40 | B49: 18 | C49: 22 | D49: 28 | E49: 28
A50: virš 40 | B50: 94 | C50: 109 | D50: 122 | E50: 67
A51: Nenurodyta | B51: 175 | C51: 168 | D51: 187 | E51: 234
A52: Viso: | B52: 2315 | C52: 2265 | D52: 2428 | E52: 2078

Sheet Eismo įvykiai užm-gyv
A6: 2.1 2017–2020 m. įvykusių eismo įvykių ir nukentėjusių pasiskirstymas automagistralėse ir greitkeliuose, gyvenamojoje ir užmiesčio teritorijose
A7: Teritorija | B7: 2017 m. | E7: 2018 m. | H7: 2019 m. | K7: 2020 m. | N7: 2017-2020 m. vidurkis per metus
B8: EĮ | C8: Žuvo | D8: Sužeista | E8: EĮ | F8: Žuvo | G8: Sužeista | H8: EĮ | I8: Žuvo | J8: Sužeista | K8: EĮ | L8: Žuvo | M8: Sužeista | N8: EĮ | O8: Žuvo | P8: Viso sužeista | Q8: iš jų sunkiai sužeista | R8: iš jų lengvai sužeista | S8: Rizika nukentėti (žūti ir būti sunkiai susižeistam)
A9: Automagistralės ir greitkeliai (A1 ir A2) | B9: 77 | C9: 13 | D9: 89 | E9: 51 | F9: 5 | G9: 64 | H9: 87 | I9: 6 | J9: 120 | K9: 67 | L9: 7 | M9: 86 | N9: =(B9+E9+H9+K9)/4 -> 70.5 | O9: 7.75 | P9: =359/4 -> 89.75 | Q9: =41/4 -> 10.25 | R9: =318/4 -> 79.5 | S9: =(Q9+O9)*100/N9 -> 25.53191489
A10: Užmiestis | B10: 673 | C10: 94 | D10: 895 | E10: 694 | F10: 97 | G10: 905 | H10: 767 | I10: 91 | J10: 1015 | K10: 709 | L10: 99 | M10: 880 | N10: 710.75 | O10: 95.25 | P10: =3695/4 -> 923.75 | Q10: =498/4 -> 124.5 | R10: =3197/4 -> 799.25 | S10: =(Q10+O10)*100/N10 -> 30.91804432
A11: Gyvenvietė | B11: 2301 | C11: 84 | D11: 2573 | E11: 2180 | F11: 71 | G11: 2421 | H11: 2336 | I11: 89 | J11: 2636 | K11: 2050 | L11: 69 | M11: 2237 | N11: 2216.75 | O11: 78.25 | P11: =9867/4 -> 2466.75 | Q11: =678/4 -> 169.5 | R11: =9189/4 -> 2297.25 | S11: 11.17627157
A12: Viso: | B12: =SUM(B9:B11) -> 3051 | C12: 191 | D12: 3557 | E12: 2925 | F12: 173 | G12: 3390 | H12: 3190 | I12: 186 | J12: 3771 | K12: 2826 | L12: 175 | M12: 3203 | N12: 2998 | O12: 181.25 | P12: =SUM(P9:P11) -> 3480.25 | Q12: =SUM(Q9:Q11) -> 304.25 | R12: =SUM(R9:R11) -> 3176 | S12: 16.19412942
A13: * automagistralėms ir greitkeliams priskirti A1 ir A2 keliai, kitų kelių (A5 ir A9) ruožai įgavo greitkelio statusą skirtingu metu, todėl čia neįtraukti
A14: ** gyvenvietėms priskirti eismo įvykiai, kuriems policijos pateiktuose duomenyse yra nurodytas adresas

Sheet Eismo įvykiai mag-krašt-rajon
A6: 2.2 Eismo įvykių ir nukentėjusiųjų pasiskirstymas valstybinės ir vietinės reikšmės keliuose, 2017–2020 m.
A7: Kelio reikšmė | B7: 2017 m. | E7: 2018 m. | H7: 2019 m. | K7: 2020 m. | N7: Kelių ilgis, km*** | O7: 2020 m. 100-ui kelio kilometrų tenka:
B8: EĮ | C8: Žuvo | D8: Sužeista | E8: EĮ | F8: Žuvo | G8: Sužeista | H8: EĮ | I8: Žuvo | J8: Sužeista | K8: EĮ | L8: Žuvo | M8: Sužeista | O8: EĮ/100km | P8: Žuvusių/ 100km | Q8: Sužeistų/ 100km
A9: Valstybinės reikšmės keliai*
A10: Magistraliniai | B10: 261 | C10: 48 | D10: 316 | E10: 264 | F10: 34 | G10: 368 | H10: 321 | I10: 40 | J10: 422 | K10: 253 | L10: 37 | M10: 323 | N10: 1751.28 | O10: =K10*100/N10 -> 14.44657622 | P10: =L10*100/N10 -> 2.112740396 | Q10: =M10*100/N10 -> 18.44365264
A11: Krašto | B11: 435 | C11: 58 | D11: 591 | E11: 449 | F11: 47 | G11: 597 | H11: 561 | I11: 48 | J11: 733 | K11: 421 | L11: 48 | M11: 520 | N11: 4927.82 | O11: =K11*100/N11 -> 8.543331534 | P11: =L11*100/N11 -> 0.9740615526 | Q11: =M11*100/N11 -> 10.55233349
A12: Rajoniniai | B12: 286 | C12: 21 | D12: 368 | E12: 355 | F12: 37 | G12: 409 | H12: 415 | I12: 32 | J12: 515 | K12: 377 | L12: 42 | M12: 432 | N12: 14560.37 | O12: =K12*100/N12 -> 2.589219917 | P12: =L12*100/N12 -> 0.2884542082 | Q12: =M12*100/N12 -> 2.96695757
A13: Vietinės reikšmės keliai** | B13: 2069 | C13: 64 | D13: 2282 | E13: 1857 | F13: 55 | G13: 2016 | H13: 1893 | I13: 66 | J13: 2101 | K13: 1775 | L13: 48 | M13: 1928 | N13: 70464 | O13: =K13*100/N13 -> 2.519016803 | P13: =L13*100/N13 -> 0.06811989101 | Q13: =M13*100/N13 -> 2.736148955
A14: Viso: | B14: =SUM(B10:B13) -> 3051 | C14: 191 | D14: 3557 | E14: 2925 | F14: 173 | G14: 3390 | H14: 3190 | I14: 186 | J14: 3771 | K14: =SUM(K10:K13) -> 2826 | L14: =SUM(L10:L13) -> 175 | M14: =SUM(M10:M13) -> 3203
A15: * valstybinės reikšmės keliai, priklausantys LAKD | N15: *** Valstybinės reikšmės automobilių kelių sąrašas (šaltinis: Lietuvos Respublikos Vyriausybės nutarimas 1999 m. birželio 9 d. Nr. 757, suvestinė redakcija nuo 2020 kovo 23 d.). *** Vietinės reikšmės kelių, gatvių ilgiai (šaltinis: Statistikos departamentas, www.stat.gov.lt, 2021-04-02).
A16: ** savivaldybėms priklausantys keliai ir gatvės
A18: 2.3 Valstybinė ir vietinės reikšmės kelių avaringumo rodikliai 2020 m.
A19: Kelio reikšmė | B19: Kelių ilgis, km | C19: EĮ | F19: Žuvo | J19: Sužeista
C20: viso | D20: Dalis nuo bendro EĮ skaičiaus, % | E20: EĮ skaičius, tenkantis 1 km | F20: viso | G20: Dalis nuo bendro žuvusiųjų skaičiaus, % | H20: Žuvo 100 EĮ | I20: Žuvusiųjų skaičius, tenkantis 1 km | J20: viso | K20: Dalis nuo bendro sužeistųjų skaičiaus, % | L20: Sužeista 100 EĮ | M20: Sužeistųjų skaičius, tenkantis 1 km
A21: Magistraliniai | B21: 1751.28 | C21: 253 | D21: =C21/$C$25 -> 0.08952583156 | E21: =C21/B21 -> 0.1444657622 | F21: 37 | G21: =F21/$F$25 -> 0.2114285714 | H21: =F21/C21*100 -> 14.62450593 | I21: =F21/B21 -> 0.02112740396 | J21: 323 | K21: =J21/$J$25 -> 0.1008429597 | L21: =J21/C21*100 -> 127.6679842 | M21: =J21/B21 -> 0.1844365264
A22: Krašto | B22: 4927.82 | C22: 421 | D22: =C22/$C$25 -> 0.1489738146 | E22: =C22/B22 -> 0.08543331534 | F22: 48 | G22: =F22/$F$25 -> 0.2742857143 | H22: =F22/C22*100 -> 11.40142518 | I22: =F22/B22 -> 0.009740615526 | J22: 520 | K22: =J22/$J$25 -> 0.1623477989 | L22: =J22/C22*100 -> 123.5154394 | M22: =J22/B22 -> 0.1055233349
A23: Rajoniniai | B23: 14560.37 | C23: 377 | D23: 0.1334041047 | E23: =C23/B23 -> 0.02589219917 | F23: 42 | G23: 0.24 | H23: =F23/C23*100 -> 11.14058355 | I23: =F23/B23 -> 0.002884542082 | J23: 432 | K23: 0.134873556 | L23: =J23/C23*100 -> 114.5888594 | M23: =J23/B23 -> 0.0296695757
A24: Vietinės reikšmės | B24: 70464 | C24: 1775 | D24: 0.6280962491 | E24: =C24/B24 -> 0.02519016803 | F24: 48 | G24: 0.2742857143 | H24: =F24/C24*100 -> 2.704225352 | I24: =F24/B24 -> 0.0006811989101 | J24: 1928 | K24: 0.6019356853 | L24: =J24/C24*100 -> 108.6197183 | M24: =J24/B24 -> 0.02736148955
A25: Viso: | B25: =SUM(B21:B24) -> 91703.47 | C25: =SUM(C21:C24) -> 2826 | D25: 1 | E25: =SUM(E21:E24) -> 0.2809814447 | F25: 175 | G25: 1 | H25: 39.87074001 | I25: 0.03443376047 | J25: 3203 | K25: 1 | L25: 474.3920013 | M25: 0.3469909265

Sheet Eismo įvykiai savivaldybėse
A6: 2.4 Eismo įvykiai ir nukentėjusieji savivaldybėse, 2017–2020 m.
A7: Apskritis | B7: Savivaldybė | C7: 2017 m. | H7: 2018 m. | M7: 2019 m. | R7: 2020 m.
C8: EĮ | D8: Žuvo | E8: Sužeista | F8: EĮ dėl neblaivių vairuotojų kaltės | G8: EĮ dėl apsvaigusių nuo narkotinių ar kitų medžiagų vairuotojų kaltės | H8: EĮ | I8: Žuvo | J8: Sužeista | K8: EĮ dėl neblaivių vairuotojų kaltės | L8: EĮ dėl apsvaigusių nuo narkotinių ar kitų medžiagų vairuotojų kaltės | M8: EĮ | N8: Žuvo | O8: Sužeista | P8: EĮ dėl neblaivių vairuotojų kaltės | Q8: EĮ dėl apsvaigusių nuo narkotinių ar kitų medžiagų vairuotojų kaltės | R8: EĮ | S8: Žuvo | T8: Sužeista | U8: EĮ dėl neblaivių vairuotojų kaltės | V8: EĮ dėl apsvaigusių nuo narkotinių ar kitų medžiagų vairuotojų kaltės
A10: Alytaus | B10: Alytaus m. sav. | C10: 36 | D10: 1 | E10: 39 | F10: 1 | G10: 0 | H10: 45 | I10: 3 | J10: 55 | K10: 1 | L10: 0 | M10: 45 | N10: 0 | O10: 54 | P10: 0 | Q10: 0 | R10: 37 | S10: 0 | T10: 39 | U10: 1 | V10: 0
B11: Alytaus r. sav. | C11: 45 | D11: 7 | E11: 70 | F11: 3 | G11: 0 | H11: 29 | I11: 3 | J11: 54 | K11: 2 | L11: 0 | M11: 32 | N11: 2 | O11: 34 | P11: 1 | Q11: 0 | R11: 36 | S11: 3 | T11: 45 | U11: 2 | V11: 0
B12: Druskininkų sav. | C12: 5 | D12: 1 | E12: 7 | F12: 0 | G12: 0 | H12: 8 | I12: 2 | J12: 7 | K12: 0 | L12: 0 | M12: 8 | N12: 1 | O12: 7 | P12: 0 | Q12: 0 | R12: 11 | S12: 1 | T12: 11 | U12: 0 | V12: 0
B13: Lazdijų r. sav. | C13: 17 | D13: 5 | E13: 26 | F13: 0 | G13: 0 | H13: 14 | I13: 0 | J13: 16 | K13: 1 | L13: 0 | M13: 10 | N13: 0 | O13: 14 | P13: 0 | Q13: 0 | R13: 13 | S13: 2 | T13: 3 | U13: 2 | V13: 0
B14: Varėnos r. sav. | C14: 19 | D14: 1 | E14: 28 | F14: 3 | G14: 0 | H14: 20 | I14: 1 | J14: 29 | K14: 2 | L14: 0 | M14: 27 | N14: 2 | O14: 29 | P14: 3 | Q14: 0 | R14: 27 | S14: 1 | T14: 32 | U14: 0 | V14: 0
B15: Viso: | C15: =SUM(C10:C14) -> 122 | D15: =SUM(D10:D14) -> 15 | E15: 170 | F15: 7 | G15: 0 | H15: 116 | I15: 9 | J15: 161 | K15: 6 | L15: 0 | M15: 122 | N15: 5 | O15: 138 | P15: 4 | Q15: 0 | R15: 124 | S15: 7 | T15: 130 | U15: 5 | V15: 0
A16: Kauno | B16: Birštono sav. | C16: 5 | D16: 0 | E16: 8 | F16: 0 | G16: 0 | H16: 4 | I16: 1 | J16: 8 | K16: 0 | L16: 0 | M16: 3 | N16: 0 | O16: 3 | P16: 0 | Q16: 0 | R16: 6 | S16: 1 | T16: 6 | U16: 0 | V16: 0
B17: Jonavos r. sav. | C17: 30 | D17: 7 | E17: 35 | F17: 2 | G17: 0 | H17: 17 | I17: 0 | J17: 23 | K17: 0 | L17: 0 | M17: 68 | N17: 4 | O17: 87 | P17: 1 | Q17: 0 | R17: 59 | S17: 6 | T17: 66 | U17: 2 | V17: 0
B18: Kaišiadorių r. sav. | C18: 28 | D18: 1 | E18: 34 | F18: 4 | G18: 0 | H18: 20 | I18: 1 | J18: 22 | K18: 3 | L18: 0 | M18: 39 | N18: 1 | O18: 50 | P18: 1 | Q18: 0 | R18: 35 | S18: 2 | T18: 53 | U18: 0 | V18: 0
B19: Kauno m. sav. | C19: 415 | D19: 9 | E19: 467 | F19: 3 | G19: 0 | H19: 382 | I19: 13 | J19: 422 | K19: 5 | L19: 0 | M19: 375 | N19: 13 | O19: 412 | P19: 5 | Q19: 0 | R19: 301 | S19: 5 | T19: 326 | U19: 11 | V19: 0
B20: Kauno r. sav. | C20: 66 | D20: 5 | E20: 80 | F20: 1 | G20: 0 | H20: 83 | I20: 6 | J20: 105 | K20: 4 | L20: 0 | M20: 88 | N20: 4 | O20: 120 | P20: 6 | Q20: 0 | R20: 98 | S20: 7 | T20: 119 | U20: 3 | V20: 0
B21: Kėdainių r. sav. | C21: 36 | D21: 7 | E21: 42 | F21: 4 | G21: 0 | H21: 43 | I21: 5 | J21: 46 | K21: 4 | L21: 0 | M21: 48 | N21: 9 | O21: 56 | P21: 3 | Q21: 1 | R21: 41 | S21: 5 | T21: 42 | U21: 0 | V21: 0
B22: Prienų r. sav. | C22: 26 | D22: 5 | E22: 29 | F22: 2 | G22: 0 | H22: 16 | I22: 1 | J22: 25 | K22: 0 | L22: 0 | M22: 33 | N22: 2 | O22: 49 | P22: 1 | Q22: 0 | R22: 37 | S22: 3 | T22: 53 | U22: 0 | V22: 0
B23: Raseinių r. sav. | C23: 52 | D23: 6 | E23: 59 | F23: 4 | G23: 0 | H23: 42 | I23: 7 | J23: 50 | K23: 1 | L23: 0 | M23: 48 | N23: 3 | O23: 59 | P23: 1 | Q23: 0 | R23: 32 | S23: 3 | T23: 52 | U23: 2 | V23: 0
B24: Viso: | C24: =SUM(C16:C23) -> 658 | D24: =SUM(D16:D23) -> 40 | E24: 754 | F24: 20 | G24: 0 | H24: 607 | I24: 34 | J24: 701 | K24: 17 | L24: 0 | M24: 702 | N24: 36 | O24: 836 | P24: 18 | Q24: 1 | R24: 609 | S24: 32 | T24: 717 | U24: 18 | V24: 0
A25: Klaipėdos | B25: Klaipėdos m. sav. | C25: 231 | D25: 2 | E25: 262 | F25: 2 | G25: 1 | H25: 168 | I25: 6 | J25: 183 | K25: 2 | L25: 0 | M25: 172 | N25: 5 | O25: 198 | P25: 2 | Q25: 0 | R25: 163 | S25: 7 | T25: 171 | U25: 2 | V25: 0
B26: Klaipėdos r. sav. | C26: 94 | D26: 9 | E26: 120 | F26: 4 | G26: 0 | H26: 46 | I26: 6 | J26: 65 | K26: 3 | L26: 0 | M26: 72 | N26: 6 | O26: 97 | P26: 5 | Q26: 0 | R26: 79 | S26: 5 | T26: 90 | U26: 3 | V26: 0
B27: Kretingos r. sav. | C27: 37 | D27: 2 | E27: 51 | F27: 1 | G27: 0 | H27: 36 | I27: 3 | J27: 45 | K27: 0 | L27: 0 | M27: 30 | N27: 3 | O27: 33 | P27: 2 | Q27: 0 | R27: 30 | S27: 4 | T27: 35 | U27: 5 | V27: 0
B28: Neringos sav. | C28: 3 | D28: 0 | E28: 3 | F28: 0 | G28: 0 | H28: 4 | I28: 0 | J28: 4 | K28: 0 | L28: 0 | M28: 3 | N28: 0 | O28: 6 | P28: 0 | Q28: 0 | R28: 7 | S28: 0 | T28: 9 | U28: 0 | V28: 0
B29: Palangos m. sav. | C29: 28 | D29: 1 | E29: 30 | F29: 2 | G29: 0 | H29: 30 | I29: 3 | J29: 43 | K29: 0 | L29: 0 | M29: 39 | N29: 1 | O29: 52 | P29: 1 | Q29: 0 | R29: 40 | S29: 0 | T29: 46 | U29: 1 | V29: 0
B30: Skuodo r. sav. | C30: 14 | D30: 1 | E30: 25 | F30: 2 | G30: 0 | H30: 9 | I30: 1 | J30: 11 | K30: 1 | L30: 0 | M30: 14 | N30: 0 | O30: 16 | P30: 1 | Q30: 0 | R30: 10 | S30: 0 | T30: 10 | U30: 1 | V30: 0
B31: Šilutės r. sav. | C31: 43 | D31: 3 | E31: 56 | F31: 4 | G31: 0 | H31: 51 | I31: 1 | J31: 57 | K31: 4 | L31: 0 | M31: 53 | N31: 6 | O31: 72 | P31: 3 | Q31: 0 | R31: 48 | S31: 2 | T31: 59 | U31: 2 | V31: 0
B32: Viso: | C32: =SUM(C25:C31) -> 450 | D32: =SUM(D25:D31) -> 18 | E32: 547 | F32: 15 | G32: 1 | H32: 344 | I32: 20 | J32: 408 | K32: 10 | L32: 0 | M32: 383 | N32: 21 | O32: 474 | P32: 14 | Q32: 0 | R32: 377 | S32: 18 | T32: 420 | U32: 14 | V32: 0
A33: Marijampolės | B33: Kalvarijos sav. | C33: 8 | D33: 1 | E33: 11 | F33: 0 | G33: 0 | H33: 6 | I33: 0 | J33: 10 | K33: 0 | L33: 0 | M33: 8 | N33: 1 | O33: 12 | P33: 0 | Q33: 0 | R33: 5 | S33: 3 | T33: 2 | U33: 0 | V33: 0
B34: Kazlų Rūdos sav. | C34: 14 | D34: 1 | E34: 29 | F34: 1 | G34: 0 | H34: 21 | I34: 0 | J34: 26 | K34: 0 | L34: 0 | M34: 6 | N34: 0 | O34: 9 | P34: 0 | Q34: 0 | R34: 12 | S34: 2 | T34: 14 | U34: 0 | V34: 0
B35: Marijampolės sav. | C35: 46 | D35: 10 | E35: 60 | F35: 0 | G35: 0 | H35: 44 | I35: 1 | J35: 50 | K35: 1 | L35: 0 | M35: 33 | N35: 6 | O35: 42 | P35: 3 | Q35: 0 | R35: 39 | S35: 1 | T35: 40 | U35: 1 | V35: 0
B36: Šakių r. sav. | C36: 20 | D36: 2 | E36: 24 | F36: 0 | G36: 0 | H36: 22 | I36: 2 | J36: 26 | K36: 2 | L36: 0 | M36: 37 | N36: 7 | O36: 50 | P36: 2 | Q36: 0 | R36: 28 | S36: 2 | T36: 35 | U36: 0 | V36: 0
B37: Vilkaviškio r. sav. | C37: 20 | D37: 4 | E37: 23 | F37: 1 | G37: 0 | H37: 23 | I37: 1 | J37: 30 | K37: 4 | L37: 0 | M37: 38 | N37: 1 | O37: 54 | P37: 2 | Q37: 0 | R37: 23 | S37: 1 | T37: 24 | U37: 5 | V37: 0
B38: Viso: | C38: =SUM(C33:C37) -> 108 | D38: =SUM(D33:D37) -> 18 | E38: 147 | F38: 2 | G38: 0 | H38: 116 | I38: 4 | J38: 142 | K38: 7 | L38: 0 | M38: 122 | N38: 15 | O38: 167 | P38: 7 | Q38: 0 | R38: 107 | S38: 9 | T38: 115 | U38: 6 | V38: 0
A39: Panevėžio | B39: Panevėžio m. sav. | C39: 150 | D39: 4 | E39: 161 | F39: 3 | G39: 0 | H39: 162 | I39: 3 | J39: 165 | K39: 7 | L39: 0 | M39: 159 | N39: 6 | O39: 168 | P39: 5 | Q39: 0 | R39: 125 | S39: 4 | T39: 140 | U39: 5 | V39: 0
B40: Panevėžio r. sav. | C40: 65 | D40: 10 | E40: 81 | F40: 4 | G40: 0 | H40: 62 | I40: 2 | J40: 79 | K40: 8 | L40: 0 | M40: 70 | N40: 6 | O40: 87 | P40: 7 | Q40: 0 | R40: 82 | S40: 9 | T40: 94 | U40: 9 | V40: 0
B41: Biržų r. sav. | C41: 18 | D41: 0 | E41: 20 | F41: 5 | G41: 0 | H41: 22 | I41: 4 | J41: 20 | K41: 1 | L41: 0 | M41: 17 | N41: 1 | O41: 19 | P41: 1 | Q41: 0 | R41: 25 | S41: 5 | T41: 31 | U41: 3 | V41: 0
B42: Kupiškio r. sav. | C42: 14 | D42: 1 | E42: 15 | F42: 1 | G42: 0 | H42: 15 | I42: 3 | J42: 14 | K42: 1 | L42: 0 | M42: 18 | N42: 0 | O42: 27 | P42: 0 | Q42: 0 | R42: 13 | S42: 1 | T42: 17 | U42: 1 | V42: 1
B43: Pasvalio r. sav. | C43: 31 | D43: 3 | E43: 29 | F43: 4 | G43: 0 | H43: 28 | I43: 2 | J43: 32 | K43: 5 | L43: 1 | M43: 37 | N43: 3 | O43: 46 | P43: 5 | Q43: 0 | R43: 34 | S43: 6 | T43: 46 | U43: 4 | V43: 0
B44: Rokiškio r. sav. | C44: 25 | D44: 2 | E44: 29 | F44: 1 | G44: 0 | H44: 21 | I44: 1 | J44: 28 | K44: 2 | L44: 0 | M44: 32 | N44: 4 | O44: 40 | P44: 6 | Q44: 0 | R44: 23 | S44: 3 | T44: 23 | U44: 1 | V44: 0
B45: Viso: | C45: =SUM(C39:C44) -> 303 | D45: =SUM(D39:D44) -> 20 | E45: 335 | F45: 18 | G45: 0 | H45: 310 | I45: 15 | J45: 338 | K45: 24 | L45: 1 | M45: 333 | N45: 20 | O45: 387 | P45: 24 | Q45: 0 | R45: 302 | S45: 28 | T45: 351 | U45: 23 | V45: 1
A46: Šiaulių | B46: Šiaulių m. sav. | C46: 134 | D46: 0 | E46: 144 | F46: 6 | G46: 0 | H46: 133 | I46: 1 | J46: 138 | K46: 3 | L46: 0 | M46: 115 | N46: 2 | O46: 132 | P46: 5 | Q46: 0 | R46: 95 | S46: 1 | T46: 103 | U46: 3 | V46: 0
B47: Šiaulių r. sav. | C47: 50 | D47: 2 | E47: 56 | F47: 2 | G47: 0 | H47: 47 | I47: 7 | J47: 53 | K47: 1 | L47: 0 | M47: 60 | N47: 5 | O47: 77 | P47: 0 | Q47: 0 | R47: 54 | S47: 3 | T47: 64 | U47: 3 | V47: 0
B48: Akmenės r. sav. | C48: 14 | D48: 2 | E48: 14 | F48: 0 | G48: 0 | H48: 8 | I48: 0 | J48: 10 | K48: 0 | L48: 0 | M48: 16 | N48: 0 | O48: 16 | P48: 1 | Q48: 0 | R48: 14 | S48: 0 | T48: 17 | U48: 0 | V48: 0
B49: Joniškio r. sav. | C49: 19 | D49: 3 | E49: 21 | F49: 1 | G49: 0 | H49: 20 | I49: 2 | J49: 22 | K49: 4 | L49: 0 | M49: 16 | N49: 1 | O49: 15 | P49: 1 | Q49: 0 | R49: 10 | S49: 1 | T49: 13 | U49: 0 | V49: 0
B50: Kelmės r. sav. | C50: 33 | D50: 5 | E50: 36 | F50: 1 | G50: 0 | H50: 34 | I50: 4 | J50: 41 | K50: 4 | L50: 0 | M50: 33 | N50: 2 | O50: 41 | P50: 2 | Q50: 0 | R50: 24 | S50: 1 | T50: 29 | U50: 1 | V50: 0
B51: Pakruojo r. sav. | C51: 10 | D51: 0 | E51: 11 | F51: 0 | G51: 0 | H51: 17 | I51: 0 | J51: 24 | K51: 2 | L51: 0 | M51: 11 | N51: 0 | O51: 14 | P51: 0 | Q51: 0 | R51: 9 | S51: 0 | T51: 12 | U51: 0 | V51: 0
B52: Radviliškio r. sav. | C52: 27 | D52: 5 | E52: 26 | F52: 1 | G52: 0 | H52: 34 | I52: 3 | J52: 37 | K52: 2 | L52: 0 | M52: 37 | N52: 3 | O52: 39 | P52: 2 | Q52: 0 | R52: 46 | S52: 7 | T52: 58 | U52: 7 | V52: 0
B53: Viso: | C53: =SUM(C46:C52) -> 287 | D53: =SUM(D46:D52) -> 17 | E53: 308 | F53: 11 | G53: 0 | H53: 293 | I53: 17 | J53: 325 | K53: 16 | L53: 0 | M53: 288 | N53: 13 | O53: 334 | P53: 11 | Q53: 0 | R53: 252 | S53: 13 | T53: 296 | U53: 14 | V53: 0
A54: Tauragės | B54: Tauragės r. sav. | C54: 36 | D54: 1 | E54: 45 | F54: 1 | G54: 0 | H54: 38 | I54: 0 | J54: 49 | K54: 2 | L54: 1 | M54: 45 | N54: 4 | O54: 66 | P54: 2 | Q54: 0 | R54: 45 | S54: 3 | T54: 52 | U54: 3 | V54: 0
B55: Jurbarko r. sav. | C55: 12 | D55: 0 | E55: 12 | F55: 1 | G55: 0 | H55: 11 | I55: 0 | J55: 17 | K55: 0 | L55: 0 | M55: 14 | N55: 2 | O55: 16 | P55: 0 | Q55: 0 | R55: 11 | S55: 1 | T55: 11 | U55: 0 | V55: 0
B56: Pagėgių sav. | C56: 5 | D56: 3 | E56: 5 | F56: 0 | G56: 0 | H56: 5 | I56: 0 | J56: 7 | K56: 0 | L56: 0 | M56: 4 | N56: 0 | O56: 4 | P56: 1 | Q56: 0 | R56: 3 | S56: 1 | T56: 2 | U56: 2 | V56: 0
B57: Šilalės r. sav. | C57: 20 | D57: 2 | E57: 21 | F57: 0 | G57: 0 | H57: 21 | I57: 1 | J57: 27 | K57: 2 | L57: 0 | M57: 19 | N57: 3 | O57: 21 | P57: 4 | Q57: 0 | R57: 11 | S57: 1 | T57: 17 | U57: 0 | V57: 0
B58: Viso: | C58: =SUM(C54:C57) -> 73 | D58: =SUM(D54:D57) -> 6 | E58: 83 | F58: 2 | G58: 0 | H58: 75 | I58: 1 | J58: 100 | K58: 4 | L58: 1 | M58: 82 | N58: 9 | O58: 107 | P58: 7 | Q58: 0 | R58: 70 | S58: 6 | T58: 82 | U58: 5 | V58: 0
A59: Telšių | B59: Telšių r. sav. | C59: 35 | D59: 2 | E59: 46 | F59: 4 | G59: 0 | H59: 42 | I59: 1 | J59: 50 | K59: 5 | L59: 0 | M59: 47 | N59: 1 | O59: 62 | P59: 5 | Q59: 0 | R59: 51 | S59: 2 | T59: 63 | U59: 3 | V59: 0
B60: Mažeikių r. sav. | C60: 42 | D60: 2 | E60: 45 | F60: 3 | G60: 0 | H60: 35 | I60: 1 | J60: 38 | K60: 2 | L60: 0 | M60: 53 | N60: 3 | O60: 62 | P60: 0 | Q60: 0 | R60: 29 | S60: 3 | T60: 33 | U60: 4 | V60: 0
B61: Plungės r. sav. | C61: 36 | D61: 2 | E61: 47 | F61: 2 | G61: 1 | H61: 50 | I61: 4 | J61: 79 | K61: 2 | L61: 0 | M61: 54 | N61: 4 | O61: 76 | P61: 1 | Q61: 1 | R61: 45 | S61: 6 | T61: 51 | U61: 3 | V61: 0
B62: Rietavo sav. | C62: 9 | D62: 1 | E62: 14 | F62: 1 | G62: 0 | H62: 4 | I62: 1 | J62: 3 | K62: 1 | L62: 0 | M62: 13 | N62: 0 | O62: 18 | P62: 0 | Q62: 0 | R62: 12 | S62: 1 | T62: 12 | U62: 1 | V62: 0
B63: Viso: | C63: =SUM(C59:C62) -> 122 | D63: =SUM(D59:D62) -> 7 | E63: 152 | F63: 10 | G63: 1 | H63: 131 | I63: 7 | J63: 170 | K63: 10 | L63: 0 | M63: 167 | N63: 8 | O63: 218 | P63: 6 | Q63: 1 | R63: 137 | S63: 12 | T63: 159 | U63: 11 | V63: 0
A64: Utenos | B64: Utenos r. sav. | C64: 23 | D64: 3 | E64: 24 | F64: 0 | G64: 0 | H64: 39 | I64: 1 | J64: 42 | K64: 2 | L64: 0 | M64: 35 | N64: 3 | O64: 39 | P64: 1 | Q64: 0 | R64: 27 | S64: 3 | T64: 29 | U64: 3 | V64: 0
B65: Anykščių r. sav. | C65: 18 | D65: 1 | E65: 22 | F65: 1 | G65: 0 | H65: 16 | I65: 1 | J65: 20 | K65: 2 | L65: 0 | M65: 17 | N65: 3 | O65: 16 | P65: 0 | Q65: 0 | R65: 25 | S65: 0 | T65: 31 | U65: 3 | V65: 0
B66: Ignalinos r. sav. | C66: 11 | D66: 0 | E66: 14 | F66: 2 | G66: 0 | H66: 9 | I66: 0 | J66: 14 | K66: 0 | L66: 0 | M66: 12 | N66: 0 | O66: 17 | P66: 0 | Q66: 0 | R66: 10 | S66: 1 | T66: 9 | U66: 0 | V66: 0
B67: Molėtų r. sav. | C67: 15 | D67: 1 | E67: 19 | F67: 0 | G67: 0 | H67: 21 | I67: 6 | J67: 28 | K67: 3 | L67: 0 | M67: 16 | N67: 2 | O67: 24 | P67: 1 | Q67: 0 | R67: 14 | S67: 4 | T67: 22 | U67: 1 | V67: 0
B68: Visagino sav. | C68: 10 | D68: 0 | E68: 10 | F68: 0 | G68: 0 | H68: 8 | I68: 0 | J68: 9 | K68: 0 | L68: 0 | M68: 6 | N68: 1 | O68: 5 | P68: 0 | Q68: 0 | R68: 8 | S68: 0 | T68: 8 | U68: 0 | V68: 0
B69: Zarasų r. sav. | C69: 10 | D69: 2 | E69: 12 | F69: 3 | G69: 0 | H69: 9 | I69: 0 | J69: 11 | K69: 0 | L69: 0 | M69: 10 | N69: 0 | O69: 10 | P69: 0 | Q69: 0 | R69: 3 | S69: 1 | T69: 2 | U69: 0 | V69: 0
B70: Viso: | C70: =SUM(C64:C69) -> 87 | D70: =SUM(D64:D69) -> 7 | E70: 101 | F70: 6 | G70: 0 | H70: 102 | I70: 8 | J70: 124 | K70: 7 | L70: 0 | M70: 96 | N70: 9 | O70: 111 | P70: 2 | Q70: 0 | R70: 87 | S70: 9 | T70: 101 | U70: 7 | V70: 0
A71: Vilniaus | B71: Vilniaus m. sav. | C71: 621 | D71: 19 | E71: 687 | F71: 16 | G71: 0 | H71: 604 | I71: 16 | J71: 669 | K71: 16 | L71: 1 | M71: 634 | N71: 21 | O71: 672 | P71: 17 | Q71: 0 | R71: 520 | S71: 11 | T71: 562 | U71: 10 | V71: 0
B72: Vilniaus r. sav. | C72: 99 | D72: 8 | E72: 117 | F72: 10 | G72: 0 | H72: 105 | I72: 20 | J72: 124 | K72: 14 | L72: 1 | M72: 121 | N72: 12 | O72: 150 | P72: 11 | Q72: 0 | R72: 102 | S72: 13 | T72: 116 | U72: 8 | V72: 0
B73: Elektrėnų sav. | C73: 7 | D73: 2 | E73: 7 | F73: 0 | G73: 0 | H73: 16 | I73: 2 | J73: 18 | K73: 1 | L73: 0 | M73: 10 | N73: 1 | O73: 17 | P73: 1 | Q73: 0 | R73: 19 | S73: 3 | T73: 21 | U73: 2 | V73: 0
B74: Šalčininkų r. sav. | C74: 23 | D74: 5 | E74: 29 | F74: 2 | G74: 0 | H74: 23 | I74: 3 | J74: 24 | K74: 1 | L74: 0 | M74: 28 | N74: 2 | O74: 39 | P74: 1 | Q74: 0 | R74: 32 | S74: 5 | T74: 35 | U74: 2 | V74: 0
B75: Širvintų r. sav. | C75: 10 | D75: 1 | E75: 12 | F75: 1 | G75: 0 | H75: 9 | I75: 1 | J75: 8 | K75: 0 | L75: 0 | M75: 14 | N75: 2 | O75: 19 | P75: 1 | Q75: 0 | R75: 11 | S75: 2 | T75: 11 | U75: 2 | V75: 0
B76: Švenčionių r. sav. | C76: 19 | D76: 3 | E76: 18 | F76: 5 | G76: 0 | H76: 12 | I76: 7 | J76: 15 | K76: 2 | L76: 0 | M76: 19 | N76: 4 | O76: 17 | P76: 2 | Q76: 0 | R76: 14 | S76: 3 | T76: 13 | U76: 2 | V76: 0
B77: Trakų r. sav. | C77: 40 | D77: 4 | E77: 61 | F77: 0 | G77: 0 | H77: 38 | I77: 7 | J77: 39 | K77: 1 | L77: 0 | M77: 45 | N77: 4 | O77: 53 | P77: 4 | Q77: 0 | R77: 37 | S77: 2 | T77: 48 | U77: 1 | V77: 0
B78: Ukmergės r. sav. | C78: 22 | D78: 1 | E78: 29 | F78: 2 | G78: 0 | H78: 24 | I78: 2 | J78: 24 | K78: 2 | L78: 0 | M78: 24 | N78: 4 | O78: 32 | P78: 4 | Q78: 0 | R78: 26 | S78: 2 | T78: 26 | U78: 0 | V78: 0
B79: Viso: | C79: =SUM(C71:C78) -> 841 | D79: =SUM(D71:D78) -> 43 | E79: 960 | F79: 36 | G79: 0 | H79: 831 | I79: 58 | J79: 921 | K79: 37 | L79: 2 | M79: 895 | N79: 50 | O79: 999 | P79: 41 | Q79: 0 | R79: 761 | S79: 41 | T79: 832 | U79: 27 | V79: 0
B80: Iš viso | C80: =SUM(C15,C24,C32,C38,C45,C53,C58,C63,C70,C79) -> 3051 | D80: =SUM(D15,D24,D32,D38,D45,D53,D58,D63,D70,D79) -> 191 | E80: 3557 | F80: 127 | G80: 2 | H80: 2925 | I80: 173 | J80: 3390 | K80: 138 | L80: 4 | M80: 3190 | N80: 186 | O80: 3771 | P80: 134 | Q80: 2 | R80: 2826 | S80: 175 | T80: 3203 | U80: 130 | V80: 1

Sheet Eismo įvykiai E keliuose
A6: 2.5 E kategorijos kelių sudėtis, įskaitinių eismo įvykių ir nukentėjusiųjų pasiskirstymas juose, 2017–2020 m.
A7: E kelio Nr. | B7: Kelio Nr. | C7: Kelio pavadinimas | D7: Pradžia | E7: Pabaiga | F7: kelio ilgis, km | G7: 2017 | J7: 2018 | M7: 2019 | P7: 2020 | S7: 2020 m. 100-ui kelio kilometrų tenka:
G8: EĮ | H8: Žuvo | I8: Sužeista | J8: EĮ | K8: Žuvo | L8: Sužeista | M8: EĮ | N8: Žuvo | O8: Sužeista | P8: EĮ | Q8: Žuvo | R8: Sužeista | S8: EĮ/100km | T8: Žuvusių/ 100km | U8: Sužeistų/ 100km
A9: E28 | B9: A7 | C9: Marijampolė–Kybartai–Kaliningradas | D9: 2.5 | E9: 41.929 | F9: 39.429 | G9: 2 | H9: 0 | I9: 2 | J9: 7 | K9: 1 | L9: 11 | M9: 5 | N9: 1 | O9: 8 | P9: 6 | Q9: 1 | R9: 5 | S9: =P9*100/$F9 -> 15.2172259 | T9: =Q9*100/$F9 -> 2.536204317 | U9: 12.68102158
B10: A16 | C10: Vilnius–Prienai–Marijampolė | D10: 15.564 | E10: 135.422 | F10: 119.858 | G10: 16 | H10: 6 | I10: 20 | J10: 10 | K10: 4 | L10: 11 | M10: 18 | N10: 4 | O10: 17 | P10: 14 | Q10: 4 | R10: 18 | S10: =P10*100/$F10 -> 11.68048858 | T10: 3.337282451 | U10: 15.01777103
B11: A3 | C11: Vilnius–Minskas | D11: 6.65 | E11: 32.912 | F11: 26.262 | G11: 1 | H11: 0 | I11: 1 | J11: 4 | K11: 2 | L11: 3 | M11: 5 | N11: 1 | O11: 8 | P11: 6 | Q11: 1 | R11: 7 | S11: 22.84669865 | T11: 3.807783109 | U11: 26.65448176
A12: E67 | B12: A5 | C12: Kaunas–Marijampolė–Suvalkai | D12: 0 | E12: 96.742 | F12: 96.742 | G12: 16 | H12: 7 | I12: 21 | J12: 10 | K12: 0 | L12: 13 | M12: 7 | N12: 0 | O12: 9 | P12: 11 | Q12: 2 | R12: 10 | S12: 11.37044924 | T12: 2.067354407 | U12: 10.33677203
B13: A1 | C13: Vilnius–Kaunas–Klaipėda | D13: 102.436 | E13: 114.295 | F13: 11.859 | G13: 1 | H13: 0 | I13: 1 | J13: 3 | K13: 0 | L13: 4 | M13: 3 | N13: 0 | O13: 4 | P13: 7 | Q13: 1 | R13: 9 | S13: 59.0268994 | T13: 8.4324142 | U13: 75.8917278
B14: A8 | C14: Panevėžys–Aristava–Sitkūnai | D14: 7.508 | E14: 87.861 | F14: 80.353 | G14: 6 | H14: 3 | I14: 4 | J14: 9 | K14: 1 | L14: 11 | M14: 12 | N14: 5 | O14: 12 | P14: 8 | Q14: 3 | R14: 12 | S14: 9.956068846 | T14: 3.733525817 | U14: 14.93410327
B15: A17 | C15: Panevėžio aplinkkelis | D15: 0 | E15: 22.24 | F15: 22.24 | G15: 4 | H15: 0 | I15: 8 | J15: 4 | K15: 0 | L15: 6 | M15: 0 | N15: 0 | O15: 0 | P15: 7 | Q15: 0 | R15: 8 | S15: 31.47482014 | T15: 0 | U15: 35.97122302
B16: A10 | C16: Panevėžys–Pasvalys–Ryga | D16: 9.155 | E16: 66.098 | F16: 56.943 | G16: 11 | H16: 3 | I16: 8 | J16: 10 | K16: 2 | L16: 17 | M16: 21 | N16: 3 | O16: 22 | P16: 19 | Q16: 5 | R16: 30 | S16: 33.36670003 | T16: 8.780710535 | U16: 52.68426321
A17: E77 | B17: A12 | C17: Ryga–Šiauliai–Tauragė–Kaliningradas | D17: 0 | E17: 49.738 | F17: 176.217 | G17: 26 | H17: 2 | I17: 29 | J17: 28 | K17: 3 | L17: 37 | M17: 27 | N17: 4 | O17: 35 | P17: 20 | Q17: 2 | R17: 22 | S17: 11.34964277 | T17: =Q17*100/$F17 -> 1.134964277 | U17: =R17*100/$F17 -> 12.48460705
D18: 59.49 | E18: 185.969
B19: A18 | C19: Šiaulių aplinkkelis | D19: 0 | E19: 17.134 | F19: 17.134 | G19: 0 | H19: 0 | I19: 0 | J19: 5 | K19: 1 | L19: 4 | M19: 4 | N19: 0 | O19: 5 | P19: 1 | Q19: 0 | R19: 1 | S19: =P19*100/$F19 -> 5.83634878 | T19: =Q19*100/$F19 -> 0 | U19: 5.83634878
A20: E85 | B20: A1 | C20: Vilnius–Kaunas–Klaipėda | D20: 10 | E20: 306.234 | F20: 296.234 | G20: 59 | H20: 12 | I20: 66 | J20: 42 | K20: 3 | L20: 53 | M20: 65 | N20: 5 | O20: 88 | P20: 55 | Q20: 4 | R20: 72 | S20: =P20*100/$F20 -> 18.56640359 | T20: 1.350283897 | U20: 24.30511015
B21: A15 | C21: Vilnius–Lyda | D21: 10.623 | E21: 48.835 | F21: 38.212 | G21: 10 | H21: 3 | I21: 11 | J21: 7 | K21: 0 | L21: 17 | M21: 10 | N21: 2 | O21: 11 | P21: 7 | Q21: 1 | R21: 11 | S21: =P21*100/$F21 -> 18.31885272 | T21: 2.616978959 | U21: 28.78676855
A22: E262 | B22: A6 | C22: Kaunas–Zarasai–Daugpilis | D22: 5.95 | E22: 66.803 | F22: 173.651 | G22: 23 | H22: 5 | I22: 26 | J22: 31 | K22: 2 | L22: 42 | M22: 33 | N22: 6 | O22: 50 | P22: 17 | Q22: 0 | R22: 20 | S22: =P22*100/$F22 -> 9.789750707 | T22: =Q22*100/$F22 -> 0 | U22: =R22*100/$F22 -> 11.51735377
D23: 72.445 | E23: 185.243
B24: A20 | C24: Ukmergės šiaurinis aplinkkelis | D24: 0.019 | E24: 7.647 | F24: 7.628 | G24: 0 | H24: 0 | I24: 0 | J24: 0 | K24: 0 | L24: 0 | M24: 0 | N24: 0 | O24: 0 | P24: 1 | Q24: 0 | R24: 1 | S24: =P24*100/$F24 -> 13.10959622 | T24: =Q24*100/$F24 -> 0 | U24: 13.10959622
A25: E272 | B25: A2 | C25: Vilnius–Panevėžys | D25: 9.276 | E25: 132.55 | F25: 123.274 | G25: 18 | H25: 1 | I25: 23 | J25: 9 | K25: 2 | L25: 11 | M25: 22 | N25: 1 | O25: 32 | P25: 12 | Q25: 3 | R25: 14 | S25: =P25*100/$F25 -> 9.734412772 | T25: 2.433603193 | U25: 11.3568149
B26: A9 | C26: Panevėžys–Šiauliai | D26: 5 | E26: 75.299 | F26: 70.299 | G26: 11 | H26: 3 | I26: 8 | J26: 17 | K26: 1 | L26: 27 | M26: 20 | N26: 3 | O26: 20 | P26: 15 | Q26: 3 | R26: 22 | S26: =P26*100/$F26 -> 21.33743012 | T26: 4.267486024 | U26: 31.29489751
B27: A11 | C27: Šiauliai–Palanga | D27: 2.65 | E27: 146.515 | F27: 143.865 | G27: 23 | H27: 1 | I27: 31 | J27: 23 | K27: 2 | L27: 34 | M27: 29 | N27: 4 | O27: 44 | P27: 18 | Q27: 3 | R27: 25 | S27: =P27*100/$F27 -> 12.51172975 | T27: 2.085288291 | U27: 17.37740243
B28: A13 | C28: Klaipėda–Liepoja | D28: 0 | E28: 24.665 | F28: 24.665 | G28: 5 | H28: 0 | I28: 8 | J28: 7 | K28: 0 | L28: 8 | M28: 5 | N28: 0 | O28: 5 | P28: 9 | Q28: 1 | R28: 9 | S28: =P28*100/$F28 -> 36.48895196 | T28: 4.054327995 | U28: 36.48895196
C31: Kelias | D31: Kelio ilgis, km | E31: 2020 m. | H31: 2020 m. 100-ui kelio kilometrų tenka:
E32: EĮ | F32: Žuvo | G32: Sužeista | H32: EĮ/100km | I32: Žuvusių/ 100km | J32: Sužeistų/ 100km
C33: E28 | D33: 185.549 | E33: 26 | F33: 6 | G33: 30 | H33: =E33*100/$D33 -> 14.0124711 | I33: 3.233647177 | J33: 16.16823588
C34: E67 | D34: 268.137 | E34: 52 | F34: 11 | G34: 69 | H34: 19.39307145 | I34: 4.1023805 | J34: 25.73311404
C35: E77 | D35: 193.351 | E35: 21 | F35: 2 | G35: 23 | H35: 10.86107649 | I35: 1.034388237 | J35: 11.89546472
C36: E85 | D36: 334.446 | E36: 62 | F36: 5 | G36: 83 | H36: 18.53811976 | I36: 1.495009658 | J36: 24.81716032
C37: E262 | D37: 181.279 | E37: 18 | F37: 0 | G37: 21 | H37: 9.929445771 | I37: 0 | J37: 11.5843534
C38: E272 | D38: 362.103 | E38: 54 | F38: 10 | G38: 70 | H38: 14.9128839 | I38: 2.761645167 | J38: 19.33151617
C53: Europos kelių tinklo koridoriai* | F53: E kategorijos keliai*
C55: * šaltinis: https://lt.wikipedia.org/wiki/Lietuvos_keliai

Sheet Eismo įvykiai pagal dangą
A6: 2.6 Eismo įvykių ir nukentėjusiųjų pasiskirstymas valstybinės ir vietinės reikšmės keliuose pagal kelio dangos tipą, 2017–2020 m.
A7: Kelio danga | B7: 2017 m. | E7: 2018 m. | H7: 2019 m. | K7: 2020 m.
B8: Eismo įvykiai | C8: Žuvo | D8: Sužeista | E8: Eismo įvykiai | F8: Žuvo | G8: Sužeista | H8: Eismo įvykiai | I8: Žuvo | J8: Sužeista | K8: Eismo įvykiai | L8: Žuvo | M8: Sužeista
A9: Valstybinės reikšmės keliai:*
A10: asfaltbetonis, cementbetonis | B10: 923 | C10: 121 | D10: 1197 | E10: 1007 | F10: 113 | G10: 1308 | H10: 1225 | I10: 112 | J10: 1591 | K10: 987 | L10: 115 | M10: 1211
A11: žvyrkeliai, grindinys | B11: 59 | C11: 6 | D11: 78 | E11: 61 | F11: 5 | G11: 66 | H11: 72 | I11: 8 | J11: 79 | K11: 64 | L11: 12 | M11: 64
A12: Vietiniai keliai ir gatvės:**
A13: asfaltbetonis, cementbetonis | B13: 1951 | C13: 52 | D13: 2158 | E13: 1743 | F13: 49 | G13: 1891 | H13: 1732 | I13: 55 | J13: 1916 | K13: 1580 | L13: 39 | M13: 1703
A14: žvyrkeliai, grindinys | B14: 118 | C14: 12 | D14: 124 | E14: 114 | F14: 6 | G14: 125 | H14: 161 | I14: 11 | J14: 185 | K14: 195 | L14: 9 | M14: 225
A15: Viso: | B15: =SUM(B10:B14) -> 3051 | C15: 191 | D15: 3557 | E15: 2925 | F15: 173 | G15: 3390 | H15: 3190 | I15: 186 | J15: 3771 | K15: =SUM(K10:K14) -> 2826 | L15: =SUM(L10:L14) -> 175 | M15: =SUM(M10:M14) -> 3203
A16: * valstybinės reikšmės keliai, priklausantys LAKD
A17: ** savivaldybėms priklausantys keliai ir gatvės

Sheet Eismo įvykiai pagal vietą
A6: 2.7 Eismo įvykių ir nukentėjusiųjų pasiskirstymas pagal eismo įvykio vietą ir pobūdį, 2017–2020 m.
A7: Kriterijai | B7: 2017 m. | H7: 2018 m. | N7: 2019 m. | T7: 2020 m.
B8: EĮ | D8: Žuvo | F8: Sužeista | H8: EĮ | J8: Žuvo | L8: Sužeista | N8: EĮ | P8: Žuvo | R8: Sužeista | T8: EĮ | V8: Žuvo | X8: Sužeista
B9: sk. | C9: % | D9: sk. | E9: % | F9: sk. | G9: % | H9: sk. | I9: % | J9: sk. | K9: % | L9: sk. | M9: % | N9: sk. | O9: % | P9: sk. | Q9: % | R9: sk. | S9: % | T9: sk. | U9: % | V9: sk. | W9: % | X9: sk. | Y9: %
A10: Sankryžose | B10: 1048 | C10: =B10*100/$B$18 -> 34.34939364 | D10: 40 | E10: =D10*100/$D$18 -> 20.94240838 | F10: 1244 | G10: =F10*100/$F$18 -> 34.9732921 | H10: 976 | I10: =H10*100/$H$18 -> 33.36752137 | J10: 30 | K10: =J10*100/$J$18 -> 17.34104046 | L10: 1173 | M10: =L10*100/$L$18 -> 34.60176991 | N10: 1098 | O10: =N10*100/$N$18 -> 34.4200627 | P10: 42 | Q10: =P10*100/$P$18 -> 22.58064516 | R10: 1326 | S10: =R10*100/$R$18 -> 35.16308671 | T10: 870 | U10: =T10*100/$T$18 -> 30.78556263 | V10: 38 | W10: =V10*100/$V$18 -> 21.71428571 | X10: 1000 | Y10: =X10*100/$X$18 -> 31.22073057
A11: Nuvažiavimas nuo kelio | B11: 372 | C11: 12.1927237 | D11: 31 | E11: 16.23036649 | F11: 454 | G11: 12.7635648 | H11: 376 | I11: 12.85470085 | J11: 34 | K11: 19.65317919 | L11: 438 | M11: 12.92035398 | N11: 434 | O11: 13.60501567 | P11: 37 | Q11: 19.89247312 | R11: 543 | S11: 14.39936356 | T11: 412 | U11: 14.57891012 | V11: 30 | W11: 17.14285714 | X11: 491 | Y11: 15.32937871
A12: Užvažiavimas ant pėsčiojo, kai nėra pėsčiųjų perėjos | B12: 408 | C12: 13.3726647 | D12: 43 | E12: 22.51308901 | F12: 374 | G12: 10.51447849 | H12: 390 | I12: 13.33333333 | J12: 46 | K12: 26.58959538 | L12: 354 | M12: 10.44247788 | N12: 396 | O12: 12.4137931 | P12: 39 | Q12: 20.96774194 | R12: 361 | S12: 9.573057544 | T12: 361 | U12: 12.77423921 | V12: 34 | W12: 19.42857143 | X12: 331 | Y12: 10.33406182
A13: Užvažiavimas ant pėsčiojo pėsčiųjų perėjoje | B13: 311 | C13: 10.19337922 | D13: 15 | E13: 7.853403141 | F13: 320 | G13: 8.996345235 | H13: 268 | I13: 9.162393162 | J13: 10 | K13: 5.780346821 | L13: 271 | M13: 7.994100295 | N13: 224 | O13: 7.021943574 | P13: 5 | Q13: 2.688172043 | R13: 230 | S13: 6.099177937 | T13: 177 | U13: 6.263269639 | V13: 10 | W13: 5.714285714 | X13: 172 | Y13: 5.369965657
A14: Priešpriešiniai susidūrimai | B14: 178 | C14: 5.834152737 | D14: 32 | E14: 16.7539267 | F14: 307 | G14: 8.63086871 | H14: 196 | I14: 6.700854701 | J14: 32 | K14: 18.49710983 | L14: 337 | M14: 9.94100295 | N14: 190 | O14: 5.956112853 | P14: 32 | Q14: 17.20430108 | R14: 315 | S14: 8.353221957 | T14: 191 | U14: 6.758669498 | V14: 36 | W14: 20.57142857 | X14: 301 | Y14: 9.3974399
A15: Susidūrimai judant ta pačia kryptimi | B15: 298 | C15: 9.767289413 | D15: 12 | E15: 6.282722513 | F15: 367 | G15: 10.31768344 | H15: 286 | I15: 9.777777778 | J15: 9 | K15: 5.202312139 | L15: 341 | M15: 10.05899705 | N15: 308 | O15: 9.655172414 | P15: 15 | Q15: 8.064516129 | R15: 389 | S15: 10.31556616 | T15: 280 | U15: 9.907997169 | V15: 14 | W15: 8 | X15: 332 | Y15: 10.36528255
A16: Kiti susidūrimai | B16: 169 | C16: 5.539167486 | D16: 8 | E16: 4.188481675 | F16: 197 | G16: 5.538375035 | H16: 151 | I16: 5.162393162 | J16: 7 | K16: 4.046242775 | L16: 172 | M16: 5.073746313 | N16: 210 | O16: 6.5830721 | P16: 4 | Q16: 2.150537634 | R16: 254 | S16: 6.735613896 | T16: 190 | U16: 6.723283793 | V16: 6 | W16: 3.428571429 | X16: 211 | Y16: 6.587574149
A17: Kiti EĮ | B17: 267 | C17: 8.751229105 | D17: 10 | E17: 5.235602094 | F17: 294 | G17: 8.265392184 | H17: 282 | I17: 9.641025641 | J17: 5 | K17: 2.89017341 | L17: 304 | M17: 8.967551622 | N17: 330 | O17: 10.34482759 | P17: 12 | Q17: 6.451612903 | R17: 353 | S17: 9.360912225 | T17: 345 | U17: 12.20806794 | V17: 7 | W17: 4 | X17: 365 | Y17: 11.39556666
A18: Viso: | B18: =SUM(B10:B17) -> 3051 | C18: =SUM(C10:C17) -> 100 | D18: 191 | E18: 100 | F18: 3557 | G18: 100 | H18: 2925 | I18: 100 | J18: 173 | K18: 100 | L18: 3390 | M18: 100 | N18: 3190 | O18: 100 | P18: 186 | Q18: 100 | R18: 3771 | S18: 100 | T18: =SUM(T10:T17) -> 2826 | U18: 100 | V18: 175 | W18: 100 | X18: 3203 | Y18: 100

Sheet Eismo įvykiai pagal rūšis
A6: 3.1.1 Eismo įvykių pasiskirstymas pagal rūšis, 2017–2020 m.
A7: Eismo įvykių rūšys | B7: 2017 m. | E7: 2018 m. | H7: 2019 m. | K7: 2020 m.
B8: EĮ | C8: Žuvo | D8: Sužeista | E8: EĮ | F8: Žuvo | G8: Sužeista | H8: EĮ | I8: Žuvo | J8: Sužeista | K8: EĮ | L8: Žuvo | M8: Sužeista
A9: Susidūrimas | B9: =B27+B40 -> 1058 | C9: =C27+C40 -> 58 | D9: 1461 | E9: 961 | F9: 37 | G9: 1345 | H9: 1081 | I9: 59 | J9: 1531 | K9: 861 | L9: 64 | M9: 1157
A10: Susidūrimas su motociklu | B10: =B28+B41 -> 21 | C10: 2 | D10: 25 | E10: 67 | F10: 9 | G10: 66 | H10: 91 | I10: 9 | J10: 98 | K10: 73 | L10: 5 | M10: 78
A11: Susidūrimas su mopedu | B11: =B29+B42 -> 14 | C11: 3 | D11: 14 | E11: 22 | F11: 1 | G11: 23 | H11: 24 | I11: 0 | J11: 28 | K11: 25 | L11: 1 | M11: 27
A12: Susidūrimas su dviračiu | B12: =B30+B43 -> 244 | C12: 13 | D12: 239 | E12: 240 | F12: 9 | G12: 237 | H12: 252 | I12: 11 | J12: 245 | K12: 297 | L12: 15 | M12: 293
A13: Užvažiavimas ant pėsčiojo | B13: =B31+B44 -> 946 | C13: 68 | D13: 916 | E13: 853 | F13: 69 | G13: 815 | H13: 819 | I13: 55 | J13: 782 | K13: 667 | L13: 50 | M13: 634
A14: Užvažiavimas ant kliūties | B14: =B32+B45 -> 56 | C14: 7 | D14: 67 | E14: 58 | F14: 8 | G14: 69 | H14: 76 | I14: 3 | J14: 91 | K14: 75 | L14: 4 | M14: 95
A15: Užvažiavimas ant gyvūno | B15: =B33+B46 -> 22 | C15: 1 | D15: 27 | E15: 36 | F15: 1 | G15: 48 | H15: 35 | I15: 2 | J15: 40 | K15: 17 | L15: 0 | M15: 18
A16: Apvirtimas | B16: =B34+B47 -> 239 | C16: 22 | D16: 284 | E16: 233 | F16: 18 | G16: 263 | H16: 293 | I16: 22 | J16: 364 | K16: 267 | L16: 21 | M16: 302
A17: Susidūrimas su stovinčia TP | B17: =B35+B48 -> 44 | C17: 0 | D17: 58 | E17: 34 | F17: 2 | G17: 40 | H17: 44 | I17: 2 | J17: 57 | K17: 59 | L17: 1 | M17: 65
A18: Susidūrimas su bėgine TP | B18: =B36+B49 -> 1 | C18: 0 | D18: 1 | E18: 0 | F18: 0 | G18: 0 | H18: 0 | I18: 0 | J18: 0 | K18: 1 | L18: 0 | M18: 1
A19: Kiti eismo įvykiai | B19: =B37+B50 -> 406 | C19: 17 | D19: 465 | E19: 421 | F19: 19 | G19: 484 | H19: 475 | I19: 23 | J19: 535 | K19: 484 | L19: 14 | M19: 533
A20: Viso: | B20: =SUM(B9:B19) -> 3051 | C20: 191 | D20: 3557 | E20: 2925 | F20: 173 | G20: 3390 | H20: 3190 | I20: 186 | J20: 3771 | K20: 2826 | L20: 175 | M20: 3203
A23: 3.1.2 Eismo įvykių pasiskirstymas pagal rūšis užmiestyje ir gyvenvietėje, 2017–2020 m.
A24: Eismo įvykių rūšys | B24: 2017 m. | E24: 2018 m. | H24: 2019 m. | K24: 2020 m.
B25: EĮ | C25: Žuvo | D25: Sužeista | E25: EĮ | F25: Žuvo | G25: Sužeista | H25: EĮ | I25: Žuvo | J25: Sužeista | K25: EĮ | L25: Žuvo | M25: Sužeista
A26: Užmiestyje
A27: Susidūrimas | B27: 279 | C27: 44 | D27: 455 | E27: 270 | F27: 30 | G27: 460 | H27: 337 | I27: 39 | J27: 554 | K27: 312 | L27: 47 | M27: 473
A28: Susidūrimas su motociklu | B28: 4 | C28: 0 | D28: 7 | E28: 14 | F28: 5 | G28: 11 | H28: 13 | I28: 3 | J28: 13 | K28: 14 | L28: 0 | M28: 17
A29: Susidūrimas su mopedu | B29: 1 | C29: 2 | D29: 2 | E29: 3 | F29: 1 | G29: 4 | H29: 6 | I29: 0 | J29: 8 | K29: 4 | L29: 1 | M29: 3
A30: Susidūrimas su dviračiu | B30: 41 | C30: 9 | D30: 33 | E30: 29 | F30: 5 | G30: 25 | H30: 32 | I30: 7 | J30: 25 | K30: 32 | L30: 5 | M30: 29
A31: Užvažiavimas ant pėsčiojo | B31: 67 | C31: 32 | D31: 38 | E31: 63 | F31: 28 | G31: 39 | H31: 49 | I31: 17 | J31: 34 | K31: 47 | L31: 22 | M31: 26
A32: Užvažiavimas ant kliūties | B32: 17 | C32: 1 | D32: 21 | E32: 19 | F32: 5 | G32: 17 | H32: 21 | I32: 3 | J32: 25 | K32: 23 | L32: 4 | M32: 27
A33: Užvažiavimas ant gyvūno | B33: 17 | C33: 1 | D33: 21 | E33: 34 | F33: 1 | G33: 46 | H33: 29 | I33: 2 | J33: 33 | K33: 14 | L33: 0 | M33: 15
A34: Apvirtimas | B34: 172 | C34: 11 | D34: 211 | E34: 159 | F34: 11 | G34: 184 | H34: 190 | I34: 15 | J34: 233 | K34: 166 | L34: 17 | M34: 187
A35: Susidūrimas su stovinčia TP | B35: 4 | C35: 0 | D35: 8 | E35: 8 | F35: 1 | G35: 12 | H35: 14 | I35: 1 | J35: 20 | K35: 15 | L35: 0 | M35: 19
A36: Susidūrimas su bėgine TP | B36: 0 | C36: 0 | D36: 0 | E36: 0 | F36: 0 | G36: 0 | H36: 0 | I36: 0 | J36: 0 | K36: 1 | L36: 0 | M36: 1
A37: Kiti eismo įvykiai | B37: 144 | C37: 8 | D37: 185 | E37: 144 | F37: 14 | G37: 169 | H37: 156 | I37: 9 | J37: 180 | K37: 137 | L37: 8 | M37: 156
A38: Viso: | B38: =SUM(B27:B37) -> 746 | C38: 108 | D38: 981 | E38: 743 | F38: 101 | G38: 967 | H38: 847 | I38: 96 | J38: 1125 | K38: 765 | L38: 104 | M38: 953
A39: Gyvenvietėje
A40: Susidūrimas | B40: 779 | C40: 14 | D40: 1006 | E40: 691 | F40: 7 | G40: 885 | H40: 744 | I40: 20 | J40: 977 | K40: 549 | L40: 17 | M40: 684
A41: Susidūrimas su motociklu | B41: 17 | C41: 2 | D41: 18 | E41: 53 | F41: 4 | G41: 55 | H41: 78 | I41: 6 | J41: 85 | K41: 59 | L41: 5 | M41: 61
A42: Susidūrimas su mopedu | B42: 13 | C42: 1 | D42: 12 | E42: 19 | F42: 0 | G42: 19 | H42: 18 | I42: 0 | J42: 20 | K42: 21 | L42: 0 | M42: 24
A43: Susidūrimas su dviračiu | B43: 203 | C43: 4 | D43: 206 | E43: 211 | F43: 4 | G43: 212 | H43: 220 | I43: 4 | J43: 220 | K43: 265 | L43: 10 | M43: 264
A44: Užvažiavimas ant pėsčiojo | B44: 879 | C44: 36 | D44: 878 | E44: 790 | F44: 41 | G44: 776 | H44: 770 | I44: 38 | J44: 748 | K44: 620 | L44: 28 | M44: 608
A45: Užvažiavimas ant kliūties | B45: 39 | C45: 6 | D45: 46 | E45: 39 | F45: 3 | G45: 52 | H45: 55 | I45: 0 | J45: 66 | K45: 52 | L45: 0 | M45: 68
A46: Užvažiavimas ant gyvūno | B46: 5 | C46: 0 | D46: 6 | E46: 2 | F46: 0 | G46: 2 | H46: 6 | I46: 0 | J46: 7 | K46: 3 | L46: 0 | M46: 3
A47: Apvirtimas | B47: 67 | C47: 11 | D47: 73 | E47: 74 | F47: 7 | G47: 79 | H47: 103 | I47: 7 | J47: 131 | K47: 101 | L47: 4 | M47: 115
A48: Susidūrimas su stovinčia TP | B48: 40 | C48: 0 | D48: 50 | E48: 26 | F48: 1 | G48: 28 | H48: 30 | I48: 1 | J48: 37 | K48: 44 | L48: 1 | M48: 46
A49: Susidūrimas su bėgine TP | B49: 1 | C49: 0 | D49: 1 | E49: 0 | F49: 0 | G49: 0 | H49: 0 | I49: 0 | J49: 0 | K49: 0 | L49: 0 | M49: 0
A50: Kiti eismo įvykiai | B50: 262 | C50: 9 | D50: 280 | E50: 277 | F50: 5 | G50: 315 | H50: 319 | I50: 14 | J50: 355 | K50: 347 | L50: 6 | M50: 377
A51: Viso: | B51: =SUM(B40:B50) -> 2305 | C51: 83 | D51: 2576 | E51: 2182 | F51: 72 | G51: 2423 | H51: 2343 | I51: 90 | J51: 2646 | K51: 2061 | L51: 71 | M51: 2250
A52: Iš viso : | B52: =B38+B51 -> 3051 | C52: 191 | D52: 3557 | E52: 2925 | F52: 173 | G52: 3390 | H52: 3190 | I52: 186 | J52: 3771 | K52: 2826 | L52: 175 | M52: 3203

Sheet Eismo įvykiai pagal paros metą
A6: 3.2 Eismo įvykių ir nukentėjusių pasiskirstymas šviesiu ir tamsiu paros metu, 2017–2020 m.
A7: Paros metas | C7: 2017 m. | F7: 2018 m. | I7: 2019 m. | L7: 2020 m.
C8: EĮ | D8: Žuvo | E8: Sužeista | F8: EĮ | G8: Žuvo | H8: Sužeista | I8: EĮ | J8: Žuvo | K8: Sužeista | L8: EĮ | M8: Žuvo | N8: Sužeista
A9: Diena (šviesu) | B9: sk. | C9: 2106 | D9: 108 | E9: 2477 | F9: 2084 | G9: 92 | H9: 2403 | I9: 2248 | J9: 103 | K9: 2653 | L9: 2016 | M9: 104 | N9: 2310
B10: % | C10: =C9/C15 -> 0.6902654867 | D10: 0.5654450262 | E10: 0.6963733483 | F10: 0.7124786325 | G10: 0.5317919075 | H10: 0.7088495575 | I10: 0.7047021944 | J10: 0.5537634409 | K10: 0.7035269159 | L10: 0.7133757962 | M10: 0.5942857143 | N10: 0.7211988761
A11: Sutemos (prieblanda) | B11: sk. | C11: 222 | D11: 12 | E11: 248 | F11: 214 | G11: 9 | H11: 268 | I11: 207 | J11: 13 | K11: 242 | L11: 193 | M11: 14 | N11: 221
B12: % | C12: =C11/C15 -> 0.07276302852 | D12: 0.06282722513 | E12: 0.06972167557 | F12: 0.07316239316 | G12: 0.05202312139 | H12: 0.0790560472 | I12: 0.06489028213 | J12: 0.06989247312 | K12: 0.06417395916 | L12: 0.06829440906 | M12: 0.08 | N12: 0.06899781455
A13: Naktis (tamsu) | B13: sk. | C13: 723 | D13: 71 | E13: 832 | F13: 627 | G13: 72 | H13: 719 | I13: 735 | J13: 70 | K13: 876 | L13: 617 | M13: 57 | N13: 672
B14: % | C14: =C13/C15 -> 0.2369714848 | D14: 0.3717277487 | E14: 0.2339049761 | F14: 0.2143589744 | G14: 0.4161849711 | H14: 0.2120943953 | I14: 0.2304075235 | J14: 0.376344086 | K14: 0.2322991249 | L14: 0.2183297948 | M14: 0.3257142857 | N14: 0.2098033094
A15: Viso: | B15: sk. | C15: =C9+C11+C13 -> 3051 | D15: 191 | E15: 3557 | F15: 2925 | G15: 173 | H15: 3390 | I15: 3190 | J15: 186 | K15: 3771 | L15: 2826 | M15: 175 | N15: 3203
C18: 3.3 Eismo įvykių ir nukentėjusiųjų juose pasiskirstymas pagal valandas 2020 m.
C19: Valanda | D19: EĮ | E19: Žuvo | F19: Sužeista | G19: EĮ | H19: Žuvo | I19: Sužeista
C21: 0 | D21: 33 | E21: 1 | F21: 35 | G21: 0.01026185421 | H21: 0.005714285714 | I21: 0.009678426475
C22: 1 | D22: 23 | E22: 4 | F22: 25 | G22: 0.00813871196 | H22: 0.02285714286 | I22: 0.007805182641
C23: 2 | D23: 13 | E23: 0 | F23: 19 | G23: 0.004600141543 | H23: 0 | I23: 0.005931938807
C24: 3 | D24: 13 | E24: 3 | F24: 12 | G24: 0.004600141543 | H24: 0.01714285714 | I24: 0.003746487668
C25: 4 | D25: 14 | E25: 0 | F25: 16 | G25: 0.004953998585 | H25: 0 | I25: 0.00499531689
C26: 5 | D26: 25 | E26: 3 | F26: 27 | G26: 0.008846426044 | H26: 0.01714285714 | I26: 0.008429597253
C27: 6 | D27: 37 | E27: 4 | F27: 41 | G27: 0.01309271054 | H27: 0.02285714286 | I27: 0.01280049953
C28: 7 | D28: 153 | E28: 8 | F28: 176 | G28: 0.05414012739 | H28: 0.04571428571 | I28: 0.05494848579
C29: 8 | D29: 108 | E29: 15 | F29: 128 | G29: 0.03821656051 | H29: 0.08571428571 | I29: 0.03996253512
C30: 9 | D30: 101 | E30: 1 | F30: 114 | G30: 0.03573956122 | H30: 0.005714285714 | I30: 0.03559163284
C31: 10 | D31: 145 | E31: 14 | F31: 152 | G31: 0.05130927105 | H31: 0.08 | I31: 0.04745551046
C32: 11 | D32: 154 | E32: 6 | F32: 173 | G32: 0.05449398443 | H32: 0.03428571429 | I32: 0.05401186388
C33: 12 | D33: 177 | E33: 10 | F33: 195 | G33: 0.06263269639 | H33: 0.05714285714 | I33: 0.0608804246
C34: 13 | D34: 190 | E34: 8 | F34: 215 | G34: 0.06723283793 | H34: 0.04571428571 | I34: 0.06712457071
C35: 14 | D35: 186 | E35: 4 | F35: 215 | G35: 0.06581740977 | H35: 0.02285714286 | I35: 0.06712457071
C36: 15 | D36: 175 | E36: 9 | F36: 185 | G36: 0.06192498231 | H36: 0.05142857143 | I36: 0.05775835155
C37: 16 | D37: 220 | E37: 15 | F37: 252 | G37: 0.07784854919 | H37: 0.08571428571 | I37: 0.07867624102
C38: 17 | D38: 272 | E38: 23 | F38: 307 | G38: 0.09624911536 | H38: 0.1314285714 | I38: 0.09584764283
C39: 18 | D39: 244 | E39: 15 | F39: 277 | G39: 0.08634111819 | H39: 0.08571428571 | I39: 0.08648142367
C40: 19 | D40: 174 | E40: 9 | F40: 192 | G40: 0.06157112527 | H40: 0.05142857143 | I40: 0.05994380268
C41: 20 | D41: 137 | E41: 8 | F41: 169 | G41: 0.04847841472 | H41: 0.04571428571 | I41: 0.05276303466
C42: 21 | D42: 107 | E42: 6 | F42: 124 | G42: 0.03786270347 | H42: 0.03428571429 | I42: 0.0387137059
C43: 22 | D43: 71 | E43: 6 | F43: 89 | G43: 0.02512384996 | H43: 0.03428571429 | I43: 0.0277864502
C44: 23 | D44: 54 | E44: 3 | F44: 65 | G44: 0.01910828025 | H44: 0.01714285714 | I44: 0.02029347487
C45: Iš viso | D45: 2826 | E45: 175 | F45: 3203 | G45: 1 | H45: 1 | I45: 1

Sheet Eismo įvykiai pagal oro sąlygas
A6: 3.4.1 Eismo įvykių ir nukentėjusiųjų juose pasiskirstymas pagal oro sąlygas, 2017– 2020 m.
A7: Metai | C7: Oro sąlygos | K7: Viso
C8: Giedra | D8: Apsiniaukę | E8: Rūkas | F8: Lietus | G8: Sniegas, kruša | H8: Stiprus vėjas | I8: Lijundra | J8: Pūga
A9: 2017 m. | B9: EĮ | C9: 1531 | D9: 972 | E9: 20 | F9: 413 | G9: 75 | H9: 5 | I9: 31 | J9: 4 | K9: =SUM(C9:J9) -> 3051
B10: Žuvo | C10: 87 | D10: 66 | E10: 0 | F10: 30 | G10: 6 | H10: 0 | I10: 2 | J10: 0 | K10: =SUM(C10:J10) -> 191
B11: Sužeista | C11: 1774 | D11: 1122 | E11: 27 | F11: 486 | G11: 94 | H11: 5 | I11: 43 | J11: 6 | K11: 3557
A12: 2018 m. | B12: EĮ | C12: 1723 | D12: 808 | E12: 42 | F12: 213 | G12: 103 | H12: 5 | I12: 24 | J12: 7 | K12: 2925
B13: Žuvo | C13: 92 | D13: 46 | E13: 5 | F13: 16 | G13: 11 | H13: 0 | I13: 1 | J13: 2 | K13: 173
B14: Sužeista | C14: 1988 | D14: 928 | E14: 52 | F14: 241 | G14: 142 | H14: 5 | I14: 25 | J14: 9 | K14: 3390
A15: 2019 m. | B15: EĮ | C15: 1869 | D15: 900 | E15: 26 | F15: 276 | G15: 73 | H15: 9 | I15: 33 | J15: 4 | K15: 3190
B16: Žuvo | C16: 96 | D16: 55 | E16: 7 | F16: 17 | G16: 10 | H16: 0 | I16: 1 | J16: 0 | K16: 186
B17: Sužeista | C17: 2233 | D17: 1032 | E17: 29 | F17: 327 | G17: 98 | H17: 11 | I17: 35 | J17: 6 | K17: 3771
A18: 2020 m. | B18: EĮ | C18: 1711 | D18: 804 | E18: 13 | F18: 255 | G18: 15 | H18: 5 | I18: 23 | J18: 0 | K18: 2826
B19: Žuvo | C19: 93 | D19: 59 | E19: 3 | F19: 17 | G19: 0 | H19: 1 | I19: 2 | J19: 0 | K19: 175
B20: Sužeista | C20: 1950 | D20: 901 | E20: 19 | F20: 283 | G20: 19 | H20: 4 | I20: 27 | J20: 0 | K20: 3203
A21: Vidutiniškai per 2017-2020 m. | B21: EĮ | C21: 1708.5 | D21: 871 | E21: 25.25 | F21: 289.25 | G21: 66.5 | H21: 6 | I21: 27.75 | J21: 3.75
B22: Žuvo | C22: 92 | D22: 56.5 | E22: 3.75 | F22: 20 | G22: 6.75 | H22: 0.25 | I22: 1.5 | J22: 0.5
B23: Sužeista | C23: 1986.25 | D23: 995.75 | E23: 31.75 | F23: 334.25 | G23: 88.25 | H23: 6.25 | I23: 32.5 | J23: 5.25
A25: 3.4.2 Eismo įvykių ir nukentėjusiųjų juose pasiskirstymas pagal kelio dangos būklę, 2017– 2020 m.
A26: Metai | C26: Kelio dangos būklė | H26: Viso
C27: Sausa | D27: Šlapia | E27: Apledėjusi | F27: Apsnigta | G27: Užteršta
A28: 2017 m. | B28: EĮ | C28: 1760 | D28: 1097 | E28: 114 | F28: 78 | G28: 2 | H28: =SUM(C28:G28) -> 3051
B29: Žuvo | C29: 106 | D29: 72 | E29: 6 | F29: 7 | G29: 0 | H29: =SUM(C29:G29) -> 191
B30: Sužeista | C30: 2019 | D30: 1272 | E30: 164 | F30: 98 | G30: 4 | H30: 3557
A31: 2018 m. | B31: EĮ | C31: 1939 | D31: 741 | E31: 78 | F31: 165 | G31: 2 | H31: 2925
B32: Žuvo | C32: 107 | D32: 49 | E32: 4 | F32: 13 | G32: 0 | H32: 173
B33: Sužeista | C33: 2226 | D33: 830 | E33: 108 | F33: 223 | G33: 3 | H33: 3390
A34: 2019 m. | B34: EĮ | C34: 2140 | D34: 848 | E34: 88 | F34: 112 | G34: 2 | H34: 3190
B35: Žuvo | C35: 118 | D35: 52 | E35: 3 | F35: 13 | G35: 0 | H35: 186
B36: Sužeista | C36: 2532 | D36: 986 | E36: 110 | F36: 141 | G36: 2 | H36: 3771
A37: 2020 m. | B37: EĮ | C37: 1993 | D37: 762 | E37: 53 | F37: 17 | G37: 1 | H37: 2826
B38: Žuvo | C38: 114 | D38: 53 | E38: 5 | F38: 3 | G38: 0 | H38: 175
B39: Sužeista | C39: 2244 | D39: 860 | E39: 68 | F39: 30 | G39: 1 | H39: 3203
A40: Vidutiniškai per 2017-2020 m. | B40: EĮ | C40: 1958 | D40: 862 | E40: 83.25 | F40: 93 | G40: 1.75
B41: Žuvo | C41: 111.25 | D41: 56.5 | E41: 4.5 | F41: 9 | G41: 0
B42: Sužeista | C42: 2255.25 | D42: 987 | E42: 112.5 | F42: 123 | G42: 2.5

Sheet Eismo įvykiai pagal metų laikus
A6: 3.5 Eismo įvykių ir nukentėjusiųjų juose pasiskirstymas pagal metų laikus
A7: Metų laikas | B7: 2017 m. | E7: 2018 m. | H7: 2019 m. | K7: 2020 m.
B8: EĮ | C8: Žuvo | D8: Sužeista | E8: EĮ | F8: Žuvo | G8: Sužeista | H8: EĮ | I8: Žuvo | J8: Sužeista | K8: EĮ | L8: Žuvo | M8: Sužeista
A9: Žiema | B9: 658 | C9: 40 | D9: 781 | E9: 637 | F9: 51 | G9: 721 | H9: 661 | I9: 50 | J9: 764 | K9: 624 | L9: 48 | M9: 688
A10: Pavasaris | B10: 686 | C10: 38 | D10: 800 | E10: 710 | F10: 41 | G10: 828 | H10: 706 | I10: 24 | J10: 837 | K10: 470 | L10: 33 | M10: 527
A11: Vasara | B11: 859 | C11: 59 | D11: 1012 | E11: 821 | F11: 41 | G11: 977 | H11: 981 | I11: 65 | J11: 1167 | K11: 958 | L11: 36 | M11: 1140
A12: Ruduo | B12: 848 | C12: 54 | D12: 964 | E12: 757 | F12: 40 | G12: 864 | H12: 842 | I12: 47 | J12: 1003 | K12: 774 | L12: 58 | M12: 848
A13: Viso: | B13: 3051 | C13: 191 | D13: 3557 | E13: 2925 | F13: 173 | G13: 3390 | H13: 3190 | I13: 186 | J13: 3771 | K13: 2826 | L13: 175 | M13: 3203

Sheet Eismo įvykiai pagal mėnesius
A6: 3.6 Eismo įvykių ir juose nukentėjusiųjų pasiskirstymas pagal mėnesius ir ketvirčius
A7: Mėnuo | B7: 2017 m. | E7: 2018 m. | H7: 2019 m. | K7: 2020 m.
B8: EĮ | C8: Žuvo | D8: Sužeista | E8: EĮ | F8: Žuvo | G8: Sužeista | H8: EĮ | I8: Žuvo | J8: Sužeista | K8: EĮ | L8: Žuvo | M8: Sužeista
A9: Sausis | B9: 194 | C9: 10 | D9: 243 | E9: 225 | F9: 25 | G9: 245 | H9: 202 | I9: 22 | J9: 246 | K9: 239 | L9: 19 | M9: 266
A10: Vasaris | B10: 165 | C10: 18 | D10: 186 | E10: 139 | F10: 10 | G10: 157 | H10: 169 | I10: 10 | J10: 195 | K10: 231 | L10: 9 | M10: 263
A11: Kovas | B11: 202 | C11: 12 | D11: 243 | E11: 172 | F11: 11 | G11: 209 | H11: 187 | I11: 12 | J11: 210 | K11: 147 | L11: 13 | M11: 165
A12: Balandis | B12: 192 | C12: 10 | D12: 224 | E12: 214 | F12: 12 | G12: 255 | H12: 256 | I12: 7 | J12: 312 | K12: 124 | L12: 2 | M12: 147
A13: Gegužė | B13: 292 | C13: 16 | D13: 333 | E13: 324 | F13: 18 | G13: 364 | H13: 263 | I13: 5 | J13: 315 | K13: 199 | L13: 18 | M13: 215
A14: Birželis | B14: 276 | C14: 13 | D14: 335 | E14: 256 | F14: 10 | G14: 305 | H14: 354 | I14: 19 | J14: 429 | K14: 298 | L14: 10 | M14: 344
A15: Liepa | B15: 264 | C15: 26 | D15: 299 | E15: 258 | F15: 15 | G15: 307 | H15: 303 | I15: 24 | J15: 361 | K15: 325 | L15: 12 | M15: 381
A16: Rugpjūtis | B16: 319 | C16: 20 | D16: 378 | E16: 307 | F16: 16 | G16: 365 | H16: 324 | I16: 22 | J16: 377 | K16: 335 | L16: 14 | M16: 415
A17: Rugsėjis | B17: 305 | C17: 12 | D17: 368 | E17: 280 | F17: 15 | G17: 311 | H17: 303 | I17: 18 | J17: 367 | K17: 339 | L17: 25 | M17: 386
A18: Spalis | B18: 284 | C18: 15 | D18: 319 | E18: 258 | F18: 13 | G18: 299 | H18: 271 | I18: 19 | J18: 314 | K18: 251 | L18: 13 | M18: 272
A19: Lapkritis | B19: 259 | C19: 27 | D19: 277 | E19: 219 | F19: 12 | G19: 254 | H19: 268 | I19: 10 | J19: 322 | K19: 184 | L19: 20 | M19: 190
A20: Gruodis | B20: 299 | C20: 12 | D20: 352 | E20: 273 | F20: 16 | G20: 319 | H20: 290 | I20: 18 | J20: 323 | K20: 154 | L20: 20 | M20: 159
A21: Viso: | B21: 3051 | C21: 191 | D21: 3557 | E21: 2925 | F21: 173 | G21: 3390 | H21: 3190 | I21: 186 | J21: 3771 | K21: 2826 | L21: 175 | M21: 3203
A22: I ketvirtis | B22: 561 | C22: 40 | D22: 672 | E22: 536 | F22: 46 | G22: 611 | H22: 558 | I22: 44 | J22: 651 | K22: 617 | L22: 41 | M22: 694
A23: II ketvirtis | B23: 760 | C23: 39 | D23: 892 | E23: 794 | F23: 40 | G23: 924 | H23: 873 | I23: 31 | J23: 1056 | K23: 621 | L23: 30 | M23: 706
A24: III ketvirtis | B24: 888 | C24: 58 | D24: 1045 | E24: 845 | F24: 46 | G24: 983 | H24: 930 | I24: 64 | J24: 1105 | K24: 999 | L24: 51 | M24: 1182
A25: IV ketvirtis | B25: 842 | C25: 54 | D25: 948 | E25: 750 | F25: 41 | G25: 872 | H25: 829 | I25: 47 | J25: 959 | K25: 589 | L25: 53 | M25: 621

Sheet Eismo įvykiai pagal savaitės d.
A6: 3.7 Eismo įvykių ir juose nukentėjusiųjų pasiskirstymas pagal savaitės dienas
A7: Diena | B7: 2017 m. | E7: 2018 m. | H7: 2019 m. | K7: 2020m
B8: EĮ | C8: Žuvo | D8: Sužeista | E8: EĮ | F8: Žuvo | G8: Sužeista | H8: EĮ | I8: Žuvo | J8: Sužeista | K8: EĮ | L8: Žuvo | M8: Sužeista
A9: I | B9: 435 | C9: 19 | D9: 480 | E9: 449 | F9: 24 | G9: 512 | H9: 481 | I9: 23 | J9: 558 | K9: 376 | L9: 23 | M9: 418
A10: II | B10: 440 | C10: 22 | D10: 502 | E10: 401 | F10: 29 | G10: 432 | H10: 493 | I10: 25 | J10: 566 | K10: 403 | L10: 31 | M10: 435
A11: III | B11: 452 | C11: 25 | D11: 506 | E11: 450 | F11: 24 | G11: 510 | H11: 443 | I11: 22 | J11: 499 | K11: 433 | L11: 30 | M11: 473
A12: IV | B12: 491 | C12: 29 | D12: 574 | E12: 423 | F12: 21 | G12: 475 | H12: 444 | I12: 23 | J12: 505 | K12: 418 | L12: 24 | M12: 476
A13: V | B13: 496 | C13: 35 | D13: 565 | E13: 495 | F13: 28 | G13: 580 | H13: 513 | I13: 27 | J13: 603 | K13: 469 | L13: 21 | M13: 516
A14: VI | B14: 403 | C14: 29 | D14: 518 | E14: 393 | F14: 29 | G14: 497 | H14: 471 | I14: 48 | J14: 597 | K14: 411 | L14: 28 | M14: 502
A15: VII | B15: 334 | C15: 32 | D15: 412 | E15: 314 | F15: 18 | G15: 384 | H15: 345 | I15: 18 | J15: 443 | K15: 316 | L15: 18 | M15: 383
A16: Viso: | B16: 3051 | C16: 191 | D16: 3557 | E16: 2925 | F16: 173 | G16: 3390 | H16: 3190 | I16: 186 | J16: 3771 | K16: 2826 | L16: 175 | M16: 3203

Sheet TP statistika
A6: 4.1 Motorinių transporto priemonių ir gyventojų skaičius 2001–2020 m.
A7: Metai | B7: Motorinės transporto priemonės | F7: Iš viso motorinių TP, be priekabų | G7: Gyventojų skaičius metų pradžioje | H7: TP motorinių/ 1000 gyv. | I7: Priekabos | J7: Iš viso su priekabomis
B8: Automobiliai | E8: Motociklai ir mopedai
B9: Lengvieji | C9: Krovininiai | D9: Autobusai
B10: M1 | C10: N1+N2+N3 | D10: M2+M3 | E10: GK+L1+L2+L3+L4+L5+L6+L7 | I10: O1+O2+O3+O4
A11: 2001 | B11: 1116473 | C11: 142916 | D11: 16631 | E11: 25192 | F11: =SUM(B11:E11) -> 1301212 | G11: 3454637 | H11: 376.6566502 | I11: 82512 | J11: 1383724
A12: 2002 | B12: 1180718 | C12: 144801 | D12: 17299 | E12: 27532 | F12: 1370350 | G12: 3431497 | H12: 399.3446592 | I12: 108749 | J12: 1479099
A13: 2003 | B13: 1260034 | C13: 156326 | D13: 16881 | E13: 28775 | F13: 1462016 | G13: 3398929 | H13: 430.1402 | I13: 118460 | J13: 1580476
A14: 2004 | B14: 1318562 | C14: 152278 | D14: 15515 | E14: 28995 | F14: 1515350 | G14: 3355220 | H14: 451.6395348 | I14: 119004 | J14: 1634354
A15: 2005 | B15: 1450646 | C15: 159841 | D15: 15598 | E15: 29920 | F15: 1656005 | G15: 3289835 | H15: 503.3702298 | I15: 124227 | J15: 1780232
A16: 2006 | B16: 1595928 | C16: 173114 | D16: 16425 | E16: 32478 | F16: 1817945 | G16: 3249983 | H16: 559.3706182 | I16: 132357 | J16: 1950302
A17: 2007 | B17: 1596186 | C17: 177622 | D17: 15776 | E17: 40811 | F17: 1830395 | G17: 3212605 | H17: 569.7541403 | I17: 143080 | J17: 1973475
A18: 2008 | B18: 1704063 | C18: 183969 | D18: 15566 | E18: 50739 | F18: 1954337 | G18: 3183856 | H18: 613.8270701 | I18: 152379 | J18: 2106716
A19: 2009 | B19: 1726462 | C19: 178865 | D19: 15144 | E19: 57147 | F19: 1977618 | G19: 3141976 | H19: 629.418557 | I19: 156102 | J19: 2133720
A20: 2010 | B20: 1734047 | C20: 175209 | D20: 14744 | E20: 60688 | F20: 1984688 | G20: 3052588 | H20: 650.1656955 | I20: 159860 | J20: 2144548
A21: 2011 | B21: 1747557 | C21: 179093 | D21: 14502 | E21: 64467 | F21: 2005619 | G21: 3003641 | H21: 667.7292659 | I21: 168405 | J21: 2174024
A22: 2012 | B22: 1797721 | C22: 181890 | D22: 14285 | E22: 67605 | F22: 2061501 | G22: 2971905 | H22: 693.6631555 | I22: 176381 | J22: 2237882
A23: 2013 | B23: 1829997 | C23: 180720 | D23: 13700 | E23: 70156 | F23: 2094573 | G23: 2943472 | H23: 711.5994309 | I23: 181404 | J23: 2275977
A24: 2014 | B24: 1212886 | C24: 106188 | D24: 7548 | E24: 33176 | F24: 1359798 | G24: 2921262 | H24: 465.4830686 | I24: 129101 | J24: 1488899
A25: 2015 | B25: 1257473 | C25: 109814 | D25: 7473 | E25: 38202 | F25: 1412962 | G25: 2888558 | H25: 489.1582582 | I25: 136196 | J25: 1549158
A26: 2016 | B26: 1307298 | C26: 115853 | D26: 7469 | E26: 39818 | F26: 1470438 | G26: 2847904 | H26: 516.3228817 | I26: 143602 | J26: 1614040
A27: 2017 | B27: 1363591 | C27: 121728 | D27: 7681 | E27: 41885 | F27: 1534885 | G27: 2808901 | H27: 546.4361329 | I27: 150321 | J27: 1685206
A28: 2018 | B28: 1442747 | C28: 132172 | D28: 7997 | E28: 45304 | F28: 1628220 | G28: 2794184 | H28: 582.7175304 | I28: 165271 | J28: 1793491
A29: 2019 | B29: 1514150 | C29: 143285 | D29: 8293 | E29: 53283 | F29: 1719011 | G29: 2794090 | H29: 615.231077 | I29: 180314 | J29: 1899325
A30: 2020 | B30: 1573362 | C30: 150524 | D30: 8145 | E30: 60946 | F30: 1792977 | G30: 2795175 | H30: 641.4542918 | I30: 192952 | J30: 1985929
A32: 4.2 Registruotų lengvųjų automobilių (M1 kategorijos) skaičius pagal amžių nurodytai datai
A33: M1 TP amžius | B33: 2018-01-01 | E33: 2019-01-01 | H33: 2020-01-01 | K33: 2021-01-01
B34: vid. M1 parko amžius, m. | C34: Viso M1 TP | E34: vid. M1 parko amžius, m. | F34: Viso M1 TP | H34: vid. M1 parko amžius, m. | I34: Viso M1 TP | K34: vid. M1 parko amžius, m. | L34: 2020 Viso M1 TP
C35: sk. | D35: %* | F35: sk. | G35: %* | I35: sk. | J35: %* | L35: sk. | M35: %*
A36: ≤ 3 m. | B36: 14.5550699 | C36: 71673 | D36: 4.669600654 | E36: 14.7 | F36: 83526 | G36: 5.129896451 | H36: 14.9 | I36: 95909 | J36: 5.579312756 | K36: 15.2 | L36: 100609 | M36: 5.611282242
A37: 3 < X ≤ 5 | C37: 40470 | D37: 2.636679621 | F37: 43786 | G37: 2.689194335 | I37: 51569 | J37: 2.99992263 | L37: 58072 | M37: 3.238859171
A38: 5 < X ≤ 10 | C38: 213269 | D38: 13.89478691 | F38: 191663 | G38: 11.77132083 | I38: 177003 | J38: 10.29679275 | L38: 182111 | M38: 10.15690664
A39: 10 < X ≤ 15 | C39: 446442 | D39: 29.08634849 | F39: 480517 | G39: 29.51179816 | I39: 490535 | J39: 28.53588488 | L39: 465964 | M39: 25.98828652
A40: 15 < X | C40: 590796 | D40: 38.49122247 | F40: 641805 | G40: 39.41758485 | I40: 698305 | J40: 40.62248584 | L40: 766081 | M40: 42.72676114
A41: Nenustatyta | C41: 941 | D41: 0.05915752646 | F41: 1450 | G41: 0.05896009139 | I41: 829 | J41: 0.03926676444 | L41: 525 | M41: 0.03446781526
A42: Viso M1 TP: | C42: =SUM(C36:C41) -> 1363591 | D42: 88.83779567 | F42: =SUM(F36:F41) -> 1442747 | G42: 88.57875471 | I42: =SUM(I36:I41) -> 1514150 | J42: 88.07366561 | L42: =SUM(L36:L41) -> 1573362 | M42: 87.75656353
A43: * nurodomas procentas nuo visų motorinių TP parko tais metais

Sheet TP gyventojų nukentėjusių stat
A6: 4.3 Transporto priemonių, eismo įvykių ir nukentėjusių juose pasiskirstymas 2001–2020 m.
A7: Metai | B7: Iš viso motorinių TP, be priekabų | C7: EĮ | D7: Žuvo | E7: VISO Sužeista | F7: Iš jų sunkiai sužeista* | G7: Iš jų lengvai sužeista | H7: Gyventojų skaičius metų pradžioje | I7: Motorinių TP /1000 gyv. | J7: EĮ /1mln. gyv. | K7: Žuvusių /1mln. gyv. | L7: Viso sužeistų /1mln. gyv. | M7: Sunkiai sužeistų /1mln. gyv. | N7: Lengvai sužeistų /1mln. gyv.
A8: 2001 m. | B8: 1301212 | C8: 5972 | D8: 706 | E8: 7103 | H8: 3454637 | I8: =B8*1000/H8 -> 376.6566502 | J8: =C8*1000000/H8 -> 1728.691032 | K8: =D8*1000000/H8 -> 204.3630054 | L8: =E8*1000000/H8 -> 2056.077093
A9: 2002 m. | B9: 1370350 | C9: 6090 | D9: 697 | E9: 7427 | H9: 3431497 | I9: =B9*1000/H9 -> 399.3446592 | J9: =C9*1000000/H9 -> 1774.735633 | K9: =D9*1000000/H9 -> 203.1183475 | L9: =E9*1000000/H9 -> 2164.361502
A10: 2003 m. | B10: 1462016 | C10: 5963 | D10: 709 | E10: 7263 | H10: 3398929 | I10: 430.1402 | J10: 1754.376158 | K10: 208.5951192 | L10: 2136.849578
A11: 2004 m. | B11: 1515350 | C11: 6372 | D11: 751 | E11: 7877 | H11: 3355220 | I11: 451.6395348 | J11: 1899.13031 | K11: 223.8303301 | L11: 2347.6851
A12: 2005 m. | B12: 1656005 | C12: 6771 | D12: 773 | E12: 8466 | H12: 3289835 | I12: 503.3702298 | J12: 2058.157932 | K12: 234.9661913 | L12: 2573.38134
A13: 2006 m. | B13: 1817945 | C13: 6658 | D13: 760 | E13: 8334 | H13: 3249983 | I13: 559.3706182 | J13: 2048.626101 | K13: 233.847377 | L13: 2564.321106
A14: 2007 m. | B14: 1830395 | C14: 6448 | D14: 740 | E14: 8042 | H14: 3212605 | I14: 569.7541403 | J14: 2007.093932 | K14: 230.3426658 | L14: 2503.264485
A15: 2008 m. | B15: 1954337 | C15: 4795 | D15: 499 | E15: 5818 | H15: 3183856 | I15: 613.8270701 | J15: 1506.035449 | K15: 156.7281937 | L15: 1827.34395
A16: 2009 m. | B16: 1977618 | C16: 3805 | D16: 370 | E16: 4426 | H16: 3141976 | I16: 629.418557 | J16: 1211.021345 | K16: 117.7602884 | L16: 1408.667666
A17: 2010 m. | B17: 1984688 | C17: 3530 | D17: 299 | E17: 4230 | H17: 3052588 | I17: 650.1656955 | J17: 1156.395819 | K17: 97.94967418 | L17: 1385.709437
A18: 2011 m. | B18: 2005619 | C18: 3266 | D18: 296 | E18: 3919 | H18: 3003641 | I18: 667.7292659 | J18: 1087.34699 | K18: 98.54706338 | L18: 1304.749802
A19: 2012 m. | B19: 2061501 | C19: 3173 | D19: 301 | E19: 3712 | H19: 2971905 | I19: 693.6631555 | J19: 1067.665353 | K19: 101.2818377 | L19: 1249.030504
A20: 2013 m. | B20: 2094573 | C20: 3391 | D20: 256 | E20: 4007 | H20: 2943472 | I20: 711.5994309 | J20: 1152.040855 | K20: 86.97212 | L20: 1361.317519
A21: 2014 m. | B21: 1359798 | C21: 3255 | D21: 267 | E21: 3785 | H21: 2921262 | I21: 465.4830686 | J21: 1114.24446 | K21: 91.39885433 | L21: 1295.672898
A22: 2015 m. | B22: 1412962 | C22: 3033 | D22: 242 | E22: 3594 | H22: 2888558 | I22: 489.1582582 | J22: 1050.004881 | K22: 83.77882667 | L22: 1244.219434
A23: 2016 m. | B23: 1470438 | C23: 3201 | D23: 192 | E23: 3750 | H23: 2847904 | I23: 516.3228817 | J23: 1123.984516 | K23: 67.41800285 | L23: 1316.757868
A24: 2017 m. | B24: 1534885 | C24: 3051 | D24: 191 | E24: 3557 | F24: 368 | G24: 3189 | H24: 2808901 | I24: 546.4361329 | J24: 1086.189937 | K24: 67.99812453 | L24: 1266.331565 | M24: =F24*1000000/H24 -> 131.0120933 | N24: =G24*1000000/H24 -> 1135.319472
A25: 2018 m. | B25: 1628220 | C25: 2925 | D25: 173 | E25: 3390 | F25: 165 | G25: 3225 | H25: 2794184 | I25: 582.7175304 | J25: 1046.817246 | K25: 61.91431917 | L25: 1213.234347 | M25: =F25*1000000/H25 -> 59.05122927 | N25: =G25*1000000/H25 -> 1154.183118
A26: 2019 m. | B26: 1719011 | C26: 3190 | D26: 186 | E26: 3771 | F26: 308 | G26: 3463 | H26: 2794090 | I26: 615.231077 | J26: 1141.695507 | K26: 66.56907974 | L26: 1349.634407 | M26: =F26*1000000/H26 -> 110.2326697 | N26: =G26*1000000/H26 -> 1239.401737
A27: 2020 m. | B27: 1792977 | C27: 2826 | D27: 175 | E27: 3203 | F27: 376 | G27: 2827 | H27: 2795175 | I27: 641.4542918 | J27: 1011.027932 | K27: 62.6078868 | L27: 1145.903208 | M27: =F27*1000000/H27 -> 134.5175168 | N27: =G27*1000000/H27 -> 1011.385691
A28: * eismo įvykyje dalyvavęs eismo dalyvis buvo gydomas ligoninėje

Sheet TP dalyvavo-apgadinta-sukėlė
A6: 4.4 Transporto priemonių tipai, sukėlę ir dalyvavę eismo įvykiuose 2017-2020 m.
A7: Transporto priemonė | B7: 2017 m. | H7: 2018 m. | N7: 2019 m. | T7: 2020 m.
B8: Dalyvavo EĮ | D8: Apgadinta EĮ metu | F8: Sukėlė EĮ | H8: Dalyvavo EĮ | J8: Apgadinta EĮ metu | L8: Sukėlė EĮ | N8: Dalyvavo EĮ | P8: Apgadinta EĮ metu | R8: Sukėlė EĮ | T8: Dalyvavo EĮ | V8: Apgadinta EĮ metu | X8: Sukėlė EĮ
B9: sk. | C9: % | D9: sk. | E9: % | F9: sk. | G9: % | H9: sk. | I9: % | J9: sk. | K9: % | L9: sk. | M9: % | N9: sk. | O9: % | P9: sk. | Q9: % | R9: sk. | S9: % | T9: sk. | U9: % | V9: sk. | W9: % | X9: sk. | Y9: %
A10: Lengvieji automobiliai | B10: 4762 | C10: =B10/$B$18 -> 0.7663340843 | D10: 4190 | E10: =D10/$D$18 -> 0.8808072314 | F10: 1935 | G10: =F10/$F$18 -> 0.7811869197 | H10: 4391 | I10: =H10/$H$18 -> 0.7332999332 | J10: 3910 | K10: =J10/$J$18 -> 0.866385996 | L10: 1838 | M10: =L10/$L$18 -> 0.7573135558 | N10: 4913 | O10: =N10/$N$18 -> 0.7366921577 | P10: 4438 | Q10: =P10/$P$18 -> 0.8674745895 | R10: 1969 | S10: =R10/$R$18 -> 0.7489539749 | T10: 3994 | U10: =T10/$T$18 -> 0.6988626422 | V10: 3587 | W10: =V10/$V$18 -> 0.8622596154 | X10: 1682 | Y10: =X10/$X$18 -> 0.7396657872
A11: Krovininiai automobiliai (ir priekabos) | B11: 409 | C11: 0.06581911812 | D11: 261 | E11: 0.05486651251 | F11: 144 | G11: 0.05813484053 | H11: 410 | I11: =H11/$H$18 -> 0.06847027388 | J11: 269 | K11: =J11/$J$18 -> 0.05960558387 | L11: 164 | M11: =L11/$L$18 -> 0.06757313556 | N11: 440 | O11: =N11/$N$18 -> 0.06597690808 | P11: 302 | Q11: =P11/$P$18 -> 0.05903049257 | R11: 169 | S11: =R11/$R$18 -> 0.06428299734 | T11: 452 | U11: =T11/$T$18 -> 0.07909011374 | V11: 292 | W11: =V11/$V$18 -> 0.07019230769 | X11: 134 | Y11: =X11/$X$18 -> 0.05892700088
A12: Viešasis transportas (autobusai, troleibusai, mikro autobusai) | B12: 361 | C12: 0.05809462504 | D12: 131 | E12: 0.02753836452 | F12: 76 | G12: 0.03068227695 | H12: 399 | I12: 0.06663326653 | J12: 129 | K12: 0.02858409041 | L12: 92 | M12: 0.03790688092 | N12: 406 | O12: 0.06087869246 | P12: 127 | Q12: 0.02482408131 | R12: 93 | S12: 0.03537466717 | T12: 304 | U12: 0.05319335083 | V12: 54 | W12: 0.01298076923 | X12: 54 | Y12: 0.02374670185
A13: Dviračiai (dviračiai, el. dviračiai, el. ir mechaniniai paspirtukai) | B13: 354 | C13: 0.05696813647 | D13: 17 | E13: 0.003573680891 | F13: 154 | G13: 0.06217198224 | H13: 372 | I13: 0.0621242485 | J13: 14 | K13: 0.003102149346 | L13: 162 | M13: 0.06674907293 | N13: 418 | O13: 0.06267806268 | P13: 20 | Q13: 0.003909304144 | R13: 176 | S13: 0.06694560669 | T13: 534 | U13: 0.09343832021 | V13: 27 | W13: 0.006490384615 | X13: 197 | Y13: 0.08663148637
A14: Motociklai | B14: 197 | C14: 0.03170260702 | D14: 104 | E14: 0.02186251839 | F14: 104 | G14: 0.04198627372 | H14: 260 | I14: 0.04342017368 | J14: 111 | K14: 0.02459561267 | L14: 115 | M14: 0.04738360115 | N14: 318 | O14: 0.04768331084 | P14: 149 | Q14: 0.02912431587 | R14: 147 | S14: 0.0559147965 | T14: 277 | U14: 0.04846894138 | V14: 124 | W14: 0.02980769231 | X14: 143 | Y14: 0.06288478452
A15: Mopedai | B15: 78 | C15: 0.01255230126 | D15: 31 | E15: 0.006516712214 | F15: 42 | G15: 0.01695599516 | H15: 81 | I15: 0.01352705411 | J15: 37 | K15: 0.008198537558 | L15: 35 | M15: 0.014421096 | N15: 92 | O15: 0.01379517169 | P15: 43 | Q15: 0.008405003909 | R15: 47 | S15: 0.01787751997 | T15: 84 | U15: 0.01469816273 | V15: 45 | W15: 0.01081730769 | X15: 41 | Y15: 0.01802990325
A16: Žemės ūkio technika | B16: 33 | C16: 0.005310588993 | D16: 15 | E16: 0.003153247845 | F16: 16 | G16: 0.006459426726 | H16: 36 | I16: 0.006012024048 | J16: 16 | K16: 0.003545313539 | L16: 11 | M16: 0.004532344458 | N16: 53 | O16: 0.007947218474 | P16: 21 | Q16: 0.004104769351 | R16: 18 | S16: 0.006846709776 | T16: 42 | U16: 0.007349081365 | V16: 17 | W16: 0.004086538462 | X16: 14 | Y16: 0.006156552331
A17: Kitos TP | B17: 20 | C17: 0.003218538783 | D17: 8 | E17: 0.001681732184 | F17: 6 | G17: 0.002422285022 | H17: 39 | I17: 0.006513026052 | J17: 27 | K17: 0.005982716596 | L17: 10 | M17: 0.004120313144 | N17: 29 | O17: 0.004348478033 | P17: 16 | Q17: 0.003127443315 | R17: 10 | S17: 0.003803727653 | T17: 28 | U17: 0.004899387577 | V17: 14 | W17: 0.003365384615 | X17: 9 | Y17: 0.003957783641
A18: Viso: | B18: =SUM(B10:B17) -> 6214 | C18: 1 | D18: 4757 | E18: 1 | F18: 2477 | G18: 1 | H18: 5988 | I18: 1 | J18: 4513 | K18: 1 | L18: 2427 | M18: 1 | N18: 6669 | O18: 1 | P18: 5116 | Q18: 1 | R18: 2629 | S18: 1 | T18: 5715 | U18: 1 | V18: 4160 | W18: 1 | X18: 2274 | Y18: 1

Sheet Žala dėl EĮ 2017-2020 m.
A6: 5.1.1 Žala, kurią sudarė eismo įvykyje žuvęs, sunkiai ar lengvai sužeistas žmogus, 2017–2020 m.
A7: Nukentėjusieji EĮ | B7: Žala, €
B9: 2017 m. | C9: 2018 m. | D9: 2019 m. | E9: 2020 m.
A10: Žūtis, € | B10: 565940.28 | C10: 591538.3 | D10: 607474.44 | E10: 588828.97
A11: Sunkus sužalojimas, € | B11: 81020.85 | C11: 84685.5 | D11: 86966.94 | E11: 84297.63
A12: Lengvas sužalojimas, € | B12: 5446.2 | C12: 5692.54 | D12: 5845.9 | E12: 5666.47
A14: 5.1.2 Žala Lietuvos ekonomikai dėl eismo įvykiuose nukentėjusių žmonių, 2017–2020 m.
A15: Metai | B15: EĮ | C15: Žuvo | D15: Sunkiai sužeista | E15: Lengvai sužeista | F15: Žala, mln. €
A16: =B9 -> 2017 m. | B16: 3051 | C16: 191 | D16: 368 | E16: 3189 | F16: 155.2781981
A17: =C9 -> 2018 m. | B17: 2925 | C17: 173 | D17: 165 | E17: 3225 | F17: 134.6676749
A18: =D9 -> 2019 m. | B18: 3190 | C18: 186 | D18: 308 | E18: 3463 | F18: 160.0204151
A19: =E9 -> 2020 m. | B19: 2826 | C19: 175 | D19: 376 | E19: 2827 | F19: 150.7600893
A22: Žalos Lietuvos ekonomikai dėl įskaitinių eismo įvykių kitimas, 2017–2020 m.
J24: Metai | K24: Eismo įvykiai | L24: Žala, mln. €
J25: 2017 m. | K25: 3051 | L25: 155.2781981
J26: 2018 m. | K26: 2925 | L26: 134.6676749
J27: 2019 m. | K27: 3190 | L27: 160.0204151
J28: 2020 m. | K28: 2826 | L28: 150.7600893
AL41: Police (vair+moc) | AM41: 92 | AN41: 2807
AL42: skirtumas | AM42: =AM41-#REF! ->  | AN42: =AN41-#REF! -> 

Sheet Žala LAKD_savivaldybėse dėl EĮ
A6: 5.2 Žala Lietuvos ekonomikai dėl įskaitinių eismo įvykių, įvykusių valstybinės ir vietinės reikšmės keliuose, 2017–2020 m.
A7: Metai | B7: EĮ | C7: Žuvo | D7: Sužeista | F7: Žala, mln.€
D8: Sunkiai sužeisti* | E8: Lengvai sužeisti
A9: 2017
A10: Valstybinės reikšmės keliai ** | B10: 982 | C10: 127 | D10: 195 | E10: 1080 | F10: 93.55537731
A11: Vietiniai keliai ir gatvės *** | B11: 2069 | C11: 64 | D11: 173 | E11: 2109 | F11: 61.72282077
A12: Viso: | B12: =B10+B11 -> 3051 | C12: =C10+C11 -> 191 | D12: 368 | E12: 3189 | F12: 155.2781981
A13: 2018
A14: Valstybinės reikšmės keliai ** | B14: 1068 | C14: 118 | D14: 95 | E14: 1279 | F14: 85.12740056
A15: Vietiniai keliai ir gatvės *** | B15: 1857 | C15: 55 | D15: 70 | E15: 1946 | F15: 49.54027434
A16: Viso: | B16: =B14+B15 -> 2925 | C16: =C14+C15 -> 173 | D16: 165 | E16: 3225 | F16: 134.6676749
A17: 2019
A18: Valstybinės reikšmės keliai ** | B18: 1297 | C18: 120 | D18: 183 | E18: 1487 | F18: 97.50473612
A19: Vietiniai keliai ir gatvės *** | B19: 1893 | C19: 66 | D19: 125 | E19: 1976 | F19: 62.51567894
A20: Viso: | B20: =B18+B19 -> 3190 | C20: =C18+C19 -> 186 | D20: 308 | E20: 3463 | F20: 160.0204151
A21: 2020
A22: Valstybinės reikšmės keliai ** | B22: 1051 | C22: 127 | D22: 210 | E22: 1065 | F22: 98.51857204
A23: Vietiniai keliai ir gatvės *** | B23: 1775 | C23: 48 | D23: 166 | E23: 1762 | F23: 52.24151728
A24: Viso: | B24: =B22+B23 -> 2826 | C24: =C22+C23 -> 175 | D24: 376 | E24: 2827 | F24: 150.7600893
A25: * - eismo įvykyje dalyvavęs eismo dalyvis buvo gydomas ligoninėje; ** valstybinės reikšmės keliai, priklausantys LAKD; *** savivaldybėms priklausantys keliai ir gatvės
A27: Žalos Lietuvos ekonomikai dėl įskaitinių eismo įvykių kitimas,valstybinės ir vietinės reikšmės keliuose, 2017–2020 m.
J31: Žala, Eur
J32: 2017 m. | K32: 2018 m. | L32: 2019 m. | M32: 2020 m. | O32: %
I33: Valstybinės reikšmės keliai | J33: 93.55537731 | K33: 85.12740056 | L33: 97.50473612 | M33: 98.51857204 | N33: =SUM(J33:M33) -> 374.706086 | O33: =N33*100/$N$35 -> 62.37550075
I34: Vietiniai keliai ir gatvės | J34: 61.72282077 | K34: 49.54027434 | L34: 62.51567894 | M34: 52.24151728 | N34: =SUM(J34:M34) -> 226.0202913 | O34: =N34*100/$N$35 -> 37.62449925
J35: =SUM(J33:J34) -> 155.2781981 | K35: =SUM(K33:K34) -> 134.6676749 | L35: 160.0204151 | M35: 150.7600893 | N35: =SUM(J35:M35) -> 600.7263774

Sheet Žala pagal EĮ rūšis gyv_Užm
A6: 5.3 Žala Lietuvos ekonomikai dėl įskaitinių eismo įvykių kitimas gyvenvietėse ir užmiesčio keliuose, 2017–2020 m.
A7: EĮ rūšys | B7: 2017 m. | I7: 2018 m. | P7: 2019 m. | W7: 2020 m. | AD7: Visa žala € per 2020 metus
B8: EĮ | C8: Žuvo | E8: Sunkiai sužeista | G8: Lengvai sužeista | I8: EĮ | J8: Žuvo | L8: Sunkiai sužeista | N8: Lengvai sužeista | P8: EĮ | Q8: Žuvo | S8: Sunkiai sužeista | U8: Lengvai sužeista | W8: EĮ | X8: Žuvo | Z8: Sunkiai sužeista | AB8: Lengvai sužeista
C9: sk. | D9: žala, € | E9: sk. | F9: žala, € | G9: sk. | H9: žala, € | J9: sk. | K9: žala, € | L9: sk. | M9: žala, € | N9: sk. | O9: žala, € | Q9: sk. | R9: žala, € | S9: sk. | T9: žala, € | U9: sk. | V9: žala, € | X9: sk. | Y9: žala, € | Z9: sk. | AA9: žala, € | AB9: sk. | AC9: žala, €
A10: Užmiestyje | B10: Užmiestyje | I10: Užmiestyje | P10: Užmiestyje | W10: Užmiestyje
A11: Susidūrimas | B11: 277 | C11: 44 | D11: 24901372.32 | E11: 75 | F11: 6076563.75 | G11: 377 | H11: 2053217.4 | I11: 265 | J11: 30 | K11: 17746149 | L11: 35 | M11: 2963992.5 | N11: 420 | O11: 2390866.8 | P11: 336 | Q11: 39 | R11: 23691503.16 | S11: 74 | T11: 6435553.56 | U11: 479 | V11: 2800186.1 | W11: 306 | X11: 47 | Y11: 27674961.59 | Z11: 64 | AA11: 5395048.32 | AB11: 403 | AC11: 2283587.41 | AD11: 35353597.32
A12: Susidūrimas su motociklu | B12: 4 | C12: 0 | D12: 0 | E12: 2 | F12: 162041.7 | G12: 5 | H12: 27231 | I12: 14 | J12: 5 | K12: 2957691.5 | L12: 0 | M12: 0 | N12: 11 | O12: 62617.94 | P12: 14 | Q12: 3 | R12: 1822423.32 | S12: 5 | T12: 434834.7 | U12: 9 | V12: 52613.1 | W12: 15 | X12: 0 | Y12: 0 | Z12: 8 | AA12: 674381.04 | AB12: 10 | AC12: 56664.7 | AD12: 731045.74
A13: Susidūrimas su mopedu | B13: 1 | C13: 2 | D13: 1131880.56 | E13: 0 | F13: 0 | G13: 2 | H13: 10892.4 | I13: 3 | J13: 1 | K13: 591538.3 | L13: 1 | M13: 84685.5 | N13: 3 | O13: 17077.62 | P13: 5 | Q13: 0 | R13: 0 | S13: 1 | T13: 86966.94 | U13: 6 | V13: 35075.4 | W13: 4 | X13: 1 | Y13: 588828.97 | Z13: 0 | AA13: 0 | AB13: 3 | AC13: 16999.41 | AD13: 605828.38
A14: Susidūrimas su dviračiu | B14: 45 | C14: 9 | D14: 5093462.52 | E14: 7 | F14: 567145.95 | G14: 30 | H14: 163386 | I14: 34 | J14: 6 | K14: 3549229.8 | L14: 7 | M14: 592798.5 | N14: 22 | O14: 125235.88 | P14: 35 | Q14: 7 | R14: 4252321.08 | S14: 0 | T14: 0 | U14: 28 | V14: 163685.2 | W14: 35 | X14: 5 | Y14: 2944144.85 | Z14: 3 | AA14: 252892.89 | AB14: 28 | AC14: 158661.16 | AD14: 3355698.9
A15: Susidūrimas tarp dviračių | B15: 2 | C15: 0 | D15: 0 | E15: 0 | F15: 0 | G15: 2 | H15: 10892.4 | I15: 0 | J15: 0 | K15: 0 | L15: 0 | M15: 0 | N15: 0 | O15: 0 | P15: 0 | Q15: 0 | R15: 0 | S15: 0 | T15: 0 | U15: 0 | V15: 0 | W15: 0 | X15: 0 | Y15: 0 | Z15: 0 | AA15: 0 | AB15: 0 | AC15: 0 | AD15: 0
A16: Susidūrimas dviračio ir paspirtuko | B16: 0 | C16: 0 | D16: 0 | E16: 0 | F16: 0 | G16: 0 | H16: 0 | I16: 0 | J16: 0 | K16: 0 | L16: 0 | M16: 0 | N16: 0 | O16: 0 | P16: 0 | Q16: 0 | R16: 0 | S16: 0 | T16: 0 | U16: 0 | V16: 0 | W16: 0 | X16: 0 | Y16: 0 | Z16: 0 | AA16: 0 | AB16: 0 | AC16: 0 | AD16: 0
A17: Susidūrimas su paspirtuku | B17: 0 | C17: 0 | D17: 0 | E17: 0 | F17: 0 | G17: 0 | H17: 0 | I17: 0 | J17: 0 | K17: 0 | L17: 0 | M17: 0 | N17: 0 | O17: 0 | P17: 1 | Q17: 0 | R17: 0 | S17: 0 | T17: 0 | U17: 1 | V17: 5845.9 | W17: 2 | X17: 0 | Y17: 0 | Z17: 0 | AA17: 0 | AB17: 2 | AC17: 11332.94 | AD17: 11332.94
A18: Užvažiavimas ant pėsčiojo | B18: 71 | C18: 32 | D18: 18110088.96 | E18: 13 | F18: 1053271.05 | G18: 29 | H18: 157939.8 | I18: 62 | J18: 28 | K18: 16563072.4 | L18: 9 | M18: 762169.5 | N18: 29 | O18: 165083.66 | P18: 51 | Q18: 18 | R18: 10934539.92 | S18: 10 | T18: 869669.4 | U18: 25 | V18: 146147.5 | W18: 50 | X18: 24 | Y18: 14131895.28 | Z18: 8 | AA18: 674381.04 | AB18: 19 | AC18: 107662.93 | AD18: 14913939.25
A19: Užvažiavimas ant kliūties | B19: 17 | C19: 1 | D19: 565940.28 | E19: 3 | F19: 243062.55 | G19: 18 | H19: 98031.6 | I19: 19 | J19: 5 | K19: 2957691.5 | L19: 1 | M19: 84685.5 | N19: 16 | O19: 91080.64 | P19: 20 | Q19: 3 | R19: 1822423.32 | S19: 3 | T19: 260900.82 | U19: 21 | V19: 122763.9 | W19: 24 | X19: 4 | Y19: 2355315.88 | Z19: 4 | AA19: 337190.52 | AB19: 24 | AC19: 135995.28 | AD19: 2828501.68
A20: Užvažiavimas ant gyvūno | B20: 17 | C20: 1 | D20: 565940.28 | E20: 4 | F20: 324083.4 | G20: 17 | H20: 92585.4 | I20: 34 | J20: 1 | K20: 591538.3 | L20: 2 | M20: 169371 | N20: 44 | O20: 250471.76 | P20: 29 | Q20: 2 | R20: 1214948.88 | S20: 2 | T20: 173933.88 | U20: 31 | V20: 181222.9 | W20: 15 | X20: 0 | Y20: 0 | Z20: 3 | AA20: 252892.89 | AB20: 13 | AC20: 73664.11 | AD20: 326557
A21: Apvirtimas | B21: 173 | C21: 11 | D21: 6225343.08 | E21: 30 | F21: 2430625.5 | G21: 182 | H21: 991208.4 | I21: 161 | J21: 11 | K21: 6506921.3 | L21: 6 | M21: 508113 | N21: 180 | O21: 1024657.2 | P21: 188 | Q21: 15 | R21: 9112116.6 | S21: 18 | T21: 1565404.92 | U21: 213 | V21: 1245176.7 | W21: 166 | X21: 17 | Y21: 10010092.49 | Z21: 43 | AA21: 3624798.09 | AB21: 144 | AC21: 815971.68 | AD21: 14450862.26
A22: Susidūrimas su stovinčia TP | B22: 4 | C22: 0 | D22: 0 | E22: 0 | F22: 0 | G22: 8 | H22: 43569.6 | I22: 8 | J22: 1 | K22: 591538.3 | L22: 0 | M22: 0 | N22: 12 | O22: 68310.48 | P22: 14 | Q22: 1 | R22: 607474.44 | S22: 5 | T22: 434834.7 | U22: 15 | V22: 87688.5 | W22: 15 | X22: 0 | Y22: 0 | Z22: 6 | AA22: 505785.78 | AB22: 13 | AC22: 73664.11 | AD22: 579449.89
A23: Susidūrimas su bėgine TP | B23: 0 | C23: 0 | D23: 0 | E23: 0 | F23: 0 | G23: 0 | H23: 0 | I23: 0 | J23: 0 | K23: 0 | L23: 0 | M23: 0 | N23: 0 | O23: 0 | P23: 0 | Q23: 0 | R23: 0 | S23: 0 | T23: 0 | U23: 0 | V23: 0 | W23: 1 | X23: 0 | Y23: 0 | Z23: 1 | AA23: 84297.63 | AB23: 0 | AC23: 0 | AD23: 84297.63
A24: Kiti eismo įvykiai | B24: 139 | C24: 7 | D24: 3961581.96 | E24: 28 | F24: 2268583.8 | G24: 152 | H24: 827822.4 | I24: 143 | J24: 14 | K24: 8281536.2 | L24: 9 | M24: 762169.5 | N24: 159 | O24: 905113.86 | P24: 154 | Q24: 9 | R24: 5467269.96 | S24: 17 | T24: 1478437.98 | U24: 161 | V24: 941189.9 | W24: 135 | X24: 7 | Y24: 4121802.79 | Z24: 27 | AA24: 2276036.01 | AB24: 129 | AC24: 730974.63 | AD24: 7128813.43
A25: Viso: | B25: 750 | C25: 107 | D25: 60555609.96 | E25: 162 | F25: 13125377.7 | G25: 822 | H25: 4476776.4 | I25: 743 | J25: 102 | K25: 60336906.6 | L25: 70 | M25: 5927985 | N25: 896 | O25: 5100515.84 | P25: 847 | Q25: 97 | R25: 58925020.68 | S25: 135 | T25: 11740536.9 | U25: 989 | V25: 5781595.1 | W25: 768 | X25: 105 | Y25: 61827041.85 | Z25: 167 | AA25: 14077704.21 | AB25: 788 | AC25: 4465178.36 | AD25: 80369924.42
A26: Gyvenvietėje | B26: Gyvenvietėje | I26: Gyvenvietėje | P26: Gyvenvietėje | W26: Gyvenvietėje
A27: Susidūrimas | B27: 756 | C27: 14 | D27: 7923163.92 | E27: 51 | F27: 4132063.35 | G27: 932 | H27: 5075858.4 | I27: 670 | J27: 7 | K27: 4140768.1 | L27: 19 | M27: 1609024.5 | N27: 842 | O27: 4793118.68 | P27: 707 | Q27: 20 | R27: 12149488.8 | S27: 37 | T27: 3217776.78 | U27: 901 | V27: 5267155.9 | W27: 502 | X27: 16 | Y27: 9421263.52 | Z27: 39 | AA27: 3287607.57 | AB27: 594 | AC27: 3365883.18 | AD27: 16074754.27
A28: Susidūrimas su motociklu | B28: 17 | C28: 2 | D28: 1131880.56 | E28: 3 | F28: 243062.55 | G28: 15 | H28: 81693 | I28: 53 | J28: 4 | K28: 2366153.2 | L28: 5 | M28: 423427.5 | N28: 50 | O28: 284627 | P28: 77 | Q28: 6 | R28: 3644846.64 | S28: 9 | T28: 782702.46 | U28: 75 | V28: 438442.5 | W28: 58 | X28: 5 | Y28: 2944144.85 | Z28: 10 | AA28: 842976.3 | AB28: 50 | AC28: 283323.5 | AD28: 4070444.65
A29: Susidūrimas su mopedu | B29: 13 | C29: 1 | D29: 565940.28 | E29: 0 | F29: 0 | G29: 12 | H29: 65354.4 | I29: 19 | J29: 0 | K29: 0 | L29: 1 | M29: 84685.5 | N29: 18 | O29: 102465.72 | P29: 19 | Q29: 0 | R29: 0 | S29: 1 | T29: 86966.94 | U29: 20 | V29: 116918 | W29: 21 | X29: 0 | Y29: 0 | Z29: 4 | AA29: 337190.52 | AB29: 20 | AC29: 113329.4 | AD29: 450519.92
A30: Susidūrimas su dviračiu | B30: 227 | C30: 4 | D30: 2263761.12 | E30: 19 | F30: 1539396.15 | G30: 212 | H30: 1154594.4 | I30: 229 | J30: 3 | K30: 1774614.9 | L30: 6 | M30: 508113 | N30: 227 | O30: 1292206.58 | P30: 242 | Q30: 4 | R30: 2429897.76 | S30: 14 | T30: 1217537.16 | U30: 229 | V30: 1338711.1 | W30: 295 | X30: 11 | Y30: 6477118.67 | Z30: 21 | AA30: 1770250.23 | AB30: 273 | AC30: 1546946.31 | AD30: 9794315.21
A31: Susidūrimas tarp dviračių | B31: 2 | C31: 0 | D31: 0 | E31: 0 | F31: 0 | G31: 2 | H31: 10892.4 | I31: 5 | J31: 0 | K31: 0 | L31: 0 | M31: 0 | N31: 8 | O31: 45540.32 | P31: 7 | Q31: 0 | R31: 0 | S31: 0 | T31: 0 | U31: 7 | V31: 40921.3 | W31: 9 | X31: 0 | Y31: 0 | Z31: 1 | AA31: 84297.63 | AB31: 9 | AC31: 50998.23 | AD31: 135295.86
A32: Susidūrimas dviračio ir paspirtuko | B32: 0 | C32: 0 | D32: 0 | E32: 0 | F32: 0 | G32: 0 | H32: 0 | I32: 1 | J32: 0 | K32: 0 | L32: 0 | M32: 0 | N32: 1 | O32: 5692.54 | P32: 1 | Q32: 0 | R32: 0 | S32: 0 | T32: 0 | U32: 2 | V32: 11691.8 | W32: 6 | X32: 0 | Y32: 0 | Z32: 0 | AA32: 0 | AB32: 7 | AC32: 39665.29 | AD32: 39665.29
A33: Susidūrimas su paspirtuku | B33: 0 | C33: 0 | D33: 0 | E33: 0 | F33: 0 | G33: 0 | H33: 0 | I33: 5 | J33: 0 | K33: 0 | L33: 0 | M33: 0 | N33: 5 | O33: 28462.7 | P33: 15 | Q33: 0 | R33: 0 | S33: 1 | T33: 86966.94 | U33: 14 | V33: 81842.6 | W33: 28 | X33: 0 | Y33: 0 | Z33: 3 | AA33: 252892.89 | AB33: 27 | AC33: 152994.69 | AD33: 405887.58
A34: Užvažiavimas ant pėsčiojo | B34: 893 | C34: 36 | D34: 20373850.08 | E34: 89 | F34: 7210855.65 | G34: 804 | H34: 4378744.8 | I34: 803 | J34: 41 | K34: 24253070.3 | L34: 51 | M34: 4318960.5 | N34: 738 | O34: 4201094.52 | P34: 785 | Q34: 38 | R34: 23084028.72 | S34: 71 | T34: 6174652.74 | U34: 692 | V34: 4045362.8 | W34: 641 | X34: 27 | Y34: 15898382.19 | Z34: 60 | AA34: 5057857.8 | AB34: 572 | AC34: 3241220.84 | AD34: 24197460.83
A35: Užvažiavimas ant kliūties | B35: 39 | C35: 6 | D35: 3395641.68 | E35: 4 | F35: 324083.4 | G35: 42 | H35: 228740.4 | I35: 39 | J35: 3 | K35: 1774614.9 | L35: 0 | M35: 0 | N35: 52 | O35: 296012.08 | P35: 56 | Q35: 0 | R35: 0 | S35: 5 | T35: 434834.7 | U35: 62 | V35: 362445.8 | W35: 51 | X35: 0 | Y35: 0 | Z35: 7 | AA35: 590083.41 | AB35: 60 | AC35: 339988.2 | AD35: 930071.61
A36: Užvažiavimas ant gyvūno | B36: 5 | C36: 0 | D36: 0 | E36: 0 | F36: 0 | G36: 6 | H36: 32677.2 | I36: 2 | J36: 0 | K36: 0 | L36: 0 | M36: 0 | N36: 2 | O36: 11385.08 | P36: 6 | Q36: 0 | R36: 0 | S36: 0 | T36: 0 | U36: 7 | V36: 40921.3 | W36: 2 | X36: 0 | Y36: 0 | Z36: 0 | AA36: 0 | AB36: 2 | AC36: 11332.94 | AD36: 11332.94
A37: Apvirtimas | B37: 66 | C37: 11 | D37: 6225343.08 | E37: 8 | F37: 648166.8 | G37: 64 | H37: 348556.8 | I37: 72 | J37: 7 | K37: 4140768.1 | L37: 1 | M37: 84685.5 | N37: 76 | O37: 432633.04 | P37: 105 | Q37: 7 | R37: 4252321.08 | S37: 6 | T37: 521801.64 | U37: 127 | V37: 742429.3 | W37: 101 | X37: 4 | Y37: 2355315.88 | Z37: 22 | AA37: 1854547.86 | AB37: 93 | AC37: 526981.71 | AD37: 4736845.45
A38: Susidūrimas su stovinčia TP | B38: 40 | C38: 0 | D38: 0 | E38: 4 | F38: 324083.4 | G38: 46 | H38: 250525.2 | I38: 26 | J38: 1 | K38: 591538.3 | L38: 1 | M38: 84685.5 | N38: 27 | O38: 153698.58 | P38: 30 | Q38: 1 | R38: 607474.44 | S38: 7 | T38: 608768.58 | U38: 30 | V38: 175377 | W38: 44 | X38: 1 | Y38: 588828.97 | Z38: 5 | AA38: 421488.15 | AB38: 41 | AC38: 232325.27 | AD38: 1242642.39
A39: Susidūrimas su bėgine TP | B39: 1 | C39: 0 | D39: 0 | E39: 0 | F39: 0 | G39: 1 | H39: 5446.2 | I39: 0 | J39: 0 | K39: 0 | L39: 0 | M39: 0 | N39: 0 | O39: 0 | P39: 0 | Q39: 0 | R39: 0 | S39: 0 | T39: 0 | U39: 0 | V39: 0 | W39: 0 | X39: 0 | Y39: 0 | Z39: 0 | AA39: 0 | AB39: 0 | AC39: 0 | AD39: 0
A40: Kiti eismo įvykiai | B40: 242 | C40: 10 | D40: 5659402.8 | E40: 28 | F40: 2268583.8 | G40: 231 | H40: 1258072.2 | I40: 258 | J40: 5 | K40: 2957691.5 | L40: 11 | M40: 931540.5 | N40: 283 | O40: 1610988.82 | P40: 293 | Q40: 13 | R40: 7897167.72 | S40: 22 | T40: 1913272.68 | U40: 308 | V40: 1800537.2 | W40: 300 | X40: 6 | Y40: 3532973.82 | Z40: 37 | AA40: 3119012.31 | AB40: 291 | AC40: 1648942.77 | AD40: 8300928.9
A41: Viso: | B41: 2301 | C41: 84 | D41: 47538983.52 | E41: 206 | F41: 16690295.1 | G41: 2367 | H41: 12891155.4 | I41: 2182 | J41: 71 | K41: 41999219.3 | L41: 95 | M41: 8045122.5 | N41: 2329 | O41: 13257925.66 | P41: 2343 | Q41: 89 | R41: 54065225.16 | S41: 173 | T41: 15045280.62 | U41: 2474 | V41: 14462756.6 | W41: 2058 | X41: 70 | Y41: 41218027.9 | Z41: 209 | AA41: 17618204.67 | AB41: 2039 | AC41: 11553932.33 | AD41: 70390164.9
A43: Nukentėjusieji eismo įvykiuose | B43: Išlaidos, €
B44: 2017 m. | C44: 2018 m. | D44: 2019 m. | E44: 2020 m.
A45: Žūtis, € | B45: 565940.28 | C45: 591538.3 | D45: 607474.44 | E45: 588828.97
A46: Sunkus sužalojimas, € | B46: 81020.85 | C46: 84685.5 | D46: 86966.94 | E46: 84297.63
A47: Lengvas sužalojimas, € | B47: 5446.2 | C47: 5692.54 | D47: 5845.9 | E47: 5666.47

Sheet Juodųjų dėmių 2021 statistika
A7: 6.1 2020 m. ir 2021 m. nustatytų „juodųjų dėmių“ palyginimas
A8: Kelių paskirtis | B8: 2020 m. „juodosios dėmės“, (2016-2019 m. duomenys) | G8: 2021 m. „juodosios dėmės“, (2017-2020 m. duomenys)
B10: JD skaičius | C10: EĮ | D10: Žuvo | E10: Sužeista | F10: Žala, mln. € | G10: JD skaičius | H10: EĮ | I10: Žuvo | J10: Sužeista | K10: Žala, mln. €
A11: Valstybinės reikšmės užmiesčio keliai
A12: Magistraliniai | B12: 14 | C12: 73 | D12: 15 | E12: 84 | F12: 29.52 | G12: 7 | H12: 35 | I12: 5 | J12: 50 | K12: 29.77
A13: Krašto | B13: 14 | C13: 62 | D13: 12 | E13: 96 | G13: 18 | H13: 85 | I13: 15 | J13: 134
A14: Rajoniniai | B14: 2 | C14: 14 | D14: 0 | E14: 16 | G14: 4 | H14: 17 | I14: 1 | J14: 23
A15: JD užmiesčio keliuose: | B15: 30 | C15: 149 | D15: 27 | E15: 196 | G15: 29 | H15: 137 | I15: 21 | J15: 207
A16: Valstybinės reikšmės užmiesčio keliai, kertantys gyvenvietes
A17: Sankryžose | B17: 10 | C17: 50 | D17: 3 | E17: 60 | F17: 8.31 | G17: 10 | H17: 49 | I17: 4 | J17: 55 | K17: 9.79
A18: Gatvių ruožuose | B18: 5 | C18: 21 | D18: 2 | E18: 21 | G18: 5 | H18: 21 | I18: 2 | J18: 19
A19: JD gyvenvietėse: | B19: 15 | C19: 71 | D19: 5 | E19: 81 | G19: 15 | H19: 70 | I19: 6 | J19: 74
A20: Viso JD valstybinės reikšmės kelių tinkle: | B20: 45 | C20: 220 | D20: 32 | E20: 277 | F20: =F12+F17 -> 37.83 | G20: 44 | H20: 207 | I20: 27 | J20: 281 | K20: =K12+K17 -> 39.56
A23: 6.2 Žala šalies ekonomikai dėl valstybinės reikšmės keliuose nustatytų „juodųjų dėmių“, 2020 m. ir 2021 m.
G29: JD | H29: Žala
F31: 2020 m. | G31: 45 | H31: 37.828
F32: 2021 m. | G32: 44 | H32: 39.56

Sheet ES žuvusių skaičius 2010-2019 m
A6: 7.1 Žuvusiųjų skaičius Lietuvoje ir kitose Europos Sąjungos šalyse, 2010-2019 m.
A7: Nr. | B7: Šalis | C7: Žuvusių sk. | M7: Skirtumas 2010-2019 m., sk. | N7: Skirtumas 2010-2019 m., %
C8: 2010 m. | D8: 2011 m. | E8: 2012 m. | F8: 2013 m. | G8: 2014 m. | H8: 2015 m. | I8: 2016 m. | J8: 2017 m. | K8: 2018 m. | L8: 2019 m.
A9: 1 | B9: Malta | C9: 13 | D9: 16 | E9: 9 | F9: 17 | G9: 10 | H9: 11 | I9: 23 | J9: 19 | K9: 18 | L9: 16 | M9: =L9-C9 -> 3 | N9: 23.07692308
A10: 2 | B10: Olandija | C10: 537 | D10: 546 | E10: 562 | F10: 476 | G10: 477 | H10: 531 | I10: 533 | J10: 535 | K10: 598 | L10: 586 | M10: 49 | N10: 9.124767225
A11: 3 | B11: Kipras | C11: 60 | D11: 71 | E11: 51 | F11: 44 | G11: 45 | H11: 57 | I11: 46 | J11: 53 | K11: 49 | L11: 52 | M11: -8 | N11: -13.33333333
A12: 4 | B12: Vokietija | C12: 3648 | D12: 4009 | E12: 3600 | F12: 3339 | G12: 3377 | H12: 3459 | I12: 3206 | J12: 3180 | K12: 3275 | L12: 3046 | M12: -602 | N12: -16.50219298
A13: 5 | B13: Švedija | C13: 266 | D13: 319 | E13: 285 | F13: 260 | G13: 270 | H13: 259 | I13: 270 | J13: 253 | K13: 324 | L13: 221 | M13: -45 | N13: -16.91729323
A14: 6 | B14: Vengrija | C14: 740 | D14: 638 | E14: 606 | F14: 591 | G14: 626 | H14: 644 | I14: 607 | J14: 625 | K14: 633 | L14: 602 | M14: -138 | N14: -18.64864865
A15: 7 | B15: Prancūzija | C15: 3992 | D15: 3963 | E15: 3653 | F15: 3268 | G15: 3384 | H15: 3461 | I15: 3471 | J15: 3444 | K15: 3246 | L15: 3244 | M15: -748 | N15: -18.73747495
A16: 8 | B16: Bulgarija | C16: 776 | D16: 656 | E16: 601 | F16: 601 | G16: 660 | H16: 708 | I16: 708 | J16: 682 | K16: 610 | L16: 628 | M16: -148 | N16: -19.07216495
A17: 9 | B17: Rumunija | C17: 2377 | D17: 2018 | E17: 2042 | F17: 1861 | G17: 1818 | H17: 1893 | I17: 1915 | J17: 1951 | K17: 1867 | L17: 1864 | M17: -513 | N17: -21.58182583
A18: 10 | B18: Danija | C18: 255 | D18: 220 | E18: 167 | F18: 191 | G18: 182 | H18: 178 | I18: 211 | J18: 175 | K18: 171 | L18: 199 | M18: -56 | N18: -21.96078431
A19: 11 | B19: Suomija | C19: 272 | D19: 292 | E19: 255 | F19: 258 | G19: 229 | H19: 270 | I19: 258 | J19: 238 | K19: 239 | L19: 211 | M19: -61 | N19: -22.42647059
A20: 12 | B20: Italija | C20: 4114 | D20: 3860 | E20: 3753 | F20: 3401 | G20: 3381 | H20: 3428 | I20: 3283 | J20: 3378 | K20: 3334 | L20: 3173 | M20: -941 | N20: -22.87311619
A21: 13 | B21: Čekija | C21: 802 | D21: 772 | E21: 742 | F21: 655 | G21: 688 | H21: 734 | I21: 611 | J21: 577 | K21: 656 | L21: 618 | M21: -184 | N21: -22.94264339
B22: ES-27 | C22: =SUM(C5:C21) -> 17852 | D22: 17380 | E22: 16326 | F22: 14962 | G22: 15147 | H22: 15633 | I22: 15142 | J22: 15110 | K22: 15020 | L22: 14460 | M22: -3392 | N22: -23.23906762
A23: 14 | B23: Belgija | C23: 850 | D23: 884 | E23: 827 | F23: 764 | G23: 745 | H23: 762 | I23: 670 | J23: 609 | K23: 604 | L23: 646 | M23: -204 | N23: -24
A24: 15 | B24: Austrija | C24: 552 | D24: 523 | E24: 531 | F24: 455 | G24: 430 | H24: 479 | I24: 432 | J24: 414 | K24: 409 | L24: 416 | M24: -136 | N24: -24.63768116
A25: 16 | B25: Lenkija | C25: 3908 | D25: 4189 | E25: 3571 | F25: 3357 | G25: 3202 | H25: 2938 | I25: 3026 | J25: 2831 | K25: 2862 | L25: 2909 | M25: -999 | N25: -25.5629478
A26: 17 | B26: Slovėnija | C26: 138 | D26: 141 | E26: 130 | F26: 125 | G26: 108 | H26: 120 | I26: 130 | J26: 104 | K26: 91 | L26: 102 | M26: -36 | N26: -26.08695652
A27: 18 | B27: Slovakija | C27: 371 | D27: 325 | E27: 352 | F27: 251 | G27: 295 | H27: 310 | I27: 275 | J27: 276 | K27: 260 | L27: 270 | M27: -101 | N27: -27.22371968
A28: 19 | B28: Ispanija | C28: 2479 | D28: 2060 | E28: 1902 | F28: 1680 | G28: 1688 | H28: 1689 | I28: 1810 | J28: 1830 | K28: 1806 | L28: 1755 | M28: -724 | N28: -29.20532473
A29: 20 | B29: Kroatija | C29: 426 | D29: 418 | E29: 390 | F29: 368 | G29: 308 | H29: 348 | I29: 307 | J29: 331 | K29: 317 | L29: 297 | M29: -129 | N29: -30.28169014
A30: 21 | B30: Portugalija | C30: 937 | D30: 891 | E30: 718 | F30: 637 | G30: 638 | H30: 593 | I30: 563 | J30: 602 | K30: 700 | L30: 646.6796875 | M30: -290.3203125 | N30: -30.98402481
A31: 22 | B31: Liuksemburgas | C31: 32 | D31: 33 | E31: 34 | F31: 45 | G31: 35 | H31: 36 | I31: 32 | J31: 25 | K31: 36 | L31: 22 | M31: -10 | N31: -31.25
A32: 23 | B32: Airija | C32: 212 | D32: 186 | E32: 163 | F32: 188 | G32: 192 | H32: 162 | I32: 182 | J32: 155 | K32: 139 | L32: 140 | M32: -72 | N32: -33.96226415
A33: 24 | B33: Estija | C33: 79 | D33: 101 | E33: 87 | F33: 81 | G33: 78 | H33: 67 | I33: 71 | J33: 48 | K33: 67 | L33: 52 | M33: -27 | N33: -34.17721519
A34: 25 | B34: Lietuva | C34: 299 | D34: 296 | E34: 302 | F34: 256 | G34: 267 | H34: 242 | I34: 192 | J34: 191 | K34: 173 | L34: 186 | M34: -113 | N34: -37.79264214
A35: 26 | B35: Latvija | C35: 218 | D35: 179 | E35: 177 | F35: 179 | G35: 212 | H35: 188 | I35: 158 | J35: 136 | K35: 148 | L35: 132 | M35: -86 | N35: -39.44954128
A36: 27 | B36: Graikija | C36: 1258 | D36: 1141 | E36: 988 | F36: 879 | G36: 795 | H36: 793 | I36: 824 | J36: 731 | K36: 700 | L36: 696 | M36: -562 | N36: -44.67408585
A38: Nr. | B38: Šalis | C38: 2010 | D38: 2011 | E38: 2012 | F38: 2013 | G38: 2014 | H38: 2015 | I38: 2016 | J38: 2017 | K38: 2018 | L38: 2019 | M38: Skirtumas 2010-2019 m. | N38: Skirtumas 2010-2019 m.
C39: Žuvo | D39: Žuvo | E39: Žuvo | F39: Žuvo | G39: Žuvo | H39: Žuvo | I39: Žuvo | J39: Žuvo | K39: Žuvo | L39: Žuvo | M39: Žuvo | N39: Žuvo
C40: sk. | D40: sk. | E40: sk. | F40: sk. | G40: sk. | H40: sk. | I40: sk. | J40: sk. | K40: sk. | L40: sk. | M40: sk. | N40: %
A41: 1 | B41: Lichnenšteinas | C41: 0 | D41: 2 | E41: 1 | F41: 2 | G41: 3 | H41: 2 | I41: 0 | J41: 2 | K41: 0 | L41: 0 | M41: =L41-C41 -> 0 | N41: 0
A42: 2 | B42: Jungtinė Karalystė | C42: 1905 | D42: 1960 | E42: 1802 | F42: 1770 | G42: 1854 | H42: 1804 | I42: 1860 | J42: 1856 | K42: 1839 | L42: 1808 | M42: =L42-C42 -> -97 | N42: =M42*100/C42 -> -5.091863517
A43: 3 | B43: Islandija | C43: 8 | D43: 12 | E43: 9 | F43: 15 | G43: 4 | H43: 16 | I43: 18 | J43: 16 | K43: 18 | L43: 6 | M43: =L43-C43 -> -2 | N43: =M43*100/C43 -> -25
A44: 4 | B44: Šveicarija | C44: 328 | D44: 320 | E44: 339 | F44: 269 | G44: 243 | H44: 253 | I44: 216 | J44: 230 | K44: 233 | L44: 187 | M44: =L44-C44 -> -141 | N44: =M44*100/C44 -> -42.98780488
A45: 5 | B45: Norvegija | C45: 208 | D45: 168 | E45: 148 | F45: 187 | G45: 147 | H45: 123 | I45: 135 | J45: 106 | K45: 108 | L45: 108 | M45: =L45-C45 -> -100 | N45: =M45*100/C45 -> -48.07692308
A46: Šaltinis: Europos komisijos CARE duomenų bazė: https://ec.europa.eu/transport/road_safety/specialist/observatory/latest-key-figures_en
C47: Source: CARE (Community Road Accident) database. Figures are those as reported by police.
C48: Notes:
C49: (1) Ireland - provisional figures for 2018 and 2019
C50: (2) Netherlands - The number of fatalities registered by the police is under-reported and equates to around 85% of the total number of fatalities published nationally. In 2019, the overall total was 661.
C51: (3) Portugal - as of 2018, includes data for Azores and Madeira which account for around 4% of the total
A53: 7.2 Žuvusiųjų skaičius, tenkantis 1 mln. gyventojų Lietuvoje ir kitose Europos Sąjungos šalyse
A54: Nr. | B54: Šalis | C54: Žuvusių sk./ 1 mln. Gyventojų
C55: 2010 m. | D55: 2011 m. | E55: 2012 m. | F55: 2013 m. | G55: 2014 m. | H55: 2015 m. | I55: 2016 m. | J55: 2017 m. | K55: 2018 m. | L55: 2019 m.
A56: 1 | B56: Rumunija | C56: 117.1242734 | D56: 99.90564412 | E56: 101.6122814 | F56: 92.95669936 | G56: 91.14010405 | H56: 95.2661481 | I56: 96.91141548 | J56: 99.31608834 | K56: 95.59342962 | L56: 96.07426334
A57: 2 | B57: Bulgarija | C57: 104.557325 | D57: 89.01637046 | E57: 82.02287797 | F57: 82.50335779 | G57: 91.08879681 | H57: 98.30332351 | I57: 98.96860179 | J57: 96.03119409 | K57: 86.52440541 | L57: 89.71378588
A58: 3 | B58: Lenkija | C58: 102.7802505 | D58: 110.0551989 | E58: 93.81619151 | F58: 88.19696323 | G58: 84.22358168 | H58: 77.30436877 | I58: 79.70035406 | J58: 74.55304253 | K58: 75.36202408 | L58: 76.60744219
A59: 4 | B59: Kroatija | C59: 99.00421744 | D59: 97.43914541 | E59: 91.20707655 | F59: 86.34160304 | G59: 72.52504174 | H59: 82.36070391 | I59: 73.25799294 | J59: 79.67814842 | K59: 77.21362574 | L59: 72.86115705
A60: 5 | B60: Latvija | C60: 102.8057481 | D60: 86.28148491 | E60: 86.56048255 | F60: 88.44638247 | G60: 105.9222531 | H60: 94.65806285 | I60: 80.24553101 | J60: 69.73944114 | K60: 76.5103426 | L60: 68.75114585
A61: 6 | B61: Lietuva | C61: 95.16304389 | D61: 96.96690153 | E61: 100.544639 | F61: 86.14003476 | G61: 90.70920328 | H61: 82.84090917 | I61: 66.46915174 | J61: 67.06686742 | K61: 61.58992432 | L61: 65.85106779
A62: 7 | B62: Graikija | C62: 113.1367302 | D62: 102.5766241 | E62: 89.11815064 | F62: 79.8828385 | G62: 72.7568447 | H62: 73.03358679 | I62: 76.41128112 | J62: 67.88511313 | K62: 65.16983958 | L62: 64.91152494
A63: 8 | B63: Portugalija | C63: 79.89234196 | D63: 84.27348078 | E63: 68.10594705 | F63: 60.74019701 | G63: 61.18553593 | H63: 57.15760714 | I63: 54.44174009 | J63: 58.39233109 | K63: 68.02042206 | L63: 62.92729285
A64: 9 | B64: Vengrija | C64: 73.89415401 | D64: 63.89122389 | E64: 61.01536208 | F64: 59.64396489 | G64: 63.37722662 | H64: 65.34375329 | I64: 61.74669917 | J64: 63.79138645 | K64: 64.73470888 | L64: 61.59981893
A65: 10 | B65: Kipras | C65: 73.24755231 | D65: 84.54887223 | E65: 59.16397819 | F65: 50.81547285 | G65: 52.44755245 | H65: 67.29570441 | I65: 54.22488474 | J65: 62.0026626 | K65: 56.69747615 | L65: 59.36764326
A66: 11 | B66: Čekija | C66: 76.65773792 | D66: 73.61684018 | E66: 70.63003995 | F66: 62.28529996 | G66: 65.44640201 | H66: 69.65086791 | I66: 57.89360331 | J66: 54.54294524 | K66: 61.82814321 | L66: 58.02925877
A67: 12 | B67: Belgija | C67: 78.41397134 | D67: 80 | E67: 75 | F67: 68.59416264 | G67: 66.63184519 | H67: 67.81004005 | I67: 59.23376091 | J67: 53.64822463 | K67: 52.98901469 | L67: 56.33103745
A68: 13 | B68: Italija | C68: 69.50481603 | D68: 65.02181684 | E68: 63.18798061 | F68: 56.98227469 | G68: 55.62440925 | H68: 56.38564836 | I68: 54.11637982 | J68: 55.75228491 | K68: 55.12204035 | L68: 52.56832117
B69: ES-27 | C69: 67.48687458 | D69: 65.5771121 | E69: 60.27561975 | F69: 55.14216872 | G69: 54.77308216 | H69: 55.16896427 | I69: 53.78428149 | J69: 52.73639168 | K69: 52.56085072 | L69: 51.13429106
A70: 14 | B70: Prancūzija | C70: 63.602088 | D70: 62.83460258 | E70: 57.64014251 | F70: 51.30470228 | G70: 52.8520556 | H70: 53.78905255 | I70: 53.72682524 | J70: 53.09931071 | K70: 50.15059702 | L70: 50.04351562
A71: 15 | B71: Slovakija | C71: 68.82593346 | D71: 60.26949551 | E71: 65.13305462 | F71: 46.38839543 | G71: 54.46875515 | H71: 57.18133992 | I71: 50.67954824 | J71: 50.7787641 | K71: 47.76672203 | L71: 50
A72: 16 | B72: Slovėnija | C72: 67.41652076 | D72: 68.77414716 | E72: 63.24507564 | F72: 60.71436031 | G72: 52.39958566 | H72: 58.17126979 | I72: 62.97875969 | J72: 50.34137747 | K72: 44.02771327 | L72: 49.0170637
A73: 17 | B73: Austrija | C73: 66.09477919 | D73: 62.44653836 | E73: 63.15323007 | F73: 53.83430393 | G73: 50.54193888 | H73: 55.7954722 | I73: 49.65248433 | J73: 47.19096897 | K73: 46.35996621 | L73: 46.95908859
A74: 18 | B74: Estija | C74: 59.25192569 | D74: 75.95926778 | E74: 65.64962568 | F74: 61.35554859 | G74: 59.27866979 | H74: 50.95560778 | I74: 53.95366368 | J74: 36.48428325 | K74: 50.79093617 | L74: 39.25061518
A75: 19 | B75: Suomija | C75: 50.82756431 | D75: 54.32279198 | E75: 47.21114509 | F75: 47.5429333 | G75: 42.00855947 | H75: 49.34433261 | I75: 47.01759041 | J75: 43.24680278 | K75: 43.35105466 | L75: 38.23905353
A76: 20 | B76: Ispanija | C76: 53.32717357 | D76: 44.14237725 | E76: 40.62521045 | F76: 35.95283245 | G76: 36.29155439 | H76: 36.36201975 | I76: 38.97493845 | J76: 39.3319678 | K76: 38.70681765 | L76: 37.39243124
A77: 21 | B77: Vokietija | C77: 44.59534656 | D77: 49.97378215 | E77: 44.81630915 | F77: 41.46602916 | G77: 41.8113913 | H77: 42.59981433 | I77: 39.01397401 | J77: 38.53534054 | K77: 39.55679432 | L77: 36.69030204
A78: 22 | B78: Liuksemburgas | C78: 63.7366402 | D78: 64.4732729 | E78: 64.78004317 | F78: 83.79279717 | G78: 63.67340998 | H78: 63.94793217 | I78: 55.53154973 | J78: 42.32503255 | K78: 59.80016777 | L78: 35.8368057
A79: 23 | B79: Danija | C79: 46.07264156 | D79: 39.5638766 | E79: 29.9255481 | F79: 34.09114437 | G79: 32.34270472 | H79: 31.45034688 | I79: 36.97051347 | J79: 30.44129969 | K79: 29.57868536 | L79: 34.27440988
A80: 24 | B80: Olandija | C80: 32.39821155 | D80: 32.78137542 | E80: 33.59165034 | F80: 28.36782219 | G80: 28.34344339 | H80: 31.41876864 | I80: 31.39149732 | J80: 31.32042155 | K80: 34.80572006 | L80: 33.90779268
A81: 25 | B81: Malta | C81: 31.39891843 | D81: 38.55523881 | E81: 21.55451136 | F81: 40.2358293 | G81: 23.28700771 | H81: 25.01756916 | I81: 51.06401874 | J81: 41.27769679 | K81: 37.8388946 | L81: 32.41760357
A82: 26 | B82: Airija | C82: 46.59926479 | D82: 40.69237418 | E82: 35.51749978 | F82: 40.78286616 | G82: 41.39847498 | H82: 34.63294529 | I82: 38.50803781 | J82: 32.39707189 | K82: 28.77613245 | L82: 28.54680841
A83: 27 | B83: Švedija | C83: 28.47757798 | D83: 33.88005187 | E83: 30.05423999 | F83: 27.20834149 | G83: 27.99417389 | H83: 26.57131088 | I83: 27.40833764 | J83: 25.31226886 | K83: 32.0150447 | L83: 21.60273739
A85: Nr. | B85: Šalis | C85: Žuvusių sk./ 1 mln. gyventojų
C86: 2010 m. | D86: 2011 m. | E86: 2012 m. | F86: 2013 m. | G86: 2014 m. | H86: 2015 m. | I86: 2016 m. | J86: 2017 m. | K86: 2018 m. | L86: 2019 m.
A87: 1 | B87: Jungtinė Karalystė | C87: 30.47502794 | D87: 31.09998818 | E87: 28.38005199 | F87: 27.69723455 | G87: 28.8106717 | H87: 27.80725105 | I87: 28.44795483 | J87: 28.18777713 | K87: 27.74861583 | L87: 27.12795717
A88: 2 | B88: Šveicarija | C88: 42.12794411 | D88: 40.66004467 | E88: 42.61651846 | F88: 33.46162362 | G88: 29.85393318 | H88: 30.71258291 | I88: 25.93932168 | J88: 27.31737444 | K88: 27.46303982 | L88: 21.89100084
A89: 3 | B89: Norvegija | C89: 42.81421984 | D89: 34.1442248 | E89: 29.68388666 | F89: 37.02035625 | G89: 28.77855586 | H89: 23.80725184 | I89: 25.89190418 | J89: 20.15854122 | K89: 20.39421643 | L89: 20.26946375
A90: 4 | B90: Islandija | C90: 25.1865378 | D90: 37.68228807 | E90: 28.16240319 | F90: 46.60454798 | G90: 12.28233401 | H90: 48.61744151 | I90: 54.13061718 | J90: 47.28845068 | K90: 51.65733965 | L90: 16.8071464
A91: 5 | B91: Lichtenšteinas | C91: 0 | D91: 55.32656505 | E91: 27.41603838 | F91: 54.29176394 | G91: 80.79937515 | H91: 53.52459455 | I91: 0 | J91: 52.89605924 | K91: 0 | L91: 0
A135: 10.2. Žuvusiųjų skaičius, tenkantis 1 mln. gyventojų Lietuvoje ir kitose Europos Sąjungos šalyse 2017 m.
A229: 10.3. Žuvusiųjų eismo įvykiuose pasiskirstymas pagal kelius valdančias institucijas 2011–2017 m.
C230: LRA | D230: Municipalities
C231: LAKD | D231: Savivaldybės | E231: Iš viso
A232: 2011 m. | B232: 2011 | C232: 212 | D232: 85 | E232: =SUM(C232:D232) -> 297
A233: 2012 m. | B233: 2012 | C233: 206 | D233: 95 | E233: =SUM(C233:D233) -> 301
A234: 2013 m. | B234: 2013 | C234: 173 | D234: 85 | E234: =SUM(C234:D234) -> 258
A235: 2014 m. | B235: 2014 | C235: 171 | D235: 96 | E235: =C235+D235 -> 267
A236: 2015 m. | B236: 2015 | C236: 174 | D236: 68 | E236: =C236+D236 -> 242
A237: 2016 m. | B237: 2016 | C237: 121 | D237: 71 | E237: 192
A238: 2017 m. | B238: 2017 | C238: 128 | D238: 64 | E238: 192
A239: 2018 m. | B239: 2018
A240: 2019 m. | B240: 2019
A241: 2020 m. | B241: 2020

Sheet Žuvusių sk.pasaulyje 2010-2019
A6: 7.3 Žuvusiųjų skaičius, tenkantis 1 mln. gyventojų Europos Sąjungos ir kitose šalyse, 2010-2019 m.
A7: Šalis | B7: Žuvusių sk./ 1 mln. gyventojų
B8: 2010 m. | C8: 2011 m. | D8: 2012 m. | E8: 2013 m. | F8: 2014 m. | G8: 2015 m. | H8: 2016 m. | I8: 2017 m. | J8: 2018 m. | K8: 2019 m.
A9: Lichtenšteinas | B9: 0 | C9: 55.32656505 | D9: 27.41603838 | E9: 54.29176394 | F9: 80.79937515 | G9: 53.52459455 | H9: 0 | I9: 52.89605924 | J9: 0 | K9: 0
A10: Israelis* | B10: 49.19400542 | C10: 49.18623815 | D10: 36.66106216 | E10: 38.34079883 | F10: 38.82857004 | G10: 42.06347331 | H10: 43.68988295 | I10: 41.7752172 | J10: 35.57436844 | K10: 36
A11: Islandija | B11: 25.1865378 | C11: 37.68228807 | D11: 28.16240319 | E11: 46.60454798 | F11: 12.28233401 | G11: 48.61744151 | H11: 54.13061718 | I11: 47.28845068 | J11: 51.65733965 | K11: 16.8071464
A12: Norvegija | B12: 42.81421984 | C12: 34.1442248 | D12: 29.68388666 | E12: 37.02035625 | F12: 28.77855586 | G12: 23.80725184 | H12: 25.89190418 | I12: 20.15854122 | J12: 20.39421643 | K12: 20.26946375
A13: Šveicarija | B13: 42.12794411 | C13: 40.66004467 | D13: 42.61651846 | E13: 33.46162362 | F13: 29.85393318 | G13: 30.71258291 | H13: 25.93932168 | I13: 27.31737444 | J13: 27.46303982 | K13: 21.89100084
A14: Jungtinė Karalystė | B14: 30.3539916 | C14: 30.97093323 | D14: 28.28662038 | E14: 27.6106691 | F14: 28.70113346 | G14: 27.70694299 | H14: 27.94333998 | I14: 28.10408183 | J14: 27.68096298 | K14: 27
A15: Japonija | B15: 45.510628 | C15: 43.31019805 | D15: 41.25789123 | E15: 40.57440474 | F15: 38.06960805 | G15: 38.43581573 | H15: 37.01165182 | I15: 34.97071962 | J15: 32.9476523 | K15: 31.06993112
A16: Australija | B16: 61.2752051 | C16: 57.16197977 | D16: 57.14043152 | E16: 51.23631055 | F16: 49.02945115 | G16: 50.59624845 | H16: 53.49117336 | I16: 49.79298313 | J16: 45.4714881 | K16: 46.67744322
A17: ES-27 | B17: 67.48687458 | C17: 65.5771121 | D17: 60.27561975 | E17: 55.14216872 | F17: 54.77308216 | G17: 55.16896427 | H17: 53.78428149 | I17: 52.73639168 | J17: 52.56085072 | K17: 51.13429106
A18: Kanada* | B18: 65.8133206 | C18: 58.90612233 | D18: 59.70857382 | E18: 55.49822256 | F18: 51.80017714 | G18: 52.72596888 | H18: 52.37399256 | I18: 50.57019117 | J18: 51.85460056 | K18: 52
A19: Lietuva | B19: 92.14377264 | C19: 92.51954475 | D19: 101.0301043 | E19: 86.94296643 | F19: 91 | G19: 84 | H19: 67 | I19: 67.99812453 | J19: 61.91431917 | K19: 66.56907974
A20: Korėja* | B20: 111.09068 | C20: 104.7126961 | D20: 107.4106731 | E20: 100.9738604 | F20: 93.83868995 | G20: 90.58129571 | H20: 83.79898685 | I20: 81.48061313 | J20: 73.26577574 | K20: 73
A21: Naujoji Zelandija | B21: 85.85518634 | C21: 64.46077653 | D21: 69.47702747 | E21: 56.5862605 | F21: 64.96832517 | G21: 69.18006396 | H21: 69.67824419 | I21: 78.85349521 | J21: 77.37133945 | K21: 70.6940874
A22: Serbija | B22: 90.32833941 | C22: 100.8060485 | D22: 95.33510636 | E22: 90.51027605 | F22: 74.99903103 | G22: 84.19551745 | H22: 85.77841866 | I22: 82.24114068 | J22: 78.26956839 | K22: 76.68266759
A23: Čilė | B23: 121.093173 | C23: 118.5034018 | D23: 113.7184437 | E23: 119.782546 | F23: 118.7492894 | G23: 118.624443 | H23: 119.7237186 | I23: 104.7680797 | J23: 105.3782356 | K23: 105.3584462
A24: Argentina | B24: 125.7189506 | C24: 123.2258895 | D24: 122.9107117 | E24: 123.4274346 | F24: 123.7183468 | G24: - | H24: 127.3217056 | I24: 127.3929862 | J24: 123.453455 | K24: 108.8593727
A25: Jungtinės Amerikos valstijos | B25: 106.6818255 | C25: 104.247419 | D25: 107.6439264 | E25: 104.0938425 | F25: 102.8711791 | G25: 110.6678371 | H25: 117.0677108 | I25: 115.3066691 | J25: 112.7530129 | K25: 109.9684757
A26: Rusija* | J26: 126 | K26: 126
A27: Kolumbija** | B27: 113.7578982 | C27: 119.5407232 | D27: 126.3659512 | E27: 131.7669038 | F27: 133.3982714 | G27: 141.7949624 | H27: 146.8581866 | I27: 136.2909456 | J27: - | K27: 136
A28: Šaltinis: OECD duomenų bazė.
